Workbook

Sheet Model inputs
B3: Tariff approval for: | C3: Evoenergy
B4: Regulatory year t | C4: 2019/20
B5: Regulatory year t-1 | C5: 2018/19
B6: Regulatory year t-2 | C6: 2017/18
C10: 2017/18 | D10: 2018/19 | E10: 2019/20 | F10: Source
B11: General inputs
B12: CPI | E12: 0.0178412132 | F12: ABS CPI All Groups, Weighted Average of Eight Capital Cities (December t-1 / December t-2)
B13: Nominal vanilla WACC | C13: 0.0630847945 | D13: 0.06214984081 | E13: 0.05530768021 | F13: AER 2019 Final Decision - Evoenergy Distribution Determination 2019-24
B14: Days in year | D14: 365 | E14: 366
B15: Distribution inputs
B16: Annual smoothed revenue requirement in the PTRM | E16: 133474765.6 | F16: AER 2019 Final Decision - Evoenergy Distribution Determination 2019-24
B17: X factor | E17: NA | F17: Not relevant for t=1
B18: S factor | E18: 0.009752151029 | F18: AER: Evoenergy STPIS compliance model 2017-18 sent to Evoenergy on 2 May 2019
B19: I factor for year t (DMIS & DMIA adjustments) | D19: 0 | E19: 0
B20: B factor for year t (true up for under or over recovery) | D20: 0 | E20: 0
B21: C factor for year t (approved cost pass throughs) | D21: 0 | E21: =SUM(E22:E24) -> 4212997
B22: Power of Choice | E22: 1983057 | F22: AER determination - Power of Choice reforms cost pass through - Evoenergy - February 2019
B23: Ring fencing | E23: 1027476 | F23: AER determination - Ring-fencing guideline cost pass through - Evoenergy - February 2019
B24: Vegetation management | E24: 1202464 | F24: AER determination - Vegetation Management cost pass through - Evoenergy - February 2019
B25: RV factor for year t (remittal variance) | E25: -236400.7421 | F25: Distribution Remittal Adjustment as sent to AER on 9 May 2019
B26: Transmission inputs
B27: Annual smoothed revenue requirement in the PTRM | E27: 27104241.82 | F27: AER 2019 Final Decision - Evoenergy Distribution Determination 2019-24
B28: X factor | E28: NA | F28: Not relevant for t=1
B29: Net transmission charges paid to TNSPs | E29: 14851399.49 | F29: Transgrid
B30: Avoided TUOS payments | E30: 258789.17 | F30: Forecast
B31: Jurisdictional inputs
B32: Feed-in Tariffs (small & medium scale) | E32: 15494500.49 | F32: Forecast
B33: Feed-in Tariffs (large scale) | E33: 63601515.21 | F33: Forecast
B34: Smoothing of over/under recovery of large scale FiT | E34: -16540646.26 | F34: Forecast
B35: UNFT | E35: 8770105.441 | F35: Forecast
B36: Energy Industry levy | E36: 1500000 | F36: Forecast
B37: Administration | E37: 0 | F37: Forecast
B38: ACT Government reasonable cost determination | E38: 52028901.02 | F38: https://www.legislation.act.gov.au/View/ni/2019-52/current/PDF/2019-52.PDF
B39: Metering inputs
B40: X factor | E40: -0.1181044586 | F40: AER 2019 Final Decision - Evoenergy Distribution Determination 2019-24

Sheet Formulae
B2: Figure 13.1 Revenue cap formula - Distribution
B4: 1 | H4: i = 1,…,n and j = 1,…,m and t = 1, 2…,5
B5: 1. i=1 | C5: j=1
B6: 2 | H6: t = 1, 2...,5
B8: 3 | H8: t = 1
B10: 4 | H10: t = 2,…,5
B12: where:
C14: is the total allowable revenue in year t.
C16: is the price of component 'j' of tariff 'i' in year t.
C18: is the forecast quantity of component 'j' of tariff 'i' in year t.
C20: is the regulatory year.
C22: is the annual smoothed revenue requirement in the Post Tax Revenue Model (PTRM) for year t.
C24: is the adjusted annual smoothed revenue requirement for year t.
C25: is the sum of demand management incentive scheme and innovation allowance adjustments in year t relating to:
C26: • the final carryover amount from the application of the old demand management innovation allowance (DMIA) from the 2014–19 distribution determination. This amount will be deducted from/added to allowed revenue in the 2020-21 pricing proposal.
C27: • approved demand management incentive scheme amounts from year t-2.
C29: is the sum of annual adjustment factors for year t and includes the true-up for any under or over recovery of actual revenue collected through DUoS charges calculated using the following method:
B33: where:
F35: is the true-up for the balance of the DUoS unders and overs account in year t.
F37: is the opening balance of the DUoS unders and overs account in year t as calculated by the method as set out in our draft decision.
F39: is the approved weighted average cost of capital used in regulatory year t in the DUoS unders and overs account.
C42: is the sum of approved cost pass through amounts (positive or negative) with respect to regulatory year t, as determined by the AER. It will also include any end-ofperiod adjustments in year t.
C44: is the variance between the actual and forecast revenue for the 2017–18 and 2018–19 regulatory years, to reflect that amount that should be included in the 2019–24 period through the remittal process, but was not known at the time of the final decision. This applies only to the 2019–20 and 2020–21 regulatory years, and in all other years will have a value of zero.
C46: is the annual percentage change in the ABS CPI All Groups, Weighted Average of Eight Capital Cities34 from the December quarter in year t–2 to the December quarter in year t–1, calculated using the following method:
B47: The ABS CPI All Groups, Weighted Average of Eight Capital Cities for the December quarter in regulatory year t–1 divided by
B48: The ABS CPI All Groups, Weighted Average of Eight Capital Cities for the December quarter in regulatory year t–2 minus one.
C51: is the X factor for each year of the 2019–24 regulatory control period as determined in the PTRM, and annually revised for the return on debt update in accordance with the rate of return instrument, applied for the relevant year
C53: is the S factor for regulatory year t. It will also incorporate any adjustments required due to the application of the STPIS in the 2019–24 regulatory control period consistent with the AER’s STPIS.
B55: Figure 13.2 Revenue cap compliance formula - Transmission
B57: This compliance formula does not apply in the first year of the 2019–24 regulatory control period, as the 2019–20 expected revenue is set in this decision.
B62: Figure 13.3 Side Constraint formula
C71: is the proposed price for component ‘j’ of tariff 'i' for year t.
C72: is the price charged for component ‘j’ of tariff 'i' in year t–1.
C73: is the forecast quantity of component ‘j’ of tariff 'i' in year t.
C74: is the annual percentage change in the ABS CPI All Groups, Weighted Average of Eight Capital Cities from the December quarter in year t–2 to the December quarter in year t–1, calculated using the following method:
C75: The ABS CPI All Groups, Weighted Average of Eight Capital Cities for the December quarter in regulatory year t–1
C76: divided by
C77: The ABS CPI All Groups, Weighted Average of Eight Capital Cities for the December quarter in regulatory year t–2
C78: minus one.
B79: For example, for 2020–21, year t–2 is the December quarter 2018 and year t–1 is the December quarter 2019.
C81: is the X factor for each year of the 2019–24 regulatory control period as determined in the PTRM, and annually revised for the return on debt update in accordance with the rate of return instrument, applied for the relevant year. If X>0, then X will be set equal to zero for the purposes of the side constraint formula
C82: is the S factor for regulatory year t. It will also incorporate any adjustments required due to the application of the STPIS in the 2019–24 regulatory control period consistent with the AER’s STPIS
C83: is the annual percentage change from the sum of demand management incentive schemes and allowance adjustments in year t relating to:
C84: • the final carryover amount from the application of the old demand management innovation allowance (DMIA) from the 2014–19 distribution determination. This amount will be deducted from/added to allowed revenue in the 2020–21 pricing proposal
C85: • approved demand management incentive scheme amounts from year t-2
C86: is the annual percentage change from the sum of annual adjustment factors for year t and includes the true-up for any under or over recovery of actual revenue collected through DUoS charges calculated using the method under the revenue cap formula.
C87: is the annual percentage change from the sum of approved cost pass through amounts (positive or negative) with respect to regulatory year t, as determined by the AER.
B89: With the exception of the CPI, X factor, and S factor, the percentage for each of the other factors can be calculated by dividing the incremental revenues (as used in the total annual revenue formula) for each factor by the expected revenues for the regulatory year t-1 (based on the prices in year t-1 multiplied by the forecast quantities for year t).

Sheet ACS
A2: Metering
B4: Code | C4: Description | D4: Unit | E4: 2019/20
B5: MP1 | C5: Quarterly metering non capital rate
C6: This metering non capital rate applies to all accumulation meters read quarterly | D6: cents per day per NMI * | E6: 4.44
B7: MP2 | C7: Monthly non-interval metering non-capital rate
C8: This metering non capital rate applies to all accumulation meters read monthly | D8: cents per day per NMI | E8: 7.77
B9: MP3 | C9: Monthly interval metering non-capital rate
C10: This metering non-capital rate applies to interval meters read monthly. | D10: cents per day per NMI | E10: 7.77
B11: MP4 | C11: Monthly manually read interval metering non capital rate
C12: This metering non-capital rate applies to LV/HV interval meters recording at either 15 or 30 minute periods, read manually and processed monthly. | D12: $ per day per NMI | E12: 0.63
B13: MP5 | C13: Internal metering rate
C14: Sites entitled to the Internal Network charge | D14: cents per day per NMI
B15: MP6 | C15: Quarterly manually read interval metering non-capital rate
C16: This metering non-capital rate applies to interval meters recording at either 15 or 30 minutes periods, read manually and processed quarterly | D16: cents per day per NMI | E16: 17.9
B17: MP7 | C17: Quarterly manually read interval metering capital rate | E17: 9.02
C18: This metering capital rate applies to all accumulation meters read quarterly
B19: MP8 | C19: Monthly non-interval metering capital rate | D19: cents per day per NMI | E19: 15.77
C20: This metering capital rate applies to non-interval meters read monthly
B21: MP9 | C21: Monthly multi-register non interval metering capital rate | E21: 15.77
C22: This metering capital rate applies to interval meters read monthly | D22: cents per day per NMI
B23: MP10 | C23: Monthly manually read interval metering capital rate | E23: 127.3
C24: This metering capital rate applies to LV/HV interval meters recording at either 15 or 30 minute periods, read manually and processed monthly
A27: Ancillary service charges
B29: Code | C29: Description | D29: Unit | E29: 2019/20 Price (excl. GST) | F29: 2019/20 Price (incl. GST)
B30: Premise Re-energisation – Existing Network Connection -These charges also apply where Evoenergy responds to a customer initiated call out and determines that the premise is energised at the connection point.
B31: 501 | C31: Re-energise premise – Business Hours | D31: per visit | E31: 78.37 | F31: =E31*1.1 -> 86.207
B32: 502 | C32: Re-energise premise – After Hours | D32: per visit | E32: 97.85 | F32: =E32*1.1 -> 107.635
B33: Premise De-energisation – Existing Network Connection
B34: 503 | C34: De-energise premise – Business Hours | D34: per visit | E34: 78.37 | F34: =E34*1.1 -> 86.207
B35: 505 | C35: De-energise premise for debt non-payment | D35: per visit | E35: 156.75 | F35: =E35*1.1 -> 172.425
B36: Meter investigations
B37: 504 | C37: Meter Test (Whole Current) – Business Hours | D37: per test | E37: 313.5 | F37: =E37*1.1 -> 344.85
B38: 510 | C38: Meter Test (CT/VT) – Business Hours | D38: per test | E38: 470.38 | F38: =E38*1.1 -> 517.418
B39: Special meter services
B40: 506 | C40: Special meter read | D40: per read | E40: 33.91 | F40: 37.301
B41: Power of Choice services
B42: 515 | C42: Move, remove, inspect or reconfigure meter | D42: per movement, inspection or re-configure | E42: 156.75 | F42: 172.425
B43: 516 | C43: Establish supply | D43: per establishment | E43: 117.56 | F43: 129.316
B44: 517 | C44: Faults investigation (meter malfunction) | D44: per investigation | E44: 117.56 | F44: 129.316
B45: 518 | C45: Faults investigation (meter bypassed) | D45: per investigation | E45: 156.75 | F45: 172.425
B46: 519 | C46: Faults investigation (customer's side of network boundary) | D46: per investigation | E46: 78.37 | F46: 86.207
B47: Temporary Network Connections
B48: 520 | C48: Temporary Builders’ Supply – Overhead (Business Hours) | D48: per installation | E48: 509.49 | F48: 560.439
B49: 522 | C49: Temporary Builders’ Supply – Underground (Business Hours) | D49: per installation | E49: 979.73 | F49: 1077.703
B50: New Network Connections
B51: 523 | C51: New Underground Service Connection – Greenfield | D51: per installation | E51: 0 | F51: 0
B52: 526 | C52: New Overhead Service Connection – Brownfield (Business Hours) | D52: per installation | E52: 745.3 | F52: 819.83
B53: 527 | C53: New Underground Service Connection – Brownfield from Front | D53: per installation | E53: 1214.85 | F53: 1336.335
B54: 528 | C54: New Underground Service Connection – Brownfield from Rear | D54: per installation | E54: 1214.85 | F54: 1336.335
B55: Network Connection Alterations and Additions
B56: 541 | C56: Overhead Service Relocation – Single Visit (Business Hours) | D56: per installation | E56: 626.99 | F56: 689.689
B57: 542 | C57: Overhead Service Relocation – Two Visits (Business Hours) | D57: per installation | E57: 1253.99 | F57: 1379.389
B58: 543 | C58: Overhead Service Upgrade – Service Cable Replacement Not Required | D58: per installation | E58: 626.99 | F58: 689.689
B59: 544 | C59: Overhead Service Upgrade – Service Cable Replacement Required | D59: per installation | E59: 666.23 | F59: 732.853
B60: 545 | C60: Underground Service Upgrade – Service Cable Replacement Not Required | D60: per installation | E60: 470.25 | F60: 517.275
B61: 546 | C61: Underground Service Upgrade – Service Cable Replacement Required | D61: per installation | E61: 1214.85 | F61: 1336.335
B62: 547 | C62: Underground Service Relocation – Single Visit (Business Hours) | D62: per installation | E62: 1214.85 | F62: 1336.335
B63: 548 | C63: Install surface mounted point of entry (POE) box | D63: per installation | E63: 575.39 | F63: 632.929
B64: 549 | C64: Overhead Service Temporary Disconnect Reconnect same day (Business Hours) | D64: per installation | E64: 940.49 | F64: 1034.539
B65: Temporary De-energisation
B66: 560 | C66: Temporary de-energisation – LV (Business Hours) | D66: per occurrence | E66: 626.99 | F66: 689.689
B67: 561 | C67: Temporary de-energisation – HV (Business Hours) | D67: per occurrence | E67: 626.99 | F67: 689.689
B68: Supply Abolishment / Removal
B69: 562 | C69: Supply Abolishment / Removal – Overhead (Business Hours) | D69: per site visit | E69: 470.25 | F69: 517.275
B70: 563 | C70: Supply Abolishment / Removal - Underground (Business Hours) | D70: per site visit | E70: 1175.61 | F70: 1293.171
B71: Miscellaneous Customer Initiated Services
B72: 564 | C72: Install & Remove Tiger Tails – Establishment (Business Hours) | D72: per installation | E72: 1174.82 | F72: 1292.302
B73: 565 | C73: Install & Remove Tiger Tails - Per Span (Business Hours) | D73: per installation | E73: 1808.37 | F73: 1989.207
B74: 566 | C74: Install & Remove Warning Flags – Installation (Business Hours) | D74: per installation | E74: 1174.82 | F74: 1292.302
B75: 567 | C75: Install & Remove Warning Flags – Per span (Business Hours) | D75: per installation | E75: 1565.36 | F75: 1721.896
B76: Operational & Maintenance Fees - Export Only Embedded Generation Installations up to 5MW
B77: 568 | C77: Embedded Generation OPEX Fees - Connection Assets | D77: per annum | E77: 0.02 | F77: 0.02
B78: 569 | C78: Embedded Generation OPEX Fees - Shared Network Asset | D78: per annum | E78: 0.02 | F78: 0.02
B79: Connection Enquiry Processing - Embedded Generation Installations*
B80: 570 | C80: Embedded Generation Connection Enquiry – Class 1 (Commercial) | D80: per installation | E80: 431.05 | F80: 474.155
B81: 596 | C81: Embedded Generation Connection Enquiry – Class 2 | D81: per installation | E81: 538.81 | F81: 592.691
B82: 597 | C82: Embedded Generation Connection Enquiry – Class 3 | D82: per installation | E82: 646.57 | F82: 711.227
B83: 598 | C83: Embedded Generation Connection Enquiry – Class 4 | D83: per installation | E83: 754.33 | F83: 829.763
B84: 599 | C84: Embedded Generation Connection Enquiry – Class 5 | D84: per installation | E84: 862.1 | F84: 948.31
B85: 600 | C85: Embedded Generation Connection Enquiry – Class 6 | D85: per installation | E85: 969.86 | F85: 1066.846
B86: Network Design & Investigation / Analysis Services - Embedded Generation Installations†
B87: 574 | C87: Embedded Generation Network Technical Study - Class 1 (Commercial) | D87: per installation | E87: 1724.19 | F87: 1896.609
B88: 575 | C88: Embedded Generation Network Technical Study - Class 2 | D88: per installation | E88: 3448.38 | F88: 3793.218
B89: 576 | C89: Embedded Generation Network Technical Study - Class 3 | D89: per installation | E89: 6896.77 | F89: 7586.447
B90: 577 | C90: Embedded Generation Network Technical Study - Class 4 | D90: per installation | E90: 10345.15 | F90: 11379.665
B91: 578 | C91: Embedded Generation Network Technical Study - Class 5 | D91: per installation | E91: 13793.53 | F91: 15172.883
B92: 579 | C92: Embeddded Generation - Network Technical Study - Class 6 | D92: per installation | E92: 17241.92 | F92: 18966.112
B93: Contract Administration, Commissioning and Testing - Embedded Generation Installations up to 5MW
B94: 669 | C94: Embedded Generation - Connection Contract Establishment - Class 1 (Commercial) to Class 6 | D94: per establishment | E94: 3448.38 | F94: 3793.218
B95: Provision of Data for Network Technical Study - Embedded Generation Installations over 5MW
B96: 670 | C96: Embedded Generator Network Technical Study - Embedded Generation over 5MW | D96: per provision | E96: 17241.92 | F96: 18966.112
B97: Rescheduled Site Visits
B98: 590 | C98: Rescheduled Site Visit – One Person | D98: per site visit | E98: 156.75 | F98: 172.425
B99: 591 | C99: Rescheduled Site Visit – Service Team | D99: per site visit | E99: 674.33 | F99: 741.763
B100: Trenching charges
B101: 592 | C101: Trenching - first 2 meters | D101: per visit | E101: 559.78 | F101: 615.758
B102: 593 | C102: Trenching - subsequent meters | D102: per meter | E102: 130.18 | F102: 143.198
B103: Boring charges
B104: 594 | C104: Under footpath | D104: per occurrence | E104: 1015.42 | F104: 1116.962
B105: 595 | C105: Under driveway | D105: per occurrence | E105: 1210.69 | F105: =E105*1.1 -> 1331.759
B106: Cable Testing
B107: 603 | C107: Spiking/Cable Testing (Business Hours) - Evoenergy network cables only | D107: per test | E107: 922.29 | F107: =E107*1.1 -> 1014.519
B108: 604 | C108: Spiking/Cable Testing (After Hours) - Evoenergy network cables only | D108: per test | E108: 1186.92 | F108: 1305.612
B109: Testing of Substation HV/LV Earthing or Soil Resistivity
B110: 605 | C110: Substation HV/LV Earthing/Soil Resistivity Testing (Business Hours) | D110: per test | E110: 1087.68 | F110: =E110*1.1 -> 1196.448
B111: 606 | C111: Substation HV/LV Earthing/Soil Resistivity Testing (After Hours) | D111: per test | E111: 1418.47 | F111: 1560.317
B112: Termination of Consumer Mains - up to 50mm² Al or Cu - Note 1
B113: 607 | C113: 1x 4 Core Or 4x 1 Core (1 Set) Consumer Mains (Business Hours) | D113: per temination | E113: 1279.38 | F113: =E113*1.1 -> 1407.318
B114: 608 | C114: 1x 4 Core Or 4x 1 Core(1 Set) Consumer Mains (After Hours) | D114: per temination | E114: 1610.16 | F114: 1771.176
B115: Termination of Consumer Mains - Above 50mm² Cu or Al - Note 1
B116: 609 | C116: 1x 4 Core Or 4x 1 Core (1 Set) Consumer Mains (Business Hours) | D116: per temination | E116: 1610.16 | F116: =E116*1.1 -> 1771.176
B117: 610 | C117: 1x 4 Core Or 4x 1 Core(1 Set) Consumer Mains (After Hours) | D117: per temination | E117: 2073.27 | F117: 2280.597
B118: 611 | C118: 2 x 4 Core Or 8 x 1 Core (2 Set) Consumer Mains (Business Hours) | D118: per temination | E118: 1940.95 | F118: 2135.045
B119: 612 | C119: 2 x 4 Core Or 8 x 1 Core (2 Set) Consumer Mains (After Hours) | D119: per temination | E119: 2536.37 | F119: 2790.007
B120: 613 | C120: 3 x 4 Core Or 12 x 1 Core (3 Set) Consumer Mains (Business Hours) | D120: per temination | E120: 2271.74 | F120: 2498.914
B121: 614 | C121: 3 x 4 Core Or 12 x 1 Core (3 Set) Consumer Mains (After Hours) | D121: per temination | E121: 2999.47 | F121: 3299.417
B122: 615 | C122: 4 x 4 Core Or 16 x 1 Core (4 Set) Consumer Mains (Business Hours) | D122: per temination | E122: 2437.13 | F122: 2680.843
B123: 616 | C123: 4 x 4 Core Or 16 x 1 Core (4 Set) Consumer Mains (After Hours) | D123: per temination | E123: 3231.02 | F123: 3554.122
B124: LV Underground Network Disconnection (permanent disconnection of existing network)
B125: 617 | C125: Including Capping/Abandoning - Underground ( Business Hours) | D125: per disconnection or per visit | E125: 1775.56 | F125: 1953.116
B126: 618 | C126: Including Capping/Abandoning - Underground (After Hours) | D126: per disconnection or per visit | E126: 2304.82 | F126: 2535.302
B127: Consumer Mains Disconnection at Evoenergy Network Asset such as Point of Entry/Substation
B128: 619 | C128: Temporary or Permanent Consumer Mains as a Separate Request (Business Hours) | D128: per disconnection or per visit | E128: 1775.56 | F128: 1953.116
B129: 620 | C129: Temporary or Permanent Consumer Mains as a Separate Request (After Hours) | D129: per disconnection or per visit | E129: 2304.82 | F129: 2535.302
B130: Substation Supervised Access
B131: 621 | C131: 1- 4 (Business Hours) | D131: per visit per substation | E131: 1122.78 | F131: 1235.058
B132: 622 | C132: 1- 4 (After Hours) | D132: per visit per substation | E132: 1453.57 | F132: 1598.927
B133: 623 | C133: 4- 8 (Business Hours) | D133: per visit per substation | E133: 1784.36 | F133: 1962.796
B134: 624 | C134: 4- 8 (After Hours) | D134: per visit per substation | E134: 2379.78 | F134: 2617.758
B135: Temporary De-energisation/Isolation of Overhead LV Network
B136: 625 | C136: Business Hours Work - Per isolation or de-energisation and re-energisation on a same day | D136: per day | E136: 1415.97 | F136: 1557.567
B137: 626 | C137: After Hours Work - Per isolation or de-energisation and re-energisation on a same day | D137: per day | E137: 1812.92 | F137: 1994.212
B138: Temporary De-energisation/Isolation of Overhead HV Network2
B139: 627 | C139: Business Hours Work - Per isolation or de-energisation and re-energisation on a same day | D139: per day | E139: 2550.39 | F139: 2805.429
B140: 628 | C140: After Hours Work - Per isolation or de-energisation and re-energisation on a same day | D140: per day | E140: 3211.97 | F140: 3533.167
B141: Temporary De-energisation/Isolation of Underground/Overhead SLCC supply3
B142: 629 | C142: Business Hours Work - Per isolation or de-energisation and re-energisation on a same day | D142: per day | E142: 626.6 | F142: 689.26
B143: 630 | C143: After Hours Work - Per isolation or de-energisation and re-energisation on a same day | D143: per day | E143: 758.92 | F143: 834.812
B144: Temporary De-energisation/Isolation of Underground HV Or LV Network3
B145: 631 | C145: Business Hours Work - Per isolation or de-energisation and re-energisation on a same day | D145: per day | E145: 1250.58 | F145: 1375.638
B146: 632 | C146: After Hours Work - Per isolation or de-energisation and re-energisation on a same day | D146: per day | E146: 1581.37 | F146: 1739.507
B147: Temporary De-energisation/Isolation of Underground HV Network - If HV Cable Insulation Test Required ( Isolation for more than 7 days)4
B148: 633 | C148: Business Hours Work - Per isolation or de-energisation and re-energisation on a same day | D148: per day | E148: 1746.76 | F148: 1921.436
B149: 634 | C149: After Hours Work - Per isolation or de-energisation and re-energisation on a same day | D149: per day | E149: 2276.02 | F149: 2503.622
B150: Temporary Pole Support Work - Using Lifter/Borer5
B151: 635 | C151: Business Hours Work | D151: Per pole support per day as well as per visit | E151: 3608.94 | F151: 3969.834
B152: 636 | C152: After Hours Work | D152: Per pole support per day as well as per visit | E152: 4208.87 | F152: 4629.757
B153: Temporary Pole Support Work - Using Concrete Blocks5
B154: 637 | C154: Business Hours Work | D154: per Pole per Installation as well as per visit | E154: 2771.26 | F154: 3048.386
B155: 638 | C155: After Hours Work | D155: per Pole per Installation as well as per visit | E155: 3172.72 | F155: 3489.992
B156: Pole Stay Replacement
B157: 639 | C157: With Standard Stay -Business Hours | D157: per pole stay | E157: 4012.8 | F157: 4414.08
B158: 640 | C158: With Standard Stay -After Hours | D158: per pole stay | E158: 4941.43 | F158: 5435.573
B159: 641 | C159: With Side Walk Stay -Business Hours | D159: per pole stay | E159: 4729.25 | F159: 5202.175
B160: 642 | C160: With Side Walk Stay -After Hours | D160: per pole stay | E160: 5671.06 | F160: 6238.166
B161: LVABC Replacement
B162: 643 | C162: 1 Span- Business Hours | D162: per installation | E162: 9301.19 | F162: 10231.309
B163: 644 | C163: 1 Span - After Hours | D163: per installation | E163: 11947.5 | F163: 13142.25
B164: 645 | C164: 2 Span- Business Hours | D164: per installation | E164: 13844.33 | F164: 15228.763
B165: 646 | C165: 2 Span - After Hours | D165: per installation | E165: 17615.31 | F165: 19376.841
B166: 647 | C166: 3 Span- Business Hours | D166: per installation | E166: 18261.47 | F166: 20087.617
B167: 648 | C167: 3 Span - After Hours | D167: per installation | E167: 23090.97 | F167: 25400.067
B168: 649 | C168: Cut & Shackle for LVABC Replacement - Per Cross arm One Direction - Business Hours | D168: per installation | E168: 1245.78 | F168: 1370.358
B169: 650 | C169: Cut & Shackle for LVABC Replacement - Per Cross arm One Direction - After Hours | D169: per installation | E169: 1572.05 | F169: 1729.255
B170: 651 | C170: Installation of LV Fuse Switch Disconnector for LVABC Replacement Work- Business Hours | D170: per installation | E170: 1432.57 | F170: 1575.827
B171: 652 | C171: Installation of LV Fuse Switch Disconnector for LVABC Replacement Work- After Hours | D171: per installation | E171: 1758.84 | F171: 1934.724
B172: 653 | C172: Installation of LV termination cross- arm for LVABC Replacement Work - Business Hours | D172: per installation | E172: 1449.21 | F172: 1594.131
B173: 654 | C173: Installation of LV termination cross- arm for LVABC Replacement Work - After Hours | D173: per installation | E173: 1813.08 | F173: 1994.388
B174: 655 | C174: Installation of LV double strain cross -arm for LVABC Replacement Work - Business Hours | D174: per installation | E174: 1662.3 | F174: 1828.53
B175: 656 | C175: Installation of LV double strain cross -arm for LVABC Replacement Work - After Hours | D175: per installation | E175: 2220.12 | F175: 2442.132
B176: 657 | C176: 1 Way 630A Weber Fuse Switch Disconnector Installation for consumer mains termination work - Business Hours | D176: per installation | E176: 763.7 | F176: 840.07
B177: 658 | C177: 1 Way 630A Weber Fuse Switch Disconnector Installation for consumer mains termination work - After Hours | D177: per installation | E177: 829.86 | F177: 912.846
B178: 659 | C178: 1 Way 1000A Weber Fuse Switch Disconnector Installation for consumer mains termination work - Business Hours | D178: per installation | E178: 873.65 | F178: 961.015
B179: 660 | C179: 1 Way 1000A Weber Fuse Switch Disconnector Installation for consumer mains termination work - After Hours | D179: per installation | E179: 939.8 | F179: 1033.78
B180: 661 | C180: 1 Way 1250A Jean Muller Installation for consumer mains termination work - Business Hours | D180: per installation | E180: 4098.13 | F180: 4507.943
B181: 662 | C181: 1 Way 1250A Jean Muller Installation for consumer mains termination work - After Hours | D181: per installation | E181: 4197.37 | F181: =E181*1.1 -> 4617.107
B182: 663 | C182: 1 Way Weber POE Kit Installation for consumer mains termination work- Business Hours | D182: per installation | E182: 2493.45 | F182: 2742.795
B183: 664 | C183: 1 Way Weber POE Kit Installation for consumer mains termination work- After Hours | D183: per installation | E183: 2559.61 | F183: 2815.571
B184: 665 | C184: 3 Way Weber POE Kit Installation for consumer mains termination work - Business Hours | D184: per installation | E184: 3253.57 | F184: 3578.927
B185: 666 | C185: 3 Way Weber POE Kit Installation for consumer mains termination work - After Hours | D185: per installation | E185: 3319.73 | F185: 3651.703
B186: 667 | C186: Holec Fuse Kit Installation for Termination of Consumer Mains - Business Hours | D186: per installation | E186: 290.41 | F186: 319.451
B187: 668 | C187: Holec Fuse Kit Installation for Termination of Consumer Mains - After Hours | D187: per installation | E187: 356.57 | F187: 392.227
B188: * | C188: These charges also apply where Evoenergy responds to a customer initiated call out and determines that the premise is energised at the connection point.
B189: 1 | C189: Includes termination of temporary supply consumer mains. Crimp lugs to be supplied by Customer/Applicant. Charges includes disconnection of existing temporary consumer mains if present.
B190: 2 | C190: Includes establishment of temporary earthing to overhead network and includes plant as required
B191: 3 | C191: Excludes the type of work done by supply and installation officer. Excludes streetlight controller isolation work by Connection and Installation (C & I) Officer or Services and Installation (S & I) Officer
B192: 4 | C192: Includes insulation testing of isolated HV cable prior re-energisation
B193: 5 | C193: Includes plant operator as required however temporary network isolation charges to apply separately
B196: Code | C196: Description | D196: Unit | E196: Price (excl. GST) $ | F196: Price (incl. GST) $
B197: Residential Estate Subdivision Services (per block)
B198: 580 | C198: Subdivision Electricity Distribution Network Reticulation - Multi Unit Blocks | D198: per block | E198: 0 | F198: 0
B199: 581 | C199: Subdivision Electricity Distribution Network Reticulation - Category 1 Blocks <= 650 M2 | D199: per block | E199: 1775.560446 | F199: 1953.11649
B200: 582 | C200: Subdivision Electricity Distribution Network Reticulation - Category 1 Blocks 650 - 1100m2 with average linear frontage of 22-25 metres | D200: per block | E200: 2326.264961 | F200: 2558.891458
B201: Upstream augmentation (per kVA of capacity)
B202: 585 | C202: HV Feeder | D202: $/kVA | E202: 38.46280914 | F202: 42.30909006
B203: 586 | C203: Distribution substation | D203: $/kVA | E203: 22.27183834 | F203: 24.49902218

Sheet Prop2019-20DistTar
B1: ="Tariff Approval - "&'Model inputs'!C3 -> Tariff Approval - Evoenergy
B3: ="PROPOSED "&'Model inputs'!C4&" DISTRIBUTION TARIFFS" -> PROPOSED 2019/20 DISTRIBUTION TARIFFS
D4: ="Proposed Distribution Tariffs (Pt) for "&'Model inputs'!C4 -> Proposed Distribution Tariffs (Pt) for 2019/20 | U4: ="Current Distribution Tariffs (Pt-1) for "&'Model inputs'!C4 -> Current Distribution Tariffs (Pt-1) for 2019/20 | AQ4: ="Forecast Quantities (Qt) for "&'Model inputs'!C4 -> Forecast Quantities (Qt) for 2019/20 | BH4: ="Forecast Revenue (Pt "&'Model inputs'!C4&")*(Qt " &'Model inputs'!C4&")" -> Forecast Revenue (Pt 2019/20)*(Qt 2019/20) | CB4: ="Revenue (Pt-1 "&'Model inputs'!C5&")*(Qt " &'Model inputs'!C4&")" -> Revenue (Pt-1 2018/19)*(Qt 2019/20)
B5: Proposed tariff | C5: Existing tariff | D5: PropTar Fixed | E5: PropTar Anytime | F5: PropTar Block: Step 1 | G5: PropTar Block: Step 2 | H5: PropTar TOU: Peak | I5: PropTar TOU: Shoulder | J5: PropTar TOU: Off-peak | K5: PropTar Dem kW | L5: PropTar Dem kVA: peak | M5: PropTar Capacity kVA: anytime | U5: ExistTar Fixed | V5: ExistTar Anytime | W5: ExistTar Block: Step 1 | X5: ExistTar Block: Step 2 | Y5: ExistTar TOU: Peak | Z5: ExistTar TOU: Shoulder | AA5: ExistTar TOU: Off-peak | AB5: ExistTar Dem kW | AC5: ExistTar Dem kVA: peak | AD5: ExistTar Capacity kVA: anytime | AQ5: FcastVol Fixed | AR5: FcastVol Anytime | AS5: FcastVol Block: Step 1 | AT5: FcastVol Block: Step 2 | AU5: FcastVol TOU: Peak | AV5: FcastVol TOU: Shoulder | AW5: FcastVol TOU: Off-peak | AX5: FcastVol Dem kW | AY5: FcastVol Dem kVA: peak | AZ5: FcastVol Capacity kVA: anytime | BH5: PropRev Fixed | BI5: PropRev Anytime | BJ5: PropRev Block: Step 1 | BK5: PropRev Block: Step 2 | BL5: PropRev TOU: Peak | BM5: PropRev TOU: Shoulder | BN5: PropRev TOU: Off-peak | BO5: PropRev Dem kW | BP5: PropRev Dem kVA: peak | BQ5: PropRev Capacity kVA: anytime | BZ5: PropRev Total | CB5: ExistRev Fixed | CC5: ExistRev Anytime | CD5: ExistRev Block: Step 1 | CE5: ExistRev Block: Step 2 | CF5: ExistRev TOU: Peak | CG5: ExistRev TOU: Shoulder | CH5: ExistRev TOU: Off-peak | CI5: ExistRev Dem kW | CJ5: ExistRev Dem kVA: peak | CK5: ExistRev Capacity kVA: anytime | CW5: ExistRev Total
A7: 010 | B7: =C7 -> Residential Basic Network | C7: Residential Basic Network | D7: 27.105 | E7: 3.716 | F7: 0 | G7: 0 | H7: 0 | I7: 0 | J7: 0 | K7: 0 | L7: 0 | M7: 0 | U7: ='Est2018-19DistRev'!D7 -> 26.63 | V7: ='Est2018-19DistRev'!E7 -> 3.756 | W7: ='Est2018-19DistRev'!F7 -> 0 | X7: ='Est2018-19DistRev'!G7 -> 0 | Y7: ='Est2018-19DistRev'!H7 -> 0 | Z7: ='Est2018-19DistRev'!I7 -> 0 | AA7: ='Est2018-19DistRev'!J7 -> 0 | AB7: ='Est2018-19DistRev'!K7 -> 0 | AC7: ='Est2018-19DistRev'!L7 -> 0 | AD7: ='Est2018-19DistRev'!M7 -> 0 | AQ7: 125379.3729 | AR7: 750732253.2 | BH7: =D7/100*AQ7*'Model inputs'!$E$14 -> 12438172.92 | BI7: =E7/100*AR7 -> 27897210.53 | BJ7: =F7/100*AS7 -> 0 | BK7: =G7/100*AT7 -> 0 | BL7: =H7/100*AU7 -> 0 | BM7: =I7/100*AV7 -> 0 | BN7: =J7/100*AW7 -> 0 | BO7: =K7/100*AX7*'Model inputs'!$E$14 -> 0 | BP7: =L7/100*AY7*'Model inputs'!$E$14 -> 0 | BQ7: =M7/100*AZ7*'Model inputs'!$E$14 -> 0 | BZ7: =SUM(BH7:BY7) -> 40335383.45 | CB7: =U7/100*AQ7*'Model inputs'!$E$14 -> 12220200.88 | CC7: =V7/100*AR7 -> 28197503.43 | CD7: =W7/100*AS7 -> 0 | CE7: 0 | CF7: 0 | CG7: 0 | CH7: 0 | CI7: =AB7/100*AX7*'Model inputs'!$E$14 -> 0 | CJ7: =AC7/100*AY7*'Model inputs'!$E$14 -> 0 | CK7: =AD7/100*AZ7*'Model inputs'!$E$14 -> 0 | CW7: =SUM(CB7:CV7) -> 40417704.32
A8: 015 | B8: =C8 -> Residential TOU Network | C8: Residential TOU Network | D8: 27.105 | E8: 0 | F8: 0 | G8: 0 | H8: 8.212 | I8: 2.08 | J8: 1.019 | K8: 0 | L8: 0 | M8: 0 | U8: ='Est2018-19DistRev'!D8 -> 26.63 | V8: ='Est2018-19DistRev'!E8 -> 0 | W8: ='Est2018-19DistRev'!F8 -> 0 | X8: ='Est2018-19DistRev'!G8 -> 0 | Y8: ='Est2018-19DistRev'!H8 -> 8.38 | Z8: ='Est2018-19DistRev'!I8 -> 2.549 | AA8: ='Est2018-19DistRev'!J8 -> 0.35 | AB8: ='Est2018-19DistRev'!K8 -> 0 | AC8: ='Est2018-19DistRev'!L8 -> 0 | AD8: ='Est2018-19DistRev'!M8 -> 0 | AQ8: 36865.89208 | AU8: 55994396.57 | AV8: 78489040.22 | AW8: 56195943.49 | BH8: =D8/100*AQ8*'Model inputs'!$E$14 -> 3657255.018 | BI8: 0 | BJ8: 0 | BK8: 0 | BL8: 4598259.846 | BM8: 1632572.037 | BN8: 572636.6641 | BO8: =K8/100*AX8*'Model inputs'!$E$14 -> 0 | BP8: =L8/100*AY8*'Model inputs'!$E$14 -> 0 | BQ8: =M8/100*AZ8*'Model inputs'!$E$14 -> 0 | BZ8: 10460723.57 | CB8: =U8/100*AQ8*'Model inputs'!$E$14 -> 3593163.665 | CC8: =V8/100*AR8 -> 0 | CD8: 0 | CE8: 0 | CF8: 4692330.433 | CG8: 2000685.635 | CH8: 196685.8022 | CI8: =AB8/100*AX8*'Model inputs'!$E$14 -> 0 | CJ8: =AC8/100*AY8*'Model inputs'!$E$14 -> 0 | CK8: =AD8/100*AZ8*'Model inputs'!$E$14 -> 0 | CW8: 10482865.53
A9: 020 | B9: Residential 5000 Network | C9: Residential 5000 Network | D9: 48.989 | E9: 0 | F9: 2.431 | G9: 2.935 | H9: 0 | I9: 0 | J9: 0 | K9: 0 | L9: 0 | M9: 0 | U9: ='Est2018-19DistRev'!D9 -> 48.13 | V9: ='Est2018-19DistRev'!E9 -> 0 | W9: ='Est2018-19DistRev'!F9 -> 2.456 | X9: ='Est2018-19DistRev'!G9 -> 3.756 | Y9: ='Est2018-19DistRev'!H9 -> 0 | Z9: ='Est2018-19DistRev'!I9 -> 0 | AA9: ='Est2018-19DistRev'!J9 -> 0 | AB9: ='Est2018-19DistRev'!K9 -> 0 | AC9: ='Est2018-19DistRev'!L9 -> 0 | AD9: ='Est2018-19DistRev'!M9 -> 0 | AQ9: 3933.797917 | AS9: 29267110.6 | AT9: 866011.4945 | BH9: =D9/100*AQ9*'Model inputs'!$E$14 -> 705328.9437 | BI9: 0 | BJ9: 711483.4587 | BK9: 25417.43736 | BL9: 0 | BM9: 0 | BN9: 0 | BO9: =K9/100*AX9*'Model inputs'!$E$14 -> 0 | BP9: =L9/100*AY9*'Model inputs'!$E$14 -> 0 | BQ9: =M9/100*AZ9*'Model inputs'!$E$14 -> 0 | BZ9: 1442229.84 | CB9: =U9/100*AQ9*'Model inputs'!$E$14 -> 692961.319 | CC9: 0 | CD9: 718800.2364 | CE9: 32527.39173 | CF9: 0 | CG9: 0 | CH9: 0 | CI9: =AB9/100*AX9*'Model inputs'!$E$14 -> 0 | CJ9: =AC9/100*AY9*'Model inputs'!$E$14 -> 0 | CK9: =AD9/100*AZ9*'Model inputs'!$E$14 -> 0 | CW9: 1444288.947
A10: 030 | B10: Residential with Heat Pump Network | C10: Residential with Heat Pump Network | D10: 93.061 | E10: 0 | F10: 0.977 | G10: 1.543 | H10: 0 | I10: 0 | J10: 0 | K10: 0 | L10: 0 | M10: 0 | U10: ='Est2018-19DistRev'!D10 -> 91.43 | V10: ='Est2018-19DistRev'!E10 -> 0 | W10: ='Est2018-19DistRev'!F10 -> 0.996 | X10: ='Est2018-19DistRev'!G10 -> 3.756 | Y10: ='Est2018-19DistRev'!H10 -> 0 | Z10: ='Est2018-19DistRev'!I10 -> 0 | AA10: ='Est2018-19DistRev'!J10 -> 0 | AB10: ='Est2018-19DistRev'!K10 -> 0 | AC10: ='Est2018-19DistRev'!L10 -> 0 | AD10: ='Est2018-19DistRev'!M10 -> 0 | AQ10: 4828.797917 | AS10: 60221624.82 | AT10: 739416.9216 | BH10: =D10/100*AQ10*'Model inputs'!$E$14 -> 1644704.312 | BI10: 0 | BJ10: 588365.2745 | BK10: 11409.2031 | BL10: 0 | BM10: 0 | BN10: 0 | BO10: =K10/100*AX10*'Model inputs'!$E$14 -> 0 | BP10: =L10/100*AY10*'Model inputs'!$E$14 -> 0 | BQ10: =M10/100*AZ10*'Model inputs'!$E$14 -> 0 | BZ10: 2244478.79 | CB10: =U10/100*AQ10*'Model inputs'!$E$14 -> 1615878.996 | CC10: 0 | CD10: 599807.3832 | CE10: 27772.49957 | CF10: 0 | CG10: 0 | CH10: 0 | CI10: =AB10/100*AX10*'Model inputs'!$E$14 -> 0 | CJ10: =AC10/100*AY10*'Model inputs'!$E$14 -> 0 | CK10: =AD10/100*AZ10*'Model inputs'!$E$14 -> 0 | CW10: 2243458.879
A11: 060 | B11: Off-Peak (1) Night Network | C11: Off-Peak (1) Night Network | D11: 0 | E11: 0 | F11: 0 | G11: 0 | H11: 0 | I11: 0 | J11: 0.215 | K11: 0 | L11: 0 | M11: 0 | U11: ='Est2018-19DistRev'!D11 -> 0 | V11: ='Est2018-19DistRev'!E11 -> 0 | W11: ='Est2018-19DistRev'!F11 -> 0 | X11: ='Est2018-19DistRev'!G11 -> 0 | Y11: ='Est2018-19DistRev'!H11 -> 0 | Z11: ='Est2018-19DistRev'!I11 -> 0 | AA11: ='Est2018-19DistRev'!J11 -> 0.217 | AB11: ='Est2018-19DistRev'!K11 -> 0 | AC11: ='Est2018-19DistRev'!L11 -> 0 | AD11: ='Est2018-19DistRev'!M11 -> 0 | AW11: 11564212.89 | BH11: =D11/100*AQ11*'Model inputs'!$E$14 -> 0 | BI11: 0 | BJ11: 0 | BK11: 0 | BL11: 0 | BM11: 0 | BN11: 24863.05771 | BO11: =K11/100*AX11*'Model inputs'!$E$14 -> 0 | BP11: =L11/100*AY11*'Model inputs'!$E$14 -> 0 | BQ11: =M11/100*AZ11*'Model inputs'!$E$14 -> 0 | BZ11: 24863.05771 | CB11: =U11/100*AQ11*'Model inputs'!$E$14 -> 0 | CC11: 0 | CD11: 0 | CE11: 0 | CF11: 0 | CG11: 0 | CH11: 25094.34197 | CI11: =AB11/100*AX11*'Model inputs'!$E$14 -> 0 | CJ11: =AC11/100*AY11*'Model inputs'!$E$14 -> 0 | CK11: =AD11/100*AZ11*'Model inputs'!$E$14 -> 0 | CW11: 25094.34197
A12: 070 | B12: Off-Peak (3) Day & Night Network | C12: Off-Peak (3) Day & Night Network | D12: 0 | E12: 0 | F12: 0 | G12: 0 | H12: 0 | I12: 0 | J12: 0.327 | K12: 0 | L12: 0 | M12: 0 | U12: ='Est2018-19DistRev'!D12 -> 0 | V12: ='Est2018-19DistRev'!E12 -> 0 | W12: ='Est2018-19DistRev'!F12 -> 0 | X12: ='Est2018-19DistRev'!G12 -> 0 | Y12: ='Est2018-19DistRev'!H12 -> 0 | Z12: ='Est2018-19DistRev'!I12 -> 0 | AA12: ='Est2018-19DistRev'!J12 -> 0.329 | AB12: ='Est2018-19DistRev'!K12 -> 0 | AC12: ='Est2018-19DistRev'!L12 -> 0 | AD12: ='Est2018-19DistRev'!M12 -> 0 | AW12: 74967089.13 | BH12: =D12/100*AQ12*'Model inputs'!$E$14 -> 0 | BI12: 0 | BJ12: 0 | BK12: 0 | BL12: 0 | BM12: 0 | BN12: 245142.3815 | BO12: =K12/100*AX12*'Model inputs'!$E$14 -> 0 | BP12: =L12/100*AY12*'Model inputs'!$E$14 -> 0 | BQ12: =M12/100*AZ12*'Model inputs'!$E$14 -> 0 | BZ12: 245142.3815 | CB12: =U12/100*AQ12*'Model inputs'!$E$14 -> 0 | CC12: 0 | CD12: 0 | CE12: 0 | CF12: 0 | CG12: 0 | CH12: 246641.7232 | CI12: =AB12/100*AX12*'Model inputs'!$E$14 -> 0 | CJ12: =AC12/100*AY12*'Model inputs'!$E$14 -> 0 | CK12: =AD12/100*AZ12*'Model inputs'!$E$14 -> 0 | CW12: 246641.7232
A13: 025 | B13: =C13 -> Residential Demand Network | C13: Residential Demand Network | D13: 24.53 | E13: 0.217 | F13: 0 | G13: 0 | H13: 0 | I13: 0 | J13: 0 | K13: 12.323 | U13: ='Est2018-19DistRev'!D13 -> 26.63 | V13: ='Est2018-19DistRev'!E13 -> 0.312 | W13: ='Est2018-19DistRev'!F13 -> 0 | X13: ='Est2018-19DistRev'!G13 -> 0 | Y13: ='Est2018-19DistRev'!H13 -> 0 | Z13: ='Est2018-19DistRev'!I13 -> 0 | AA13: ='Est2018-19DistRev'!J13 -> 0 | AB13: ='Est2018-19DistRev'!K13 -> 11.41 | AC13: ='Est2018-19DistRev'!L13 -> 0 | AD13: ='Est2018-19DistRev'!M13 -> 0 | AQ13: 15800.38917 | AR13: 64156094 | AX13: 51543.45693 | BH13: =D13/100*AQ13*'Model inputs'!$E$14 -> 1418555.779 | BI13: 139218.724 | BJ13: 0 | BK13: 0 | BL13: 0 | BM13: 0 | BN13: 0 | BO13: =K13/100*AX13*'Model inputs'!$E$14 -> 2324722.272 | BP13: =L13/100*AY13*'Model inputs'!$E$14 -> 0 | BQ13: =M13/100*AZ13*'Model inputs'!$E$14 -> 0 | BZ13: 3882496.776 | CB13: =U13/100*AQ13*'Model inputs'!$E$14 -> 1539997.57 | CC13: 200167.0133 | CD13: 0 | CE13: 0 | CF13: 0 | CG13: 0 | CH13: 0 | CI13: =AB13/100*AX13*'Model inputs'!$E$14 -> 2152485.687 | CJ13: =AC13/100*AY13*'Model inputs'!$E$14 -> 0 | CK13: =AD13/100*AZ13*'Model inputs'!$E$14 -> 0 | CW13: =SUM(CB13:CV13) -> 3892650.271
D14: 0 | E14: 0 | F14: 0 | G14: 0 | H14: 0 | I14: 0 | J14: 0 | K14: 0 | L14: 0 | M14: 0 | U14: ='Est2018-19DistRev'!D14 -> 0 | V14: ='Est2018-19DistRev'!E14 -> 0 | W14: ='Est2018-19DistRev'!F14 -> 0 | X14: ='Est2018-19DistRev'!G14 -> 0 | Y14: ='Est2018-19DistRev'!H14 -> 0 | Z14: ='Est2018-19DistRev'!I14 -> 0 | AA14: ='Est2018-19DistRev'!J14 -> 0 | AB14: ='Est2018-19DistRev'!K14 -> 0 | AC14: ='Est2018-19DistRev'!L14 -> 0 | AD14: ='Est2018-19DistRev'!M14 -> 0 | BH14: =D14/100*AQ14*'Model inputs'!$E$14 -> 0 | BI14: 0 | BJ14: 0 | BK14: 0 | BL14: 0 | BM14: 0 | BN14: 0 | BO14: =K14/100*AX14*'Model inputs'!$E$14 -> 0 | BP14: =L14/100*AY14*'Model inputs'!$E$14 -> 0 | BQ14: =M14/100*AZ14*'Model inputs'!$E$14 -> 0 | BZ14: 0 | CB14: =U14/100*AQ14*'Model inputs'!$E$14 -> 0 | CC14: 0 | CD14: 0 | CE14: 0 | CF14: 0 | CG14: 0 | CH14: 0 | CI14: =AB14/100*AX14*'Model inputs'!$E$14 -> 0 | CJ14: =AC14/100*AY14*'Model inputs'!$E$14 -> 0 | CK14: =AD14/100*AZ14*'Model inputs'!$E$14 -> 0 | CW14: 0
A15: 040 | B15: General Network | C15: General Network | D15: 49.569 | E15: 0 | F15: 7.09 | G15: 9.21 | H15: 0 | I15: 0 | J15: 0 | K15: 0 | L15: 0 | M15: 0 | U15: ='Est2018-19DistRev'!D15 -> 48.7 | V15: ='Est2018-19DistRev'!E15 -> 0 | W15: ='Est2018-19DistRev'!F15 -> 7.073 | X15: ='Est2018-19DistRev'!G15 -> 10.437 | Y15: ='Est2018-19DistRev'!H15 -> 0 | Z15: ='Est2018-19DistRev'!I15 -> 0 | AA15: ='Est2018-19DistRev'!J15 -> 0 | AB15: ='Est2018-19DistRev'!K15 -> 0 | AC15: ='Est2018-19DistRev'!L15 -> 0 | AD15: ='Est2018-19DistRev'!M15 -> 0 | AQ15: 11678.65625 | AS15: 180662648 | AT15: 13067598.78 | BH15: =D15/100*AQ15*'Model inputs'!$E$14 -> 2118771.481 | BI15: 0 | BJ15: 12808981.74 | BK15: 1203525.848 | BL15: 0 | BM15: 0 | BN15: 0 | BO15: =K15/100*AX15*'Model inputs'!$E$14 -> 0 | BP15: =L15/100*AY15*'Model inputs'!$E$14 -> 0 | BQ15: =M15/100*AZ15*'Model inputs'!$E$14 -> 0 | BZ15: 16131279.07 | CB15: =U15/100*AQ15*'Model inputs'!$E$14 -> 2081627.047 | CC15: 0 | CD15: 12778269.09 | CE15: 1363865.285 | CF15: 0 | CG15: 0 | CH15: 0 | CI15: =AB15/100*AX15*'Model inputs'!$E$14 -> 0 | CJ15: =AC15/100*AY15*'Model inputs'!$E$14 -> 0 | CK15: =AD15/100*AZ15*'Model inputs'!$E$14 -> 0 | CW15: 16223761.42
A16: 090 | B16: =C16 -> General TOU Network | C16: General TOU Network | D16: 49.569 | E16: 0 | F16: 0 | G16: 0 | H16: 11.623 | I16: 4.359 | J16: 1.971 | K16: 0 | L16: 0 | M16: 0 | U16: ='Est2018-19DistRev'!D16 -> 48.7 | V16: ='Est2018-19DistRev'!E16 -> 0 | W16: ='Est2018-19DistRev'!F16 -> 0 | X16: ='Est2018-19DistRev'!G16 -> 0 | Y16: ='Est2018-19DistRev'!H16 -> 11.86 | Z16: ='Est2018-19DistRev'!I16 -> 4.568 | AA16: ='Est2018-19DistRev'!J16 -> 1.776 | AB16: ='Est2018-19DistRev'!K16 -> 0 | AC16: ='Est2018-19DistRev'!L16 -> 0 | AD16: ='Est2018-19DistRev'!M16 -> 0 | AQ16: 3530.968226 | AU16: 77093171.92 | AV16: 33846089.99 | AW16: 90092863.81 | BH16: =D16/100*AQ16*'Model inputs'!$E$14 -> 640597.2243 | BI16: 0 | BJ16: 0 | BK16: 0 | BL16: 8960539.372 | BM16: 1475351.063 | BN16: 1775730.346 | BO16: =K16/100*AX16*'Model inputs'!$E$14 -> 0 | BP16: =L16/100*AY16*'Model inputs'!$E$14 -> 0 | BQ16: =M16/100*AZ16*'Model inputs'!$E$14 -> 0 | BZ16: 12852218 | CB16: =U16/100*AQ16*'Model inputs'!$E$14 -> 629366.8386 | CC16: 0 | CD16: 0 | CE16: 0 | CF16: 9143250.19 | CG16: 1546089.391 | CH16: 1600049.261 | CI16: =AB16/100*AX16*'Model inputs'!$E$14 -> 0 | CJ16: =AC16/100*AY16*'Model inputs'!$E$14 -> 0 | CK16: =AD16/100*AZ16*'Model inputs'!$E$14 -> 0 | CW16: =SUM(CB16:CV16) -> 12918755.68
A17: 101 | B17: =C17 -> LV TOU kVA Demand Network | C17: LV TOU kVA Demand Network | D17: 55.695 | E17: 0 | F17: 0 | G17: 0 | H17: 1.678 | I17: 0.926 | J17: 0.504 | K17: 0 | L17: 35.143 | M17: 0 | U17: ='Est2018-19DistRev'!D17 -> 54.719 | V17: ='Est2018-19DistRev'!E17 -> 0 | W17: ='Est2018-19DistRev'!F17 -> 0 | X17: ='Est2018-19DistRev'!G17 -> 0 | Y17: ='Est2018-19DistRev'!H17 -> 1.91 | Z17: ='Est2018-19DistRev'!I17 -> 0.715 | AA17: ='Est2018-19DistRev'!J17 -> 0.264 | AB17: ='Est2018-19DistRev'!K17 -> 0 | AC17: ='Est2018-19DistRev'!L17 -> 35.86 | AD17: ='Est2018-19DistRev'!M17 -> 0 | AQ17: 1670.33727 | AU17: 265878059.4 | AV17: 96902363.92 | AW17: 299727066.3 | AY17: 164093.4961 | BH17: =D17/100*AQ17*'Model inputs'!$E$14 -> 340487.7294 | BI17: 0 | BJ17: 0 | BK17: 0 | BL17: 4461433.837 | BM17: 897315.8899 | BN17: 1510624.414 | BO17: =K17/100*AX17*'Model inputs'!$E$14 -> 0 | BP17: =L17/100*AY17*'Model inputs'!$E$14 -> 21106260.1 | BQ17: =M17/100*AZ17*'Model inputs'!$E$14 -> 0 | BZ17: 28316121.97 | CB17: =U17/100*AQ17*'Model inputs'!$E$14 -> 334521.0174 | CC17: 0 | CD17: 0 | CE17: 0 | CF17: 5078270.935 | CG17: 692851.902 | CH17: 791279.455 | CI17: =AB17/100*AX17*'Model inputs'!$E$14 -> 0 | CJ17: =AC17/100*AY17*'Model inputs'!$E$14 -> 21536877.54 | CK17: =AD17/100*AZ17*'Model inputs'!$E$14 -> 0 | CW17: =SUM(CB17:CV17) -> 28433800.85
A18: 103 | B18: =C18 -> LV TOU Capacity Network | C18: LV TOU Capacity Network | D18: 55.695 | E18: 0 | F18: 0 | G18: 0 | H18: 1.109 | I18: 0.612 | J18: 0.333 | K18: 0 | L18: 18.295 | M18: 18.295 | U18: ='Est2018-19DistRev'!D18 -> 54.719 | V18: ='Est2018-19DistRev'!E18 -> 0 | W18: ='Est2018-19DistRev'!F18 -> 0 | X18: ='Est2018-19DistRev'!G18 -> 0 | Y18: ='Est2018-19DistRev'!H18 -> 1.91 | Z18: ='Est2018-19DistRev'!I18 -> 0.715 | AA18: ='Est2018-19DistRev'!J18 -> 0.264 | AB18: ='Est2018-19DistRev'!K18 -> 0 | AC18: ='Est2018-19DistRev'!L18 -> 16.72 | AD18: ='Est2018-19DistRev'!M18 -> 16.72 | AQ18: 61.33959027 | AU18: 17111854.46 | AV18: 7451206.072 | AW18: 25612786.78 | AY18: 9713.101791 | AZ18: 11243.77696 | BH18: =D18/100*AQ18*'Model inputs'!$E$14 -> 12503.68904 | BI18: 0 | BJ18: 0 | BK18: 0 | BL18: 189770.4659 | BM18: 45601.38116 | BN18: 85290.57999 | BO18: =K18/100*AX18*'Model inputs'!$E$14 -> 0 | BP18: =L18/100*AY18*'Model inputs'!$E$14 -> 650386.382 | BQ18: =M18/100*AZ18*'Model inputs'!$E$14 -> 752879.9321 | BZ18: 1736432.43 | CB18: =U18/100*AQ18*'Model inputs'!$E$14 -> 12284.57421 | CC18: 0 | CD18: 0 | CE18: 0 | CF18: 326836.4201 | CG18: 53276.12341 | CH18: 67617.75711 | CI18: =AB18/100*AX18*'Model inputs'!$E$14 -> 0 | CJ18: =AC18/100*AY18*'Model inputs'!$E$14 -> 594395.2067 | CK18: =AD18/100*AZ18*'Model inputs'!$E$14 -> 688065.1798 | CW18: =SUM(CB18:CV18) -> 1742475.261
A19: 106 | B19: =C19 -> LV Demand Network | C19: LV Demand Network | D19: 49.569 | E19: 0.992 | F19: 0 | G19: 0 | H19: 0 | I19: 0 | J19: 0 | K19: 35.251 | L19: 0 | M19: 0 | U19: ='Est2018-19DistRev'!D19 -> 48.7 | V19: ='Est2018-19DistRev'!E19 -> 0.93 | W19: ='Est2018-19DistRev'!F19 -> 0 | X19: ='Est2018-19DistRev'!G19 -> 0 | Y19: ='Est2018-19DistRev'!H19 -> 0 | Z19: ='Est2018-19DistRev'!I19 -> 0 | AA19: ='Est2018-19DistRev'!J19 -> 0 | AB19: ='Est2018-19DistRev'!K19 -> 35.97 | AC19: ='Est2018-19DistRev'!L19 -> 0 | AD19: ='Est2018-19DistRev'!M19 -> 0 | AQ19: 1704.77526 | AR19: 204431045 | AX19: 71517.87226 | BH19: =D19/100*AQ19*'Model inputs'!$E$14 -> 309284.6579 | BI19: 2027955.966 | BJ19: 0 | BK19: 0 | BL19: 0 | BM19: 0 | BN19: 0 | BO19: =K19/100*AX19*'Model inputs'!$E$14 -> 9227140.045 | BP19: =L19/100*AY19*'Model inputs'!$E$14 -> 0 | BQ19: =M19/100*AZ19*'Model inputs'!$E$14 -> 0 | BZ19: 11564380.67 | CB19: =U19/100*AQ19*'Model inputs'!$E$14 -> 303862.552 | CC19: 1901208.718 | CD19: 0 | CE19: 0 | CF19: 0 | CG19: 0 | CH19: 0 | CI19: =AB19/100*AX19*'Model inputs'!$E$14 -> 9415342.187 | CJ19: =AC19/100*AY19*'Model inputs'!$E$14 -> 0 | CK19: =AD19/100*AZ19*'Model inputs'!$E$14 -> 0 | CW19: =SUM(CB19:CV19) -> 11620413.46
A20: 135 | B20: Small Unmetered Loads Network | C20: Small Unmetered Loads Network | D20: 40.307 | E20: 7.815 | F20: 0 | G20: 0 | H20: 0 | I20: 0 | J20: 0 | K20: 0 | L20: 0 | M20: 0 | U20: ='Est2018-19DistRev'!D20 -> 39.6 | V20: ='Est2018-19DistRev'!E20 -> 7.861 | W20: ='Est2018-19DistRev'!F20 -> 0 | X20: ='Est2018-19DistRev'!G20 -> 0 | Y20: ='Est2018-19DistRev'!H20 -> 0 | Z20: ='Est2018-19DistRev'!I20 -> 0 | AA20: ='Est2018-19DistRev'!J20 -> 0 | AB20: ='Est2018-19DistRev'!K20 -> 0 | AC20: ='Est2018-19DistRev'!L20 -> 0 | AD20: ='Est2018-19DistRev'!M20 -> 0 | AQ20: 23.90968695 | AR20: 3268461.745 | BH20: =D20/100*AQ20*'Model inputs'!$E$14 -> 3527.243572 | BI20: 255430.2854 | BJ20: 0 | BK20: 0 | BL20: 0 | BM20: 0 | BN20: 0 | BO20: =K20/100*AX20*'Model inputs'!$E$14 -> 0 | BP20: =L20/100*AY20*'Model inputs'!$E$14 -> 0 | BQ20: =M20/100*AZ20*'Model inputs'!$E$14 -> 0 | BZ20: 258957.529 | CB20: =U20/100*AQ20*'Model inputs'!$E$14 -> 3465.374388 | CC20: 256933.7778 | CD20: 0 | CE20: 0 | CF20: 0 | CG20: 0 | CH20: 0 | CI20: =AB20/100*AX20*'Model inputs'!$E$14 -> 0 | CJ20: =AC20/100*AY20*'Model inputs'!$E$14 -> 0 | CK20: =AD20/100*AZ20*'Model inputs'!$E$14 -> 0 | CW20: 260399.1522
A21: 080 | B21: Streetlighting Network | C21: Streetlighting Network | D21: 49.874 | E21: 4.445 | F21: 0 | G21: 0 | H21: 0 | I21: 0 | J21: 0 | K21: 0 | L21: 0 | M21: 0 | U21: ='Est2018-19DistRev'!D21 -> 49 | V21: ='Est2018-19DistRev'!E21 -> 4.464 | W21: ='Est2018-19DistRev'!F21 -> 0 | X21: ='Est2018-19DistRev'!G21 -> 0 | Y21: ='Est2018-19DistRev'!H21 -> 0 | Z21: ='Est2018-19DistRev'!I21 -> 0 | AA21: ='Est2018-19DistRev'!J21 -> 0 | AB21: ='Est2018-19DistRev'!K21 -> 0 | AC21: ='Est2018-19DistRev'!L21 -> 0 | AD21: ='Est2018-19DistRev'!M21 -> 0 | AQ21: 20.42364638 | AR21: 39998575.03 | BH21: =D21/100*AQ21*'Model inputs'!$E$14 -> 3728.108719 | BI21: 1777936.66 | BJ21: 0 | BK21: 0 | BL21: 0 | BM21: 0 | BN21: 0 | BO21: =K21/100*AX21*'Model inputs'!$E$14 -> 0 | BP21: =L21/100*AY21*'Model inputs'!$E$14 -> 0 | BQ21: =M21/100*AZ21*'Model inputs'!$E$14 -> 0 | BZ21: 1781664.769 | CB21: =U21/100*AQ21*'Model inputs'!$E$14 -> 3662.776742 | CC21: 1785536.39 | CD21: 0 | CE21: 0 | CF21: 0 | CG21: 0 | CH21: 0 | CI21: =AB21/100*AX21*'Model inputs'!$E$14 -> 0 | CJ21: =AC21/100*AY21*'Model inputs'!$E$14 -> 0 | CK21: =AD21/100*AZ21*'Model inputs'!$E$14 -> 0 | CW21: 1789199.166
D22: 0 | E22: 0 | F22: 0 | G22: 0 | H22: 0 | I22: 0 | J22: 0 | K22: 0 | L22: 0 | M22: 0 | U22: ='Est2018-19DistRev'!D22 -> 0 | V22: ='Est2018-19DistRev'!E22 -> 0 | W22: ='Est2018-19DistRev'!F22 -> 0 | X22: ='Est2018-19DistRev'!G22 -> 0 | Y22: ='Est2018-19DistRev'!H22 -> 0 | Z22: ='Est2018-19DistRev'!I22 -> 0 | AA22: ='Est2018-19DistRev'!J22 -> 0 | AB22: ='Est2018-19DistRev'!K22 -> 0 | AC22: ='Est2018-19DistRev'!L22 -> 0 | AD22: ='Est2018-19DistRev'!M22 -> 0 | BH22: =D22/100*AQ22*'Model inputs'!$E$14 -> 0 | BI22: 0 | BJ22: 0 | BK22: 0 | BL22: 0 | BM22: 0 | BN22: 0 | BO22: =K22/100*AX22*'Model inputs'!$E$14 -> 0 | BP22: =L22/100*AY22*'Model inputs'!$E$14 -> 0 | BQ22: =M22/100*AZ22*'Model inputs'!$E$14 -> 0 | CB22: =U22/100*AQ22*'Model inputs'!$E$14 -> 0 | CC22: 0 | CD22: 0 | CE22: 0 | CF22: 0 | CG22: 0 | CH22: 0 | CI22: =AB22/100*AX22*'Model inputs'!$E$14 -> 0 | CJ22: =AC22/100*AY22*'Model inputs'!$E$14 -> 0 | CK22: =AD22/100*AZ22*'Model inputs'!$E$14 -> 0
A23: 111 | B23: HV TOU Demand Network | C23: HV TOU Demand Network | D23: 2035.7 | E23: 0 | F23: 0 | G23: 0 | H23: 1.19 | I23: 0.676 | J23: 0.394 | K23: 0 | L23: 10.378 | M23: 10.378 | U23: ='Est2018-19DistRev'!D23 -> 2000 | V23: ='Est2018-19DistRev'!E23 -> 0 | W23: ='Est2018-19DistRev'!F23 -> 0 | X23: ='Est2018-19DistRev'!G23 -> 0 | Y23: ='Est2018-19DistRev'!H23 -> 1.536 | Z23: ='Est2018-19DistRev'!I23 -> 0.498 | AA23: ='Est2018-19DistRev'!J23 -> 0.137 | AB23: ='Est2018-19DistRev'!K23 -> 0 | AC23: ='Est2018-19DistRev'!L23 -> 10.59 | AD23: ='Est2018-19DistRev'!M23 -> 10.59 | AQ23: 1 | AU23: 2714539.113 | AV23: 1132142.525 | AW23: 3447505.058 | AY23: 1589.572824 | AZ23: 2028.89842 | BH23: =D23/100*AQ23*'Model inputs'!$E$14 -> 7450.662 | BI23: 0 | BJ23: 0 | BK23: 0 | BL23: 32303.01545 | BM23: 7653.28347 | BN23: 13583.16993 | BO23: =K23/100*AX23*'Model inputs'!$E$14 -> 0 | BP23: =L23/100*AY23*'Model inputs'!$E$14 -> 60377.50755 | BQ23: =M23/100*AZ23*'Model inputs'!$E$14 -> 77064.62258 | BZ23: =SUM(BH23:BY23) -> 198432.261 | CB23: =U23/100*AQ23*'Model inputs'!$E$14 -> 7320 | CC23: 0 | CD23: =W23/100*AS23 -> 0 | CE23: =X23/100*AT23 -> 0 | CF23: =Y23/100*AU23 -> 41695.32078 | CG23: =Z23/100*AV23 -> 5638.069775 | CH23: =AA23/100*AW23 -> 4723.08193 | CI23: =AB23/100*AX23*'Model inputs'!$E$14 -> 0 | CJ23: =AC23/100*AY23*'Model inputs'!$E$14 -> 61610.8889 | CK23: =AD23/100*AZ23*'Model inputs'!$E$14 -> 78638.88544 | CW23: 199626.2468
A24: 121 | B24: HV TOU Demand Network – Customer LV | C24: HV TOU Demand Network – Customer LV | D24: 2035.7 | E24: 0 | F24: 0 | G24: 0 | H24: 0.749 | I24: 0.443 | J24: 0.267 | K24: 0 | L24: 10.353 | M24: 10.353 | U24: ='Est2018-19DistRev'!D24 -> 2000 | V24: ='Est2018-19DistRev'!E24 -> 0 | W24: ='Est2018-19DistRev'!F24 -> 0 | X24: ='Est2018-19DistRev'!G24 -> 0 | Y24: ='Est2018-19DistRev'!H24 -> 0.986 | Z24: ='Est2018-19DistRev'!I24 -> 0.298 | AA24: ='Est2018-19DistRev'!J24 -> 0.077 | AB24: ='Est2018-19DistRev'!K24 -> 0 | AC24: ='Est2018-19DistRev'!L24 -> 10.59 | AD24: ='Est2018-19DistRev'!M24 -> 10.59 | AQ24: 21.41865258 | AU24: 118297254.9 | AV24: 45733554.98 | AW24: 149905321 | AY24: 58848.53748 | AZ24: 68103.37407 | BH24: =D24/100*AQ24*'Model inputs'!$E$14 -> 159583.1409 | BI24: 0 | BJ24: 0 | BK24: 0 | BL24: 886046.4389 | BM24: 202599.6486 | BN24: 400247.2072 | BO24: =K24/100*AX24*'Model inputs'!$E$14 -> 0 | BP24: =L24/100*AY24*'Model inputs'!$E$14 -> 2229887.605 | BQ24: =M24/100*AZ24*'Model inputs'!$E$14 -> 2580571.688 | BZ24: =SUM(BH24:BY24) -> 6458935.729 | CB24: =U24/100*AQ24*'Model inputs'!$E$14 -> 156784.5369 | CC24: 0 | CD24: 0 | CE24: 0 | CF24: 1166410.933 | CG24: 136285.9938 | CH24: 115427.0972 | CI24: =AB24/100*AX24*'Model inputs'!$E$14 -> 0 | CJ24: =AC24/100*AY24*'Model inputs'!$E$14 -> 2280934.004 | CK24: =AD24/100*AZ24*'Model inputs'!$E$14 -> 2639645.917 | CW24: 6495488.482
A25: 122 | B25: HV TOU Demand Network – Customer HV and LV | C25: HV TOU Demand Network – Customer HV and LV | D25: 2035.7 | E25: 0 | F25: 0 | G25: 0 | H25: 0.442 | I25: 0.261 | J25: 0.157 | K25: 0 | L25: 10.016 | M25: 10.016 | U25: ='Est2018-19DistRev'!D25 -> 2000 | V25: ='Est2018-19DistRev'!E25 -> 0 | W25: ='Est2018-19DistRev'!F25 -> 0 | X25: ='Est2018-19DistRev'!G25 -> 0 | Y25: ='Est2018-19DistRev'!H25 -> 0.986 | Z25: ='Est2018-19DistRev'!I25 -> 0.298 | AA25: ='Est2018-19DistRev'!J25 -> 0.077 | AB25: ='Est2018-19DistRev'!K25 -> 0 | AC25: ='Est2018-19DistRev'!L25 -> 9.09 | AD25: ='Est2018-19DistRev'!M25 -> 9.09 | AQ25: 11.87096285 | AU25: 18639720.33 | AV25: 8742244.557 | AW25: 29629694.64 | AY25: 10017.68031 | AZ25: 11703.87283 | BH25: =D25/100*AQ25*'Model inputs'!$E$14 -> 88446.53181 | BI25: 0 | BJ25: 0 | BK25: 0 | BL25: 82387.56386 | BM25: 22817.25829 | BN25: 46518.62058 | BO25: =K25/100*AX25*'Model inputs'!$E$14 -> 0 | BP25: =L25/100*AY25*'Model inputs'!$E$14 -> 367233.7347 | BQ25: =M25/100*AZ25*'Model inputs'!$E$14 -> 429047.1242 | BZ25: =SUM(BH25:BY25) -> 1036450.833 | CB25: =U25/100*AQ25*'Model inputs'!$E$14 -> 86895.44806 | CC25: 0 | CD25: 0 | CE25: 0 | CF25: 183787.6425 | CG25: 26051.88878 | CH25: 22814.86487 | CI25: =AB25/100*AX25*'Model inputs'!$E$14 -> 0 | CJ25: =AC25/100*AY25*'Model inputs'!$E$14 -> 333282.2133 | CK25: =AD25/100*AZ25*'Model inputs'!$E$14 -> 389380.8266 | CW25: 1042212.884
CC26: 0 | CD26: 0 | CE26: 0 | CF26: 0 | CG26: 0 | CH26: 0
AQ65: =SUM(AQ6:AQ64) -> 205532.9495 | AR65: 1062586429 | AS65: 270151383.4 | AT65: 14673027.2 | AU65: 555728996.7 | AV65: 272296642.3 | AW65: 741142483.1 | AX65: 123061.3292 | AY65: 244262.3885 | AZ65: 93079.92228 | BA65: 0 | BB65: 0 | BC65: 0 | BD65: 0 | BE65: 0 | BF65: 0 | BH65: =SUM(BH6:BH64) -> 23548397.45 | BI65: 32097752.16 | BJ65: 14108830.48 | BK65: 1240352.488 | BL65: 19210740.54 | BM65: 4283910.56 | BN65: 4674636.441 | BO65: 11551862.32 | BP65: 24414145.33 | BQ65: 3839563.367 | BR65: 0 | BS65: 0 | BZ65: =SUM(BZ6:BZ64) -> 138970191.1 | CB65: =SUM(CB6:CB64) -> 23281992.6 | CC65: 32341349.33 | CD65: 14096876.71 | CE65: 1424165.176 | CF65: 20632581.87 | CG65: 4460879.004 | CH65: 3070333.385 | CI65: 11567827.87 | CJ65: 24807099.85 | CK65: 3795730.809 | CL65: 0 | CM65: 0 | CN65: 0 | CO65: 0 | CP65: 0 | CQ65: 0 | CR65: 0 | CS65: 0 | CT65: 0 | CU65: 0 | CV65: 0 | CW65: 139478836.6

Sheet 2019-20DistRevCapForm
B2: ="Tariff Approval - "&'Model inputs'!C3 -> Tariff Approval - Evoenergy
B4: DUoS
B6: Year (t) | C6: ='Model inputs'!C4 -> 2019/20
B8: Table 1- Compliance with AER Final Determination Total Annual Revenue
B9: Revenue from DUoS charges for year t | C9: ='Prop2019-20DistTar'!BZ65 -> 138970191.1
B10: Total Annual Revenue for year t | C10: =C19 -> 138972964.3
C11: =IF(C9="","",IF(C10>=C9,"DUoS REVENUE CAP FORMULA COMPLIANT","DUoS REVENUE CAP FORMULA BREACHED")) -> DUoS REVENUE CAP FORMULA COMPLIANT
B13: Table 2 - Total Annual Revenue for year t (TARt)
B14: Adjusted Annual Smoothed Revenue for year t | C14: =C27 -> 134776431.7
B15: I factor for year t (DMIS & DMIA adjustments) | C15: ='Model inputs'!E19 -> 0
B16: B factor for year t (true up for under or over recovery) | C16: ='Model inputs'!E20 -> 0
B17: C factor for year t (approved cost pass through amounts) | C17: ='Model inputs'!E21*(1+'Model inputs'!E13) -> 4446008.091
B18: RV factor for year t (remittal variance) | C18: ='Model inputs'!E25*(1+'Model inputs'!E13) -> -249475.5188
B19: Total Annual Revenue for year t | C19: =C14+C15+C16+C17+C18 -> 138972964.3
B21: Table 3 - Adjusted Annual Revenue for year t (AARt)
B22: Annual smoothed revenue requirement in the PTRM for year t (t=1) | C22: ='Model inputs'!E16 -> 133474765.6
B23: Adjusted Annual Smoothed Revenue for year t-1 (t=2,…,5)
B24: CPI for period t
B25: X factor for period t
B26: S factor for period t | C26: ='Model inputs'!E18 -> 0.009752151029
B27: Adjusted Annual Smoothed Revenue for year t | C27: =C22*(1+C26) -> 134776431.7
B30: Table 4 - DUoS Recovery Arrangements
C31: Year t-2 | D31: Year t-1 | E31: Year t
C32: (actual) | D32: (estimate) | E32: (forecast)
E33: =C$6 -> 2019/20
B35: (A) Revenue from DUoS Charges | E35: =C9 -> 138970191.1
B38: (B) Less TAR for regulatory year = | E38: =SUM(E39:E43) -> 138972964.3
B39: + Adjusted annual smoothed revenues (AARt) | E39: =C14 -> 134776431.7
B40: + DMIS carryover amount and demand management incentive scheme amounts (It) | E40: =C15 -> 0
B41: + Annual adjustments (Bt) | E41: =C16 -> 0
B42: + Cost pass through amount (Ct) | E42: =C17 -> 4446008.091
B43: + Remittal variance (RVt) | E43: =C18 -> -249475.5188
B45: (C) Revenue deliberaely under-recovered | E45: 0
B47: (A minus B plus C) Under/over recovery of revenue for regulatory year | E47: =E35-E38+E45 -> -2773.122002
B51: Table 7 - DUoS Unders and Overs Account
C52: Year t-2 | D52: Year t-1 | E52: Year t
C53: (actual) | D53: (estimate) | E53: (forecast)
B54: Calendar year | E54: =C$6 -> 2019/20
B56: Nominal WACC | E56: ='Model inputs'!E13 -> 0.05530768021
B58: Opening balance | E58: =D62 -> 0
B59: Interest on Opening balance | E59: =E58*E56 -> 0
B60: Under/over recovery of revenue for regulatory year | E60: =E47 -> -2773.122002
B61: Interest on under/over recovery for regulatory year | E61: =E60*((1+E56)^0.5-1) -> -75.65546775
B62: Closing balance of DUoS overs/ (unders) account | E62: =SUM(E58:E61) -> -2848.77747
B64: The DNSP is expected to achieve a closing balance as close to zero as practicable in its DUoS unders and overs account in each forecast year in its annual pricing proposals in the 2019-24 regulatory control period.

Sheet 2019-20DistTarRebalCont
B1: ="Tariff Approval - "&'Model inputs'!C3 -> Tariff Approval - Evoenergy
B3: ='Model inputs'!C4&" DISTRIBUTION TARIFF REBALANCING CONTROL" -> 2019/20 DISTRIBUTION TARIFF REBALANCING CONTROL
B6: Distribution tariff rebalancing control
B8: ="CPI "&'Model inputs'!C4 -> CPI 2019/20 | C8: ='Model inputs'!E12 -> 0.0178412132
B9: ="X "& 'Model inputs'!C4 -> X 2019/20 | C9: =MIN('2019-20DistRevCapForm'!C25,0) -> 0
B10: ="St "&'Model inputs'!C4 -> St 2019/20 | C10: ='2019-20DistRevCapForm'!C26 -> 0.009752151029
B11: ="It "&'Model inputs'!C4 -> It 2019/20 | C11: =('Model inputs'!E19-'Model inputs'!D19)/'Prop2019-20DistTar'!CW65 -> 0
B12: ="Bt "&'Model inputs'!C4 -> Bt 2019/20 | C12: =('Model inputs'!E20-'Model inputs'!D20)/'Prop2019-20DistTar'!CW65 -> 0
B13: ="Ct "&'Model inputs'!C4 -> Ct 2019/20 | C13: =('Model inputs'!E21*(1+'Model inputs'!E13)-'Model inputs'!D21)/'Prop2019-20DistTar'!CW65 -> 0.03187586159
C16: =(1+C8)*(1-C9)*(1+0.02)+SUM(C10:C13) -> 1.07982605
B20: Rebalancing control summary | C20: ="Pt-1*(Qt " &'Model inputs'!C4&")" -> Pt-1*(Qt 2019/20) | D20: ="Pt*(Qt " &'Model inputs'!C4&")" -> Pt*(Qt 2019/20)
B21: Tariff Class (Input Class Name) | C21: Existing ($) | D21: Proposed ($) | E21: Movement
B22: Residential | C22: =IF(B22="","",SUMIF($B$39:$B$97,$B22,$I$39:$I$97)) -> 58752704.01 | D22: =IF(B22="","",SUMIF($B$39:$B$97,$B22,$F$39:$F$97)) -> 58635317.86 | E22: =IF(B22="","",D22/C22) -> 0.9980020298 | F22: =IF(B22="","",IF(E22<$C$16,"COMPLIANT","BREACHED")) -> COMPLIANT
B23: =C48 -> LV Commercial | C23: 72988804.99 | D23: =IF(B23="","",SUMIF($B$39:$B$97,$B23,$F$39:$F$97)) -> 72641054.45 | E23: =IF(B23="","",D23/C23) -> 0.9952355633 | F23: =IF(B23="","",IF(E23<$C$16,"COMPLIANT","BREACHED")) -> COMPLIANT
B24: =C56 -> HV Commercial | C24: 7737327.613 | D24: =IF(B24="","",SUMIF($B$39:$B$97,$B24,$F$39:$F$97)) -> 7693818.824 | E24: 0.9943767679 | F24: COMPLIANT
D25: =IF(B25="","",SUMIF($B$39:$B$97,$B25,$F$39:$F$97)) -> 
D26: =IF(B26="","",SUMIF($B$39:$B$97,$B26,$F$39:$F$97)) -> 
D27: =IF(B27="","",SUMIF($B$39:$B$97,$B27,$CO$39:$CO$97)) -> 
B34: Check Total | C34: =IF(ABS(SUM(C22:C33)-I98)<0.01,"Ok","Error") -> Ok | D34: =IF(ABS(SUM(D22:D33)-F98)<0.01,"Ok","Error") -> Ok
C35: =IF(ABS(SUM(C22:C33)-'Prop2019-20DistTar'!CW65)<0.01,"Ok","Error") -> Ok | D35: =IF(ABS(SUM(D22:D33)-'Prop2019-20DistTar'!BZ65)<0.01,"Ok","Error") -> Ok
F37: ="Revenue (Pt "&'Model inputs'!C4&")*(Qt " &'Model inputs'!C4&")" -> Revenue (Pt 2019/20)*(Qt 2019/20) | I37: ="Revenue (Pt-1 "&'Model inputs'!C5&")*(Qt " &'Model inputs'!C4&")" -> Revenue (Pt-1 2018/19)*(Qt 2019/20)
A38: New Tariff Test | B38: Destination tariff class | C38: Source tariff class | D38: Proposed tariff | E38: Existing tariff | F38: PropRev Total | I38: ExistRev Total
A39: =OR(EXACT(D39,'Prop2019-20DistTar'!C$6:C$64)) -> TRUE | D39: =IF('Prop2019-20DistTar'!B6="","",'Prop2019-20DistTar'!B6) ->  | E39: =IF('Prop2019-20DistTar'!C6="","",'Prop2019-20DistTar'!C6) -> 
A40: =OR(EXACT(D40,'Prop2019-20DistTar'!C$6:C$64)) -> TRUE | B40: =C40 -> Residential | C40: Residential | D40: =IF('Prop2019-20DistTar'!B7="","",'Prop2019-20DistTar'!B7) -> Residential Basic Network | E40: =IF('Prop2019-20DistTar'!C7="","",'Prop2019-20DistTar'!C7) -> Residential Basic Network | F40: ='Prop2019-20DistTar'!BZ7 -> 40335383.45 | I40: ='Prop2019-20DistTar'!CW7 -> 40417704.32
A41: =OR(EXACT(D41,'Prop2019-20DistTar'!C$6:C$64)) -> TRUE | B41: =C41 -> Residential | C41: Residential | D41: =IF('Prop2019-20DistTar'!B8="","",'Prop2019-20DistTar'!B8) -> Residential TOU Network | E41: =IF('Prop2019-20DistTar'!C8="","",'Prop2019-20DistTar'!C8) -> Residential TOU Network | F41: ='Prop2019-20DistTar'!BZ8 -> 10460723.57 | I41: ='Prop2019-20DistTar'!CW8 -> 10482865.53
A42: =OR(EXACT(D42,'Prop2019-20DistTar'!C$6:C$64)) -> TRUE | B42: Residential | C42: Residential | D42: =IF('Prop2019-20DistTar'!B9="","",'Prop2019-20DistTar'!B9) -> Residential 5000 Network | E42: =IF('Prop2019-20DistTar'!C9="","",'Prop2019-20DistTar'!C9) -> Residential 5000 Network | F42: ='Prop2019-20DistTar'!BZ9 -> 1442229.84 | I42: ='Prop2019-20DistTar'!CW9 -> 1444288.947
A43: =OR(EXACT(D43,'Prop2019-20DistTar'!C$6:C$64)) -> TRUE | B43: Residential | C43: Residential | D43: =IF('Prop2019-20DistTar'!B10="","",'Prop2019-20DistTar'!B10) -> Residential with Heat Pump Network | E43: =IF('Prop2019-20DistTar'!C10="","",'Prop2019-20DistTar'!C10) -> Residential with Heat Pump Network | F43: ='Prop2019-20DistTar'!BZ10 -> 2244478.79 | I43: ='Prop2019-20DistTar'!CW10 -> 2243458.879
A44: =OR(EXACT(D44,'Prop2019-20DistTar'!C$6:C$64)) -> TRUE | B44: Residential | C44: Residential | D44: =IF('Prop2019-20DistTar'!B11="","",'Prop2019-20DistTar'!B11) -> Off-Peak (1) Night Network | E44: =IF('Prop2019-20DistTar'!C11="","",'Prop2019-20DistTar'!C11) -> Off-Peak (1) Night Network | F44: ='Prop2019-20DistTar'!BZ11 -> 24863.05771 | I44: ='Prop2019-20DistTar'!CW11 -> 25094.34197
A45: =OR(EXACT(D45,'Prop2019-20DistTar'!C$6:C$64)) -> TRUE | B45: Residential | C45: Residential | D45: =IF('Prop2019-20DistTar'!B12="","",'Prop2019-20DistTar'!B12) -> Off-Peak (3) Day & Night Network | E45: =IF('Prop2019-20DistTar'!C12="","",'Prop2019-20DistTar'!C12) -> Off-Peak (3) Day & Night Network | F45: ='Prop2019-20DistTar'!BZ12 -> 245142.3815 | I45: ='Prop2019-20DistTar'!CW12 -> 246641.7232
A46: =OR(EXACT(D46,'Prop2019-20DistTar'!C$6:C$64)) -> TRUE | B46: Residential | C46: Residential | D46: =IF('Prop2019-20DistTar'!B13="","",'Prop2019-20DistTar'!B13) -> Residential Demand Network | E46: =IF('Prop2019-20DistTar'!C13="","",'Prop2019-20DistTar'!C13) -> Residential Demand Network | F46: ='Prop2019-20DistTar'!BZ13 -> 3882496.776 | I46: ='Prop2019-20DistTar'!CW13 -> 3892650.271
A47: =OR(EXACT(D47,'Prop2019-20DistTar'!C$6:C$64)) -> TRUE | D47: =IF('Prop2019-20DistTar'!B14="","",'Prop2019-20DistTar'!B14) ->  | E47: =IF('Prop2019-20DistTar'!C14="","",'Prop2019-20DistTar'!C14) -> 
A48: =OR(EXACT(D48,'Prop2019-20DistTar'!C$6:C$64)) -> TRUE | B48: LV Commercial | C48: LV Commercial | D48: =IF('Prop2019-20DistTar'!B15="","",'Prop2019-20DistTar'!B15) -> General Network | E48: =IF('Prop2019-20DistTar'!C15="","",'Prop2019-20DistTar'!C15) -> General Network | F48: ='Prop2019-20DistTar'!BZ15 -> 16131279.07 | I48: ='Prop2019-20DistTar'!CW15 -> 16223761.42
A49: =OR(EXACT(D49,'Prop2019-20DistTar'!C$6:C$64)) -> TRUE | B49: LV Commercial | C49: LV Commercial | D49: =IF('Prop2019-20DistTar'!B16="","",'Prop2019-20DistTar'!B16) -> General TOU Network | E49: =IF('Prop2019-20DistTar'!C16="","",'Prop2019-20DistTar'!C16) -> General TOU Network | F49: ='Prop2019-20DistTar'!BZ16 -> 12852218 | I49: ='Prop2019-20DistTar'!CW16 -> 12918755.68
A50: =OR(EXACT(D50,'Prop2019-20DistTar'!C$6:C$64)) -> TRUE | B50: LV Commercial | C50: LV Commercial | D50: =IF('Prop2019-20DistTar'!B17="","",'Prop2019-20DistTar'!B17) -> LV TOU kVA Demand Network | E50: =IF('Prop2019-20DistTar'!C17="","",'Prop2019-20DistTar'!C17) -> LV TOU kVA Demand Network | F50: ='Prop2019-20DistTar'!BZ17 -> 28316121.97 | I50: ='Prop2019-20DistTar'!CW17 -> 28433800.85
A51: =OR(EXACT(D51,'Prop2019-20DistTar'!C$6:C$64)) -> TRUE | B51: LV Commercial | C51: LV Commercial | D51: =IF('Prop2019-20DistTar'!B18="","",'Prop2019-20DistTar'!B18) -> LV TOU Capacity Network | E51: =IF('Prop2019-20DistTar'!C18="","",'Prop2019-20DistTar'!C18) -> LV TOU Capacity Network | F51: ='Prop2019-20DistTar'!BZ18 -> 1736432.43 | I51: ='Prop2019-20DistTar'!CW18 -> 1742475.261
A52: =OR(EXACT(D52,'Prop2019-20DistTar'!C$6:C$64)) -> TRUE | B52: LV Commercial | C52: LV Commercial | D52: =IF('Prop2019-20DistTar'!B19="","",'Prop2019-20DistTar'!B19) -> LV Demand Network | E52: =IF('Prop2019-20DistTar'!C19="","",'Prop2019-20DistTar'!C19) -> LV Demand Network | F52: ='Prop2019-20DistTar'!BZ19 -> 11564380.67 | I52: ='Prop2019-20DistTar'!CW19 -> 11620413.46
A53: =OR(EXACT(D53,'Prop2019-20DistTar'!C$6:C$64)) -> TRUE | B53: LV Commercial | C53: LV Commercial | D53: =IF('Prop2019-20DistTar'!B20="","",'Prop2019-20DistTar'!B20) -> Small Unmetered Loads Network | E53: =IF('Prop2019-20DistTar'!C20="","",'Prop2019-20DistTar'!C20) -> Small Unmetered Loads Network | F53: ='Prop2019-20DistTar'!BZ20 -> 258957.529 | I53: ='Prop2019-20DistTar'!CW20 -> 260399.1522
A54: =OR(EXACT(D54,'Prop2019-20DistTar'!C$6:C$64)) -> TRUE | B54: LV Commercial | C54: LV Commercial | D54: =IF('Prop2019-20DistTar'!B21="","",'Prop2019-20DistTar'!B21) -> Streetlighting Network | E54: =IF('Prop2019-20DistTar'!C21="","",'Prop2019-20DistTar'!C21) -> Streetlighting Network | F54: ='Prop2019-20DistTar'!BZ21 -> 1781664.769 | I54: ='Prop2019-20DistTar'!CW21 -> 1789199.166
A55: =OR(EXACT(D55,'Prop2019-20DistTar'!C$6:C$64)) -> TRUE | D55: =IF('Prop2019-20DistTar'!B22="","",'Prop2019-20DistTar'!B22) ->  | E55: =IF('Prop2019-20DistTar'!C22="","",'Prop2019-20DistTar'!C22) -> 
A56: =OR(EXACT(D56,'Prop2019-20DistTar'!C$6:C$64)) -> TRUE | B56: HV Commercial | C56: HV Commercial | D56: =IF('Prop2019-20DistTar'!B23="","",'Prop2019-20DistTar'!B23) -> HV TOU Demand Network | E56: =IF('Prop2019-20DistTar'!C23="","",'Prop2019-20DistTar'!C23) -> HV TOU Demand Network | F56: ='Prop2019-20DistTar'!BZ23 -> 198432.261 | I56: ='Prop2019-20DistTar'!CW23 -> 199626.2468
A57: =OR(EXACT(D57,'Prop2019-20DistTar'!C$6:C$64)) -> TRUE | B57: HV Commercial | C57: HV Commercial | D57: =IF('Prop2019-20DistTar'!B24="","",'Prop2019-20DistTar'!B24) -> HV TOU Demand Network – Customer LV | E57: =IF('Prop2019-20DistTar'!C24="","",'Prop2019-20DistTar'!C24) -> HV TOU Demand Network – Customer LV | F57: ='Prop2019-20DistTar'!BZ24 -> 6458935.729 | I57: ='Prop2019-20DistTar'!CW24 -> 6495488.482
A58: =OR(EXACT(D58,'Prop2019-20DistTar'!C$6:C$64)) -> TRUE | B58: HV Commercial | C58: HV Commercial | D58: =IF('Prop2019-20DistTar'!B25="","",'Prop2019-20DistTar'!B25) -> HV TOU Demand Network – Customer HV and LV | E58: =IF('Prop2019-20DistTar'!C25="","",'Prop2019-20DistTar'!C25) -> HV TOU Demand Network – Customer HV and LV | F58: ='Prop2019-20DistTar'!BZ25 -> 1036450.833 | I58: ='Prop2019-20DistTar'!CW25 -> 1042212.884
A59: =OR(EXACT(D59,'Prop2019-20DistTar'!C$6:C$64)) -> TRUE | D59: =IF('Prop2019-20DistTar'!B26="","",'Prop2019-20DistTar'!B26) ->  | E59: =IF('Prop2019-20DistTar'!C26="","",'Prop2019-20DistTar'!C26) -> 
A60: =OR(EXACT(D60,'Prop2019-20DistTar'!C$6:C$64)) -> TRUE | D60: =IF('Prop2019-20DistTar'!B27="","",'Prop2019-20DistTar'!B27) ->  | E60: =IF('Prop2019-20DistTar'!C27="","",'Prop2019-20DistTar'!C27) -> 
A61: =OR(EXACT(D61,'Prop2019-20DistTar'!C$6:C$64)) -> TRUE | D61: =IF('Prop2019-20DistTar'!B28="","",'Prop2019-20DistTar'!B28) ->  | E61: =IF('Prop2019-20DistTar'!C28="","",'Prop2019-20DistTar'!C28) -> 
A62: =OR(EXACT(D62,'Prop2019-20DistTar'!C$6:C$64)) -> TRUE | D62: =IF('Prop2019-20DistTar'!B29="","",'Prop2019-20DistTar'!B29) ->  | E62: =IF('Prop2019-20DistTar'!C29="","",'Prop2019-20DistTar'!C29) -> 
A63: =OR(EXACT(D63,'Prop2019-20DistTar'!C$6:C$64)) -> TRUE | D63: =IF('Prop2019-20DistTar'!B30="","",'Prop2019-20DistTar'!B30) ->  | E63: =IF('Prop2019-20DistTar'!C30="","",'Prop2019-20DistTar'!C30) -> 
A64: =OR(EXACT(D64,'Prop2019-20DistTar'!C$6:C$64)) -> TRUE | D64: =IF('Prop2019-20DistTar'!B31="","",'Prop2019-20DistTar'!B31) ->  | E64: =IF('Prop2019-20DistTar'!C31="","",'Prop2019-20DistTar'!C31) -> 
A65: =OR(EXACT(D65,'Prop2019-20DistTar'!C$6:C$64)) -> TRUE | D65: =IF('Prop2019-20DistTar'!B32="","",'Prop2019-20DistTar'!B32) ->  | E65: =IF('Prop2019-20DistTar'!C32="","",'Prop2019-20DistTar'!C32) -> 
A66: =OR(EXACT(D66,'Prop2019-20DistTar'!C$6:C$64)) -> TRUE | D66: =IF('Prop2019-20DistTar'!B33="","",'Prop2019-20DistTar'!B33) ->  | E66: =IF('Prop2019-20DistTar'!C33="","",'Prop2019-20DistTar'!C33) -> 
A67: =OR(EXACT(D67,'Prop2019-20DistTar'!C$6:C$64)) -> TRUE | D67: =IF('Prop2019-20DistTar'!B34="","",'Prop2019-20DistTar'!B34) ->  | E67: =IF('Prop2019-20DistTar'!C34="","",'Prop2019-20DistTar'!C34) -> 
A68: =OR(EXACT(D68,'Prop2019-20DistTar'!C$6:C$64)) -> TRUE | D68: =IF('Prop2019-20DistTar'!B35="","",'Prop2019-20DistTar'!B35) ->  | E68: =IF('Prop2019-20DistTar'!C35="","",'Prop2019-20DistTar'!C35) -> 
A69: =OR(EXACT(D69,'Prop2019-20DistTar'!C$6:C$64)) -> TRUE | D69: =IF('Prop2019-20DistTar'!B36="","",'Prop2019-20DistTar'!B36) ->  | E69: =IF('Prop2019-20DistTar'!C36="","",'Prop2019-20DistTar'!C36) -> 
A70: =OR(EXACT(D70,'Prop2019-20DistTar'!C$6:C$64)) -> TRUE | D70: =IF('Prop2019-20DistTar'!B37="","",'Prop2019-20DistTar'!B37) ->  | E70: =IF('Prop2019-20DistTar'!C37="","",'Prop2019-20DistTar'!C37) -> 
A71: =OR(EXACT(D71,'Prop2019-20DistTar'!C$6:C$64)) -> TRUE | D71: =IF('Prop2019-20DistTar'!B38="","",'Prop2019-20DistTar'!B38) ->  | E71: =IF('Prop2019-20DistTar'!C38="","",'Prop2019-20DistTar'!C38) -> 
A72: =OR(EXACT(D72,'Prop2019-20DistTar'!C$6:C$64)) -> TRUE | D72: =IF('Prop2019-20DistTar'!B39="","",'Prop2019-20DistTar'!B39) ->  | E72: =IF('Prop2019-20DistTar'!C39="","",'Prop2019-20DistTar'!C39) -> 
A73: =OR(EXACT(D73,'Prop2019-20DistTar'!C$6:C$64)) -> TRUE | D73: =IF('Prop2019-20DistTar'!B40="","",'Prop2019-20DistTar'!B40) ->  | E73: =IF('Prop2019-20DistTar'!C40="","",'Prop2019-20DistTar'!C40) -> 
A74: =OR(EXACT(D74,'Prop2019-20DistTar'!C$6:C$64)) -> TRUE | D74: =IF('Prop2019-20DistTar'!B41="","",'Prop2019-20DistTar'!B41) ->  | E74: =IF('Prop2019-20DistTar'!C41="","",'Prop2019-20DistTar'!C41) -> 
A75: =OR(EXACT(D75,'Prop2019-20DistTar'!C$6:C$64)) -> TRUE | D75: =IF('Prop2019-20DistTar'!B42="","",'Prop2019-20DistTar'!B42) ->  | E75: =IF('Prop2019-20DistTar'!C42="","",'Prop2019-20DistTar'!C42) -> 
A76: =OR(EXACT(D76,'Prop2019-20DistTar'!C$6:C$64)) -> TRUE | D76: =IF('Prop2019-20DistTar'!B43="","",'Prop2019-20DistTar'!B43) ->  | E76: =IF('Prop2019-20DistTar'!C43="","",'Prop2019-20DistTar'!C43) -> 
A77: =OR(EXACT(D77,'Prop2019-20DistTar'!C$6:C$64)) -> TRUE | D77: =IF('Prop2019-20DistTar'!B44="","",'Prop2019-20DistTar'!B44) ->  | E77: =IF('Prop2019-20DistTar'!C44="","",'Prop2019-20DistTar'!C44) -> 
A78: =OR(EXACT(D78,'Prop2019-20DistTar'!C$6:C$64)) -> TRUE | D78: =IF('Prop2019-20DistTar'!B45="","",'Prop2019-20DistTar'!B45) ->  | E78: =IF('Prop2019-20DistTar'!C45="","",'Prop2019-20DistTar'!C45) -> 
A79: =OR(EXACT(D79,'Prop2019-20DistTar'!C$6:C$64)) -> TRUE | D79: =IF('Prop2019-20DistTar'!B46="","",'Prop2019-20DistTar'!B46) ->  | E79: =IF('Prop2019-20DistTar'!C46="","",'Prop2019-20DistTar'!C46) -> 
A80: =OR(EXACT(D80,'Prop2019-20DistTar'!C$6:C$64)) -> TRUE | D80: =IF('Prop2019-20DistTar'!B47="","",'Prop2019-20DistTar'!B47) ->  | E80: =IF('Prop2019-20DistTar'!C47="","",'Prop2019-20DistTar'!C47) -> 
A81: =OR(EXACT(D81,'Prop2019-20DistTar'!C$6:C$64)) -> TRUE | D81: =IF('Prop2019-20DistTar'!B48="","",'Prop2019-20DistTar'!B48) ->  | E81: =IF('Prop2019-20DistTar'!C48="","",'Prop2019-20DistTar'!C48) -> 
A82: =OR(EXACT(D82,'Prop2019-20DistTar'!C$6:C$64)) -> TRUE | D82: =IF('Prop2019-20DistTar'!B49="","",'Prop2019-20DistTar'!B49) ->  | E82: =IF('Prop2019-20DistTar'!C49="","",'Prop2019-20DistTar'!C49) -> 
A83: =OR(EXACT(D83,'Prop2019-20DistTar'!C$6:C$64)) -> TRUE | D83: =IF('Prop2019-20DistTar'!B50="","",'Prop2019-20DistTar'!B50) ->  | E83: =IF('Prop2019-20DistTar'!C50="","",'Prop2019-20DistTar'!C50) -> 
A84: =OR(EXACT(D84,'Prop2019-20DistTar'!C$6:C$64)) -> TRUE | D84: =IF('Prop2019-20DistTar'!B51="","",'Prop2019-20DistTar'!B51) ->  | E84: =IF('Prop2019-20DistTar'!C51="","",'Prop2019-20DistTar'!C51) -> 
A85: =OR(EXACT(D85,'Prop2019-20DistTar'!C$6:C$64)) -> TRUE | D85: =IF('Prop2019-20DistTar'!B52="","",'Prop2019-20DistTar'!B52) ->  | E85: =IF('Prop2019-20DistTar'!C52="","",'Prop2019-20DistTar'!C52) -> 
A86: =OR(EXACT(D86,'Prop2019-20DistTar'!C$6:C$64)) -> TRUE | D86: =IF('Prop2019-20DistTar'!B53="","",'Prop2019-20DistTar'!B53) ->  | E86: =IF('Prop2019-20DistTar'!C53="","",'Prop2019-20DistTar'!C53) -> 
A87: =OR(EXACT(D87,'Prop2019-20DistTar'!C$6:C$64)) -> TRUE | D87: =IF('Prop2019-20DistTar'!B54="","",'Prop2019-20DistTar'!B54) ->  | E87: =IF('Prop2019-20DistTar'!C54="","",'Prop2019-20DistTar'!C54) -> 
A88: =OR(EXACT(D88,'Prop2019-20DistTar'!C$6:C$64)) -> TRUE | D88: =IF('Prop2019-20DistTar'!B55="","",'Prop2019-20DistTar'!B55) ->  | E88: =IF('Prop2019-20DistTar'!C55="","",'Prop2019-20DistTar'!C55) -> 
A89: =OR(EXACT(D89,'Prop2019-20DistTar'!C$6:C$64)) -> TRUE | D89: =IF('Prop2019-20DistTar'!B56="","",'Prop2019-20DistTar'!B56) ->  | E89: =IF('Prop2019-20DistTar'!C56="","",'Prop2019-20DistTar'!C56) -> 
A90: =OR(EXACT(D90,'Prop2019-20DistTar'!C$6:C$64)) -> TRUE | D90: =IF('Prop2019-20DistTar'!B57="","",'Prop2019-20DistTar'!B57) ->  | E90: =IF('Prop2019-20DistTar'!C57="","",'Prop2019-20DistTar'!C57) -> 
A91: =OR(EXACT(D91,'Prop2019-20DistTar'!C$6:C$64)) -> TRUE | D91: =IF('Prop2019-20DistTar'!B58="","",'Prop2019-20DistTar'!B58) ->  | E91: =IF('Prop2019-20DistTar'!C58="","",'Prop2019-20DistTar'!C58) -> 
A92: =OR(EXACT(D92,'Prop2019-20DistTar'!C$6:C$64)) -> TRUE | D92: =IF('Prop2019-20DistTar'!B59="","",'Prop2019-20DistTar'!B59) ->  | E92: =IF('Prop2019-20DistTar'!C59="","",'Prop2019-20DistTar'!C59) -> 
A93: =OR(EXACT(D93,'Prop2019-20DistTar'!C$6:C$64)) -> TRUE | D93: =IF('Prop2019-20DistTar'!B60="","",'Prop2019-20DistTar'!B60) ->  | E93: =IF('Prop2019-20DistTar'!C60="","",'Prop2019-20DistTar'!C60) -> 
A94: =OR(EXACT(D94,'Prop2019-20DistTar'!C$6:C$64)) -> TRUE | D94: =IF('Prop2019-20DistTar'!B61="","",'Prop2019-20DistTar'!B61) ->  | E94: =IF('Prop2019-20DistTar'!C61="","",'Prop2019-20DistTar'!C61) -> 
A95: =OR(EXACT(D95,'Prop2019-20DistTar'!C$6:C$64)) -> TRUE | D95: =IF('Prop2019-20DistTar'!B62="","",'Prop2019-20DistTar'!B62) ->  | E95: =IF('Prop2019-20DistTar'!C62="","",'Prop2019-20DistTar'!C62) -> 
A96: =OR(EXACT(D96,'Prop2019-20DistTar'!C$6:C$64)) -> TRUE | D96: =IF('Prop2019-20DistTar'!B63="","",'Prop2019-20DistTar'!B63) ->  | E96: =IF('Prop2019-20DistTar'!C63="","",'Prop2019-20DistTar'!C63) -> 
A97: =OR(EXACT(D97,'Prop2019-20DistTar'!C$6:C$64)) -> TRUE | D97: =IF('Prop2019-20DistTar'!B64="","",'Prop2019-20DistTar'!B64) ->  | E97: =IF('Prop2019-20DistTar'!C64="","",'Prop2019-20DistTar'!C64) -> 
F98: =SUM(F39:F97) -> 138970191.1 | I98: =SUM(I39:I97) -> 139478836.6

Sheet Est2018-19DistRev
B1: ="Tariff Approval - "&'Model inputs'!C3 -> Tariff Approval - Evoenergy
B3: ="ESTIMATED "&'Model inputs'!C5&" Distribution Revenue" -> ESTIMATED 2018/19 Distribution Revenue
D4: ="Current Distribution Tariffs (Pt-1) for "&'Model inputs'!C5 -> Current Distribution Tariffs (Pt-1) for 2018/19 | Z4: =" Estimated Distribution Quantities for "&'Model inputs'!C5&" (Qt-1)" -> Estimated Distribution Quantities for 2018/19 (Qt-1) | AV4: ="Estimated Revenue (Pt-1 "&'Model inputs'!C5&")*(Qt-1 " &'Model inputs'!C5&")" -> Estimated Revenue (Pt-1 2018/19)*(Qt-1 2018/19)
B5: ="Tariffs "&'Model inputs'!C5 -> Tariffs 2018/19 | D5: CurrentTar Fixed | E5: CurrentTar Anytime | F5: CurrentTar Block: Step 1 | G5: CurrentTar Block: Step 2 | H5: CurrentTar TOU: Peak | I5: CurrentTar TOU: Shoulder | J5: CurrentTar TOU: Off-peak | K5: CurrentTar Dem kW | L5: CurrentTar Dem kVA: peak | M5: CurrentTar Capacity kVA: anytime | Z5: EstVol Fixed | AA5: EstVol Anytime | AB5: EstVol Block: Step 1 | AC5: EstVol Block: Step 2 | AD5: EstVol TOU: Peak | AE5: EstVol TOU: Shoulder | AF5: EstVol TOU: Off-peak | AG5: EstVol Dem kW | AH5: EstVol Dem kVA: peak | AI5: EstVol Capacity kVA: anytime | AV5: EstRev Fixed | AW5: EstRev Anytime | AX5: EstRev Block: Step 1 | AY5: EstRev Block: Step 2 | AZ5: EstRev TOU: Peak | BA5: EstRev TOU: Shoulder | BB5: EstRev TOU: Off-peak | BC5: EstRev Dem kW | BD5: EstRev Dem kVA: peak | BE5: EstRev Capacity kVA: anytime | BQ5: EstRev Total
AV6: =D6*Z6 -> 0 | AW6: =E6/100*AA6 -> 0 | AX6: 0 | AY6: 0 | AZ6: 0 | BA6: 0 | BB6: 0 | BC6: 0 | BD6: 0 | BE6: =M6*AI6 -> 0 | BQ6: =SUM(AV6:BP6) -> 0
B7: ='Prop2019-20DistTar'!C7 -> Residential Basic Network | D7: 26.63 | E7: 3.756 | Z7: 128078.5854 | AA7: 776892459.2 | AV7: =D7/100*Z7*'Model inputs'!$D$14 -> 12449174.46 | AW7: 29180080.77 | AX7: =F7/100*AB7 -> 0 | AY7: =G7/100*AC7 -> 0 | AZ7: =H7/100*AD7 -> 0 | BA7: =I7/100*AE7 -> 0 | BB7: =J7/100*AF7 -> 0 | BC7: =K7/100*AG7*'Model inputs'!$D$14 -> 0 | BD7: =L7/100*AH7*'Model inputs'!$D$14 -> 0 | BE7: =M7/100*AI7*'Model inputs'!$D$14 -> 0 | BQ7: =SUM(AV7:BP7) -> 41629255.23
B8: ='Prop2019-20DistTar'!C8 -> Residential TOU Network | D8: 26.63 | H8: 8.38 | I8: 2.549 | J8: 0.35 | Z8: 37571.41042 | AD8: 57421281.6 | AE8: 80471393.39 | AF8: 58191270.35 | AV8: =D8/100*Z8*'Model inputs'!$D$14 -> 3651922.307 | AW8: 0 | AX8: 0 | AY8: 0 | AZ8: 4811903.398 | BA8: 2051215.818 | BB8: 203669.4462 | BC8: =K8/100*AG8*'Model inputs'!$D$14 -> 0 | BD8: =L8/100*AH8*'Model inputs'!$D$14 -> 0 | BE8: =M8/100*AI8*'Model inputs'!$D$14 -> 0 | BQ8: 10718710.97
B9: ='Prop2019-20DistTar'!C9 -> Residential 5000 Network | D9: 48.13 | F9: 2.456 | G9: 3.756 | Z9: 4097.49375 | AB9: 30609473.52 | AC9: 1029792.818 | AV9: =D9/100*Z9*'Model inputs'!$D$14 -> 719825.1658 | AW9: 0 | AX9: 751768.6697 | AY9: 38679.01825 | AZ9: 0 | BA9: 0 | BB9: 0 | BC9: =K9/100*AG9*'Model inputs'!$D$14 -> 0 | BD9: =L9/100*AH9*'Model inputs'!$D$14 -> 0 | BE9: =M9/100*AI9*'Model inputs'!$D$14 -> 0 | BQ9: 1510272.854
B10: ='Prop2019-20DistTar'!C10 -> Residential with Heat Pump Network | D10: 91.43 | F10: 0.996 | G10: 3.756 | Z10: 5006.49375 | AB10: 63293804.34 | AC10: 785377.0308 | AV10: =D10/100*Z10*'Model inputs'!$D$14 -> 1670764.591 | AW10: 0 | AX10: 630406.2912 | AY10: 29498.76128 | AZ10: 0 | BA10: 0 | BB10: 0 | BC10: =K10/100*AG10*'Model inputs'!$D$14 -> 0 | BD10: =L10/100*AH10*'Model inputs'!$D$14 -> 0 | BE10: =M10/100*AI10*'Model inputs'!$D$14 -> 0 | BQ10: 2330669.643
B11: ='Prop2019-20DistTar'!C11 -> Off-Peak (1) Night Network | J11: 0.217 | AF11: 10567723.73 | AV11: =D11/100*Z11*'Model inputs'!$D$14 -> 0 | AW11: 0 | AX11: 0 | AY11: 0 | AZ11: 0 | BA11: 0 | BB11: 22931.9605 | BC11: =K11/100*AG11*'Model inputs'!$D$14 -> 0 | BD11: =L11/100*AH11*'Model inputs'!$D$14 -> 0 | BE11: =M11/100*AI11*'Model inputs'!$D$14 -> 0 | BQ11: 22931.9605
B12: ='Prop2019-20DistTar'!C12 -> Off-Peak (3) Day & Night Network | J12: 0.329 | AF12: 69190249.35 | AV12: =D12/100*Z12*'Model inputs'!$D$14 -> 0 | AW12: 0 | AX12: 0 | AY12: 0 | AZ12: 0 | BA12: 0 | BB12: 227635.9204 | BC12: =K12/100*AG12*'Model inputs'!$D$14 -> 0 | BD12: =L12/100*AH12*'Model inputs'!$D$14 -> 0 | BE12: =M12/100*AI12*'Model inputs'!$D$14 -> 0 | BQ12: 227635.9204
B13: ='Prop2019-20DistTar'!C13 -> Residential Demand Network | D13: 26.63 | E13: 0.312 | K13: 11.41 | Z13: 7627.766667 | AA13: 31024618.24 | AG13: 24610.13995 | AV13: =D13/100*Z13*'Model inputs'!$D$14 -> 741415.1061 | AW13: 96796.80891 | AX13: 0 | AY13: 0 | AZ13: 0 | BA13: 0 | BB13: 0 | BC13: =K13/100*AG13*'Model inputs'!$D$14 -> 1024926.194 | BD13: =L13/100*AH13*'Model inputs'!$D$14 -> 0 | BE13: =M13/100*AI13*'Model inputs'!$D$14 -> 0 | BQ13: 1863138.109
AV14: =D14/100*Z14*'Model inputs'!$D$14 -> 0 | AW14: 0 | AX14: 0 | AY14: 0 | AZ14: 0 | BA14: 0 | BB14: 0 | BC14: =K14/100*AG14*'Model inputs'!$D$14 -> 0 | BD14: =L14/100*AH14*'Model inputs'!$D$14 -> 0 | BE14: =M14/100*AI14*'Model inputs'!$D$14 -> 0 | BQ14: 0
B15: ='Prop2019-20DistTar'!C15 -> General Network | D15: 48.7 | F15: 7.073 | G15: 10.437 | Z15: 11774.63542 | AB15: 192948424.3 | AC15: 13783372.67 | AV15: =D15/100*Z15*'Model inputs'!$D$14 -> 2093000.318 | AW15: 0 | AX15: 13647242.05 | AY15: 1438570.605 | AZ15: 0 | BA15: 0 | BB15: 0 | BC15: =K15/100*AG15*'Model inputs'!$D$14 -> 0 | BD15: =L15/100*AH15*'Model inputs'!$D$14 -> 0 | BE15: =M15/100*AI15*'Model inputs'!$D$14 -> 0 | BQ15: 17178812.98
B16: ='Prop2019-20DistTar'!C16 -> General TOU Network | D16: 48.7 | H16: 11.86 | I16: 4.568 | J16: 1.776 | Z16: 3495.946788 | AD16: 78604648.85 | AE16: 35837697.65 | AF16: 96074457.11 | AV16: =D16/100*Z16*'Model inputs'!$D$14 -> 621422.0212 | AW16: 0 | AX16: 0 | AY16: 0 | AZ16: 9322511.354 | BA16: 1637066.029 | BB16: 1706282.358 | BC16: =K16/100*AG16*'Model inputs'!$D$14 -> 0 | BD16: =L16/100*AH16*'Model inputs'!$D$14 -> 0 | BE16: =M16/100*AI16*'Model inputs'!$D$14 -> 0 | BQ16: 13287281.76
B17: ='Prop2019-20DistTar'!C17 -> LV TOU kVA Demand Network | D17: 54.719 | H17: 1.91 | I17: 0.715 | J17: 0.264 | L17: 35.86 | Z17: 1666.847731 | AD17: 273707489.5 | AE17: 103099335.5 | AF17: 322718490.3 | AH17: 168355.1862 | AV17: =D17/100*Z17*'Model inputs'!$D$14 -> 332910.0796 | AW17: 0 | AX17: 0 | AY17: 0 | AZ17: 5227813.049 | BA17: 737160.2487 | BB17: 851976.8144 | BC17: =K17/100*AG17*'Model inputs'!$D$14 -> 0 | BD17: =L17/100*AH17*'Model inputs'!$D$14 -> 22035841.96 | BE17: =M17/100*AI17*'Model inputs'!$D$14 -> 0 | BQ17: 29185702.15
B18: ='Prop2019-20DistTar'!C18 -> LV TOU Capacity Network | D18: 54.719 | H18: 1.91 | I18: 0.715 | J18: 0.264 | L18: 16.72 | M18: 16.72 | Z18: 53.93919669 | AD18: 16547257.04 | AE18: 6880949.322 | AF18: 23332632.53 | AH18: 8641.406914 | AI18: 9966.171936 | AV18: =D18/100*Z18*'Model inputs'!$D$14 -> 10772.971 | AW18: 0 | AX18: 0 | AY18: 0 | AZ18: 316052.6094 | BA18: 49198.78765 | BB18: 61598.14988 | BC18: =K18/100*AG18*'Model inputs'!$D$14 -> 0 | BD18: =L18/100*AH18*'Model inputs'!$D$14 -> 527367.7811 | BE18: =M18/100*AI18*'Model inputs'!$D$14 -> 608215.5409 | BQ18: 1573205.84
B19: ='Prop2019-20DistTar'!C19 -> LV Demand Network | D19: 48.7 | E19: 0.93 | K19: 35.97 | Z19: 1095.884876 | AA19: 139133622.9 | AG19: 46149.73656 | AV19: =D19/100*Z19*'Model inputs'!$D$14 -> 194799.0162 | AW19: 1293942.693 | AX19: 0 | AY19: 0 | AZ19: 0 | BA19: 0 | BB19: 0 | BC19: =K19/100*AG19*'Model inputs'!$D$14 -> 6059021.988 | BD19: =L19/100*AH19*'Model inputs'!$D$14 -> 0 | BE19: =M19/100*AI19*'Model inputs'!$D$14 -> 0 | BQ19: 7547763.697
B20: ='Prop2019-20DistTar'!C20 -> Small Unmetered Loads Network | D20: 39.6 | E20: 7.861 | Z20: 24.68247872 | AA20: 4404716.003 | AV20: =D20/100*Z20*'Model inputs'!$D$14 -> 3567.605474 | AW20: 346254.725 | AX20: 0 | AY20: 0 | AZ20: 0 | BA20: 0 | BB20: 0 | BC20: =K20/100*AG20*'Model inputs'!$D$14 -> 0 | BD20: =L20/100*AH20*'Model inputs'!$D$14 -> 0 | BE20: =M20/100*AI20*'Model inputs'!$D$14 -> 0 | BQ20: 349822.3305
B21: ='Prop2019-20DistTar'!C21 -> Streetlighting Network | D21: 49 | E21: 4.464 | Z21: 19.65085462 | AA21: 40053929.6 | AV21: =D21/100*Z21*'Model inputs'!$D$14 -> 3514.555348 | AW21: 1788007.417 | AX21: 0 | AY21: 0 | AZ21: 0 | BA21: 0 | BB21: 0 | BC21: =K21/100*AG21*'Model inputs'!$D$14 -> 0 | BD21: =L21/100*AH21*'Model inputs'!$D$14 -> 0 | BE21: =M21/100*AI21*'Model inputs'!$D$14 -> 0 | BQ21: 1791521.973
AV22: =D22/100*Z22*'Model inputs'!$D$14 -> 0 | AW22: 0 | AX22: 0 | AY22: 0 | AZ22: 0 | BA22: 0 | BB22: 0 | BC22: =K22/100*AG22*'Model inputs'!$D$14 -> 0 | BD22: =L22/100*AH22*'Model inputs'!$D$14 -> 0 | BE22: =M22/100*AI22*'Model inputs'!$D$14 -> 0 | BQ22: 0
B23: ='Prop2019-20DistTar'!C23 -> HV TOU Demand Network | D23: 2000 | H23: 1.536 | I23: 0.498 | J23: 0.137 | L23: 10.59 | M23: 10.59 | Z23: 1 | AD23: 2746335.711 | AE23: 1140177.41 | AF23: 3510984.612 | AH23: 1608.937218 | AI23: 2036.71193 | AV23: =D23/100*Z23*'Model inputs'!$D$14 -> 7300 | AW23: 0 | AX23: 0 | AY23: 0 | AZ23: 42183.71653 | BA23: 5678.0835 | BB23: 4810.048919 | BC23: =K23/100*AG23*'Model inputs'!$D$14 -> 0 | BD23: =L23/100*AH23*'Model inputs'!$D$14 -> 62191.05474 | BE23: =M23/100*AI23*'Model inputs'!$D$14 -> 78726.04458 | BQ23: 200888.9483
B24: ='Prop2019-20DistTar'!C24 -> HV TOU Demand Network – Customer LV | D24: 2000 | H24: 0.986 | I24: 0.298 | J24: 0.077 | L24: 10.59 | M24: 10.59 | Z24: 21.17240169 | AD24: 116981757.4 | AE24: 46202813.87 | AF24: 152065569.5 | AH24: 58501.30594 | AI24: 69716.33017 | AV24: =D24/100*Z24*'Model inputs'!$D$14 -> 154558.5324 | AW24: 0 | AX24: 0 | AY24: 0 | AZ24: 1153440.128 | BA24: 137684.3853 | BB24: 117090.4885 | BC24: =K24/100*AG24*'Model inputs'!$D$14 -> 0 | BD24: =L24/100*AH24*'Model inputs'!$D$14 -> 2261280.229 | BE24: =M24/100*AI24*'Model inputs'!$D$14 -> 2694780.168 | BQ24: 6518833.931
B25: ='Prop2019-20DistTar'!C25 -> HV TOU Demand Network – Customer HV and LV | D25: 2000 | H25: 0.986 | I25: 0.298 | J25: 0.077 | L25: 9.09 | M25: 9.09 | Z25: 9.816520601 | AD25: 15388643.24 | AE25: 7261467.761 | AF25: 25005714.15 | AH25: 8319.177748 | AI25: 9672.129721 | AV25: =D25/100*Z25*'Model inputs'!$D$14 -> 71660.60039 | AW25: 0 | AX25: 0 | AY25: 0 | AZ25: 151732.0224 | BA25: 21639.17393 | BB25: 19254.39989 | BC25: =K25/100*AG25*'Model inputs'!$D$14 -> 0 | BD25: =L25/100*AH25*'Model inputs'!$D$14 -> 276017.8389 | BE25: =M25/100*AI25*'Model inputs'!$D$14 -> 320906.756 | BQ25: 861210.7914
Z66: =SUM(Z6:Z65) -> 200545.3263 | AA66: 991509345.9 | AB66: 286851702.2 | AC66: 15598542.52 | AD66: 561397413.3 | AE66: 280893834.9 | AF66: 760657091.6 | AG66: 70759.87652 | AH66: 245426.014 | AI66: 91391.34375 | AJ66: 0 | AK66: 0 | AL66: 0 | AM66: =SUM(AM6:AM65) -> 0 | AN66: 0 | AO66: 0 | AP66: 0 | AQ66: 0 | AR66: 0 | AS66: 0 | AT66: 0 | AV66: =SUM(AV6:AV65) -> 22726607.33 | AW66: 32705082.41 | AX66: 15029417.01 | AY66: 1506748.385 | AZ66: 21025636.28 | BA66: 4639642.525 | BB66: 3215249.587 | BC66: 7083948.182 | BD66: 25162698.86 | BE66: 3702628.509 | BF66: 0 | BG66: 0 | BH66: 0 | BI66: 0 | BJ66: 0 | BK66: 0 | BL66: 0 | BM66: 0 | BN66: 0 | BO66: 0 | BP66: 0 | BQ66: 136797659.1

Sheet Prop2019-20TransTar
B1: ="Tariff Approval - "&'Model inputs'!C3 -> Tariff Approval - Evoenergy
B3: ="PROPOSED "&'Model inputs'!C4&" TRANSMISSION TARIFFS" -> PROPOSED 2019/20 TRANSMISSION TARIFFS
D4: ="Proposed Transmission Tariffs (Pt) for "&'Model inputs'!C4 -> Proposed Transmission Tariffs (Pt) for 2019/20 | S4: ="Forecast Quantities (Qt) for "&'Model inputs'!C4 -> Forecast Quantities (Qt) for 2019/20 | AI4: ="Forecast Revenue (Pt "&'Model inputs'!C4&")*(Qt " &'Model inputs'!C4&")" -> Forecast Revenue (Pt 2019/20)*(Qt 2019/20)
B5: Proposed tariff | D5: ='Prop2019-20DistTar'!D5 -> PropTar Fixed | E5: ='Prop2019-20DistTar'!E5 -> PropTar Anytime | F5: ='Prop2019-20DistTar'!F5 -> PropTar Block: Step 1 | G5: ='Prop2019-20DistTar'!G5 -> PropTar Block: Step 2 | H5: ='Prop2019-20DistTar'!H5 -> PropTar TOU: Peak | I5: ='Prop2019-20DistTar'!I5 -> PropTar TOU: Shoulder | J5: ='Prop2019-20DistTar'!J5 -> PropTar TOU: Off-peak | K5: ='Prop2019-20DistTar'!K5 -> PropTar Dem kW | L5: ='Prop2019-20DistTar'!L5 -> PropTar Dem kVA: peak | M5: ='Prop2019-20DistTar'!M5 -> PropTar Capacity kVA: anytime | S5: ='Prop2019-20DistTar'!AQ5 -> FcastVol Fixed | T5: ='Prop2019-20DistTar'!AR5 -> FcastVol Anytime | U5: ='Prop2019-20DistTar'!AS5 -> FcastVol Block: Step 1 | V5: ='Prop2019-20DistTar'!AT5 -> FcastVol Block: Step 2 | W5: ='Prop2019-20DistTar'!AU5 -> FcastVol TOU: Peak | X5: ='Prop2019-20DistTar'!AV5 -> FcastVol TOU: Shoulder | Y5: ='Prop2019-20DistTar'!AW5 -> FcastVol TOU: Off-peak | Z5: ='Prop2019-20DistTar'!AX5 -> FcastVol Dem kW | AA5: ='Prop2019-20DistTar'!AY5 -> FcastVol Dem kVA: peak | AB5: ='Prop2019-20DistTar'!AZ5 -> FcastVol Capacity kVA: anytime | AI5: ='Prop2019-20DistTar'!BH5 -> PropRev Fixed | AJ5: ='Prop2019-20DistTar'!BI5 -> PropRev Anytime | AK5: ='Prop2019-20DistTar'!BJ5 -> PropRev Block: Step 1 | AL5: ='Prop2019-20DistTar'!BK5 -> PropRev Block: Step 2 | AM5: ='Prop2019-20DistTar'!BL5 -> PropRev TOU: Peak | AN5: ='Prop2019-20DistTar'!BM5 -> PropRev TOU: Shoulder | AO5: ='Prop2019-20DistTar'!BN5 -> PropRev TOU: Off-peak | AP5: ='Prop2019-20DistTar'!BO5 -> PropRev Dem kW | AQ5: ='Prop2019-20DistTar'!BP5 -> PropRev Dem kVA: peak | AR5: ='Prop2019-20DistTar'!BQ5 -> PropRev Capacity kVA: anytime | AX5: ='Prop2019-20DistTar'!BZ5 -> PropRev Total
B7: ='Prop2019-20DistTar'!B7 -> Residential Basic Network | D7: 0 | E7: 1.384 | F7: 0 | G7: 0 | H7: 0 | I7: 0 | J7: 0 | K7: 0 | L7: 0 | M7: 0 | S7: ='Prop2019-20DistTar'!AQ7 -> 125379.3729 | T7: ='Prop2019-20DistTar'!AR7 -> 750732253.2 | U7: ='Prop2019-20DistTar'!AS7 -> 0 | V7: ='Prop2019-20DistTar'!AT7 -> 0 | W7: ='Prop2019-20DistTar'!AU7 -> 0 | X7: ='Prop2019-20DistTar'!AV7 -> 0 | Y7: ='Prop2019-20DistTar'!AW7 -> 0 | Z7: ='Prop2019-20DistTar'!AX7 -> 0 | AA7: ='Prop2019-20DistTar'!AY7 -> 0 | AB7: ='Prop2019-20DistTar'!AZ7 -> 0 | AI7: =D7/100*S7*'Model inputs'!$E$14 -> 0 | AJ7: =E7/100*T7 -> 10390134.38 | AK7: =F7/100*U7 -> 0 | AL7: =G7/100*V7 -> 0 | AM7: =H7/100*W7 -> 0 | AN7: =I7/100*X7 -> 0 | AO7: =J7/100*Y7 -> 0 | AP7: =K7/100*Z7*'Model inputs'!$E$14 -> 0 | AQ7: =L7/100*AA7*'Model inputs'!$E$14 -> 0 | AR7: =M7/100*AB7*'Model inputs'!$E$14 -> 0 | AX7: =SUM(AI7:AW7) -> 10390134.38
B8: ='Prop2019-20DistTar'!B8 -> Residential TOU Network | D8: 0 | E8: 0 | F8: 0 | G8: 0 | H8: 1.986 | I8: 1.43 | J8: 0.701 | K8: 0 | L8: 0 | M8: 0 | S8: ='Prop2019-20DistTar'!AQ8 -> 36865.89208 | T8: ='Prop2019-20DistTar'!AR8 -> 0 | U8: ='Prop2019-20DistTar'!AS8 -> 0 | V8: ='Prop2019-20DistTar'!AT8 -> 0 | W8: ='Prop2019-20DistTar'!AU8 -> 55994396.57 | X8: ='Prop2019-20DistTar'!AV8 -> 78489040.22 | Y8: ='Prop2019-20DistTar'!AW8 -> 56195943.49 | Z8: ='Prop2019-20DistTar'!AX8 -> 0 | AA8: ='Prop2019-20DistTar'!AY8 -> 0 | AB8: ='Prop2019-20DistTar'!AZ8 -> 0 | AI8: =D8/100*S8*'Model inputs'!$E$14 -> 0 | AJ8: =E8/100*T8 -> 0 | AK8: 0 | AL8: 0 | AM8: 1112048.716 | AN8: 1122393.275 | AO8: 393933.5639 | AP8: =K8/100*Z8*'Model inputs'!$E$14 -> 0 | AQ8: =L8/100*AA8*'Model inputs'!$E$14 -> 0 | AR8: =M8/100*AB8*'Model inputs'!$E$14 -> 0 | AX8: 2628375.555
B9: ='Prop2019-20DistTar'!B9 -> Residential 5000 Network | D9: 0 | E9: 0 | F9: 1.361 | G9: 1.643 | H9: 0 | I9: 0 | J9: 0 | K9: 0 | L9: 0 | M9: 0 | S9: ='Prop2019-20DistTar'!AQ9 -> 3933.797917 | T9: ='Prop2019-20DistTar'!AR9 -> 0 | U9: ='Prop2019-20DistTar'!AS9 -> 29267110.6 | V9: ='Prop2019-20DistTar'!AT9 -> 866011.4945 | W9: ='Prop2019-20DistTar'!AU9 -> 0 | X9: ='Prop2019-20DistTar'!AV9 -> 0 | Y9: ='Prop2019-20DistTar'!AW9 -> 0 | Z9: ='Prop2019-20DistTar'!AX9 -> 0 | AA9: ='Prop2019-20DistTar'!AY9 -> 0 | AB9: ='Prop2019-20DistTar'!AZ9 -> 0 | AI9: =D9/100*S9*'Model inputs'!$E$14 -> 0 | AJ9: 0 | AK9: 398325.3753 | AL9: 14228.56885 | AM9: 0 | AN9: 0 | AO9: 0 | AP9: =K9/100*Z9*'Model inputs'!$E$14 -> 0 | AQ9: =L9/100*AA9*'Model inputs'!$E$14 -> 0 | AR9: =M9/100*AB9*'Model inputs'!$E$14 -> 0 | AX9: 412553.9441
B10: ='Prop2019-20DistTar'!B10 -> Residential with Heat Pump Network | D10: 0 | E10: 0 | F10: 1.332 | G10: 2.104 | H10: 0 | I10: 0 | J10: 0 | K10: 0 | L10: 0 | M10: 0 | S10: ='Prop2019-20DistTar'!AQ10 -> 4828.797917 | T10: ='Prop2019-20DistTar'!AR10 -> 0 | U10: ='Prop2019-20DistTar'!AS10 -> 60221624.82 | V10: ='Prop2019-20DistTar'!AT10 -> 739416.9216 | W10: ='Prop2019-20DistTar'!AU10 -> 0 | X10: ='Prop2019-20DistTar'!AV10 -> 0 | Y10: ='Prop2019-20DistTar'!AW10 -> 0 | Z10: ='Prop2019-20DistTar'!AX10 -> 0 | AA10: ='Prop2019-20DistTar'!AY10 -> 0 | AB10: ='Prop2019-20DistTar'!AZ10 -> 0 | AI10: =D10/100*S10*'Model inputs'!$E$14 -> 0 | AJ10: 0 | AK10: 802152.0426 | AL10: 15557.33203 | AM10: 0 | AN10: 0 | AO10: 0 | AP10: =K10/100*Z10*'Model inputs'!$E$14 -> 0 | AQ10: =L10/100*AA10*'Model inputs'!$E$14 -> 0 | AR10: =M10/100*AB10*'Model inputs'!$E$14 -> 0 | AX10: 817709.3747
B11: ='Prop2019-20DistTar'!B11 -> Off-Peak (1) Night Network | D11: 0 | E11: 0 | F11: 0 | G11: 0 | H11: 0 | I11: 0 | J11: 0.648 | K11: 0 | L11: 0 | M11: 0 | S11: ='Prop2019-20DistTar'!AQ11 -> 0 | T11: ='Prop2019-20DistTar'!AR11 -> 0 | U11: ='Prop2019-20DistTar'!AS11 -> 0 | V11: ='Prop2019-20DistTar'!AT11 -> 0 | W11: ='Prop2019-20DistTar'!AU11 -> 0 | X11: ='Prop2019-20DistTar'!AV11 -> 0 | Y11: ='Prop2019-20DistTar'!AW11 -> 11564212.89 | Z11: ='Prop2019-20DistTar'!AX11 -> 0 | AA11: ='Prop2019-20DistTar'!AY11 -> 0 | AB11: ='Prop2019-20DistTar'!AZ11 -> 0 | AI11: =D11/100*S11*'Model inputs'!$E$14 -> 0 | AJ11: 0 | AK11: 0 | AL11: 0 | AM11: 0 | AN11: 0 | AO11: 74936.09951 | AP11: =K11/100*Z11*'Model inputs'!$E$14 -> 0 | AQ11: =L11/100*AA11*'Model inputs'!$E$14 -> 0 | AR11: =M11/100*AB11*'Model inputs'!$E$14 -> 0 | AX11: 74936.09951
B12: ='Prop2019-20DistTar'!B12 -> Off-Peak (3) Day & Night Network | D12: 0 | E12: 0 | F12: 0 | G12: 0 | H12: 0 | I12: 0 | J12: 0.997 | K12: 0 | L12: 0 | M12: 0 | S12: ='Prop2019-20DistTar'!AQ12 -> 0 | T12: ='Prop2019-20DistTar'!AR12 -> 0 | U12: ='Prop2019-20DistTar'!AS12 -> 0 | V12: ='Prop2019-20DistTar'!AT12 -> 0 | W12: ='Prop2019-20DistTar'!AU12 -> 0 | X12: ='Prop2019-20DistTar'!AV12 -> 0 | Y12: ='Prop2019-20DistTar'!AW12 -> 74967089.13 | Z12: ='Prop2019-20DistTar'!AX12 -> 0 | AA12: ='Prop2019-20DistTar'!AY12 -> 0 | AB12: ='Prop2019-20DistTar'!AZ12 -> 0 | AI12: =D12/100*S12*'Model inputs'!$E$14 -> 0 | AJ12: 0 | AK12: 0 | AL12: 0 | AM12: 0 | AN12: 0 | AO12: 747421.8787 | AP12: =K12/100*Z12*'Model inputs'!$E$14 -> 0 | AQ12: =L12/100*AA12*'Model inputs'!$E$14 -> 0 | AR12: =M12/100*AB12*'Model inputs'!$E$14 -> 0 | AX12: 747421.8787
B13: ='Prop2019-20DistTar'!B13 -> Residential Demand Network | D13: 0 | E13: 0.467 | F13: 0 | G13: 0 | H13: 0 | I13: 0 | J13: 0 | K13: 2.964 | L13: 0 | M13: 0 | S13: ='Prop2019-20DistTar'!AQ13 -> 15800.38917 | T13: ='Prop2019-20DistTar'!AR13 -> 64156094 | U13: ='Prop2019-20DistTar'!AS13 -> 0 | V13: ='Prop2019-20DistTar'!AT13 -> 0 | W13: ='Prop2019-20DistTar'!AU13 -> 0 | X13: ='Prop2019-20DistTar'!AV13 -> 0 | Y13: ='Prop2019-20DistTar'!AW13 -> 0 | Z13: ='Prop2019-20DistTar'!AX13 -> 51543.45693 | AA13: ='Prop2019-20DistTar'!AY13 -> 0 | AB13: ='Prop2019-20DistTar'!AZ13 -> 0 | AI13: =D13/100*S13*'Model inputs'!$E$14 -> 0 | AJ13: 299608.959 | AK13: 0 | AL13: 0 | AM13: 0 | AN13: 0 | AO13: 0 | AP13: =K13/100*Z13*'Model inputs'!$E$14 -> 559155.7912 | AQ13: =L13/100*AA13*'Model inputs'!$E$14 -> 0 | AR13: =M13/100*AB13*'Model inputs'!$E$14 -> 0 | AX13: 858764.7502
D14: 0 | E14: 0 | F14: 0 | G14: 0 | H14: 0 | I14: 0 | J14: 0 | K14: 0 | L14: 0 | M14: 0 | S14: ='Prop2019-20DistTar'!AQ14 -> 0 | T14: ='Prop2019-20DistTar'!AR14 -> 0 | U14: ='Prop2019-20DistTar'!AS14 -> 0 | V14: ='Prop2019-20DistTar'!AT14 -> 0 | W14: ='Prop2019-20DistTar'!AU14 -> 0 | X14: ='Prop2019-20DistTar'!AV14 -> 0 | Y14: ='Prop2019-20DistTar'!AW14 -> 0 | Z14: ='Prop2019-20DistTar'!AX14 -> 0 | AA14: ='Prop2019-20DistTar'!AY14 -> 0 | AB14: ='Prop2019-20DistTar'!AZ14 -> 0 | AI14: =D14/100*S14*'Model inputs'!$E$14 -> 0 | AJ14: 0 | AK14: 0 | AL14: 0 | AM14: 0 | AN14: 0 | AO14: 0 | AP14: =K14/100*Z14*'Model inputs'!$E$14 -> 0 | AQ14: =L14/100*AA14*'Model inputs'!$E$14 -> 0 | AR14: =M14/100*AB14*'Model inputs'!$E$14 -> 0 | AX14: 0
B15: ='Prop2019-20DistTar'!B15 -> General Network | D15: 0 | E15: 0 | F15: 1.639 | G15: 2.13 | H15: 0 | I15: 0 | J15: 0 | K15: 0 | L15: 0 | M15: 0 | S15: ='Prop2019-20DistTar'!AQ15 -> 11678.65625 | T15: ='Prop2019-20DistTar'!AR15 -> 0 | U15: ='Prop2019-20DistTar'!AS15 -> 180662648 | V15: ='Prop2019-20DistTar'!AT15 -> 13067598.78 | W15: ='Prop2019-20DistTar'!AU15 -> 0 | X15: ='Prop2019-20DistTar'!AV15 -> 0 | Y15: ='Prop2019-20DistTar'!AW15 -> 0 | Z15: ='Prop2019-20DistTar'!AX15 -> 0 | AA15: ='Prop2019-20DistTar'!AY15 -> 0 | AB15: ='Prop2019-20DistTar'!AZ15 -> 0 | AI15: =D15/100*S15*'Model inputs'!$E$14 -> 0 | AJ15: 0 | AK15: 2961060.801 | AL15: 278339.8541 | AM15: 0 | AN15: 0 | AO15: 0 | AP15: =K15/100*Z15*'Model inputs'!$E$14 -> 0 | AQ15: =L15/100*AA15*'Model inputs'!$E$14 -> 0 | AR15: =M15/100*AB15*'Model inputs'!$E$14 -> 0 | AX15: 3239400.655
B16: ='Prop2019-20DistTar'!B16 -> General TOU Network | D16: 0 | E16: 0 | F16: 0 | G16: 0 | H16: 2.908 | I16: 0.918 | J16: 0.415 | K16: 0 | L16: 0 | M16: 0 | S16: ='Prop2019-20DistTar'!AQ16 -> 3530.968226 | T16: ='Prop2019-20DistTar'!AR16 -> 0 | U16: ='Prop2019-20DistTar'!AS16 -> 0 | V16: ='Prop2019-20DistTar'!AT16 -> 0 | W16: ='Prop2019-20DistTar'!AU16 -> 77093171.92 | X16: ='Prop2019-20DistTar'!AV16 -> 33846089.99 | Y16: ='Prop2019-20DistTar'!AW16 -> 90092863.81 | Z16: ='Prop2019-20DistTar'!AX16 -> 0 | AA16: ='Prop2019-20DistTar'!AY16 -> 0 | AB16: ='Prop2019-20DistTar'!AZ16 -> 0 | AI16: =D16/100*S16*'Model inputs'!$E$14 -> 0 | AJ16: 0 | AK16: 0 | AL16: 0 | AM16: 2241869.439 | AN16: 310707.1061 | AO16: 373885.3848 | AP16: =K16/100*Z16*'Model inputs'!$E$14 -> 0 | AQ16: =L16/100*AA16*'Model inputs'!$E$14 -> 0 | AR16: =M16/100*AB16*'Model inputs'!$E$14 -> 0 | AX16: 2926461.93
B17: ='Prop2019-20DistTar'!B17 -> LV TOU kVA Demand Network | D17: 0 | E17: 0 | F17: 0 | G17: 0 | H17: 0.846 | I17: 0.467 | J17: 0.254 | K17: 0 | L17: 9.903 | M17: 0 | S17: ='Prop2019-20DistTar'!AQ17 -> 1670.33727 | T17: ='Prop2019-20DistTar'!AR17 -> 0 | U17: ='Prop2019-20DistTar'!AS17 -> 0 | V17: ='Prop2019-20DistTar'!AT17 -> 0 | W17: ='Prop2019-20DistTar'!AU17 -> 265878059.4 | X17: ='Prop2019-20DistTar'!AV17 -> 96902363.92 | Y17: ='Prop2019-20DistTar'!AW17 -> 299727066.3 | Z17: ='Prop2019-20DistTar'!AX17 -> 0 | AA17: ='Prop2019-20DistTar'!AY17 -> 164093.4961 | AB17: ='Prop2019-20DistTar'!AZ17 -> 0 | AI17: =D17/100*S17*'Model inputs'!$E$14 -> 0 | AJ17: 0 | AK17: 0 | AL17: 0 | AM17: 2249328.383 | AN17: 452534.0395 | AO17: 761306.7484 | AP17: =K17/100*Z17*'Model inputs'!$E$14 -> 0 | AQ17: =L17/100*AA17*'Model inputs'!$E$14 -> 5947565.484 | AR17: =M17/100*AB17*'Model inputs'!$E$14 -> 0 | AX17: 9410734.654
B18: ='Prop2019-20DistTar'!B18 -> LV TOU Capacity Network | D18: 0 | E18: 0 | F18: 0 | G18: 0 | H18: 1.553 | I18: 0.858 | J18: 0.467 | K18: 0 | L18: 2.549 | M18: 2.549 | S18: ='Prop2019-20DistTar'!AQ18 -> 61.33959027 | T18: ='Prop2019-20DistTar'!AR18 -> 0 | U18: ='Prop2019-20DistTar'!AS18 -> 0 | V18: ='Prop2019-20DistTar'!AT18 -> 0 | W18: ='Prop2019-20DistTar'!AU18 -> 17111854.46 | X18: ='Prop2019-20DistTar'!AV18 -> 7451206.072 | Y18: ='Prop2019-20DistTar'!AW18 -> 25612786.78 | Z18: ='Prop2019-20DistTar'!AX18 -> 0 | AA18: ='Prop2019-20DistTar'!AY18 -> 9713.101791 | AB18: ='Prop2019-20DistTar'!AZ18 -> 11243.77696 | AI18: =D18/100*S18*'Model inputs'!$E$14 -> 0 | AJ18: 0 | AK18: 0 | AL18: 0 | AM18: 265747.0997 | AN18: 63931.3481 | AO18: 119611.7143 | AP18: =K18/100*Z18*'Model inputs'!$E$14 -> 0 | AQ18: =L18/100*AA18*'Model inputs'!$E$14 -> 90616.82906 | AR18: =M18/100*AB18*'Model inputs'!$E$14 -> 104897.0181 | AX18: 644804.0093
B19: ='Prop2019-20DistTar'!B19 -> LV Demand Network | D19: 0 | E19: 0.407 | F19: 0 | G19: 0 | H19: 0 | I19: 0 | J19: 0 | K19: 9.525 | L19: 0 | M19: 0 | S19: ='Prop2019-20DistTar'!AQ19 -> 1704.77526 | T19: ='Prop2019-20DistTar'!AR19 -> 204431045 | U19: ='Prop2019-20DistTar'!AS19 -> 0 | V19: ='Prop2019-20DistTar'!AT19 -> 0 | W19: ='Prop2019-20DistTar'!AU19 -> 0 | X19: ='Prop2019-20DistTar'!AV19 -> 0 | Y19: ='Prop2019-20DistTar'!AW19 -> 0 | Z19: ='Prop2019-20DistTar'!AX19 -> 71517.87226 | AA19: ='Prop2019-20DistTar'!AY19 -> 0 | AB19: ='Prop2019-20DistTar'!AZ19 -> 0 | AI19: =D19/100*S19*'Model inputs'!$E$14 -> 0 | AJ19: 832034.353 | AK19: 0 | AL19: 0 | AM19: 0 | AN19: 0 | AO19: 0 | AP19: =K19/100*Z19*'Model inputs'!$E$14 -> 2493220.304 | AQ19: =L19/100*AA19*'Model inputs'!$E$14 -> 0 | AR19: =M19/100*AB19*'Model inputs'!$E$14 -> 0 | AX19: 3325254.657
B20: ='Prop2019-20DistTar'!B20 -> Small Unmetered Loads Network | D20: 0 | E20: 1.468 | F20: 0 | G20: 0 | H20: 0 | I20: 0 | J20: 0 | K20: 0 | L20: 0 | M20: 0 | S20: ='Prop2019-20DistTar'!AQ20 -> 23.90968695 | T20: ='Prop2019-20DistTar'!AR20 -> 3268461.745 | U20: ='Prop2019-20DistTar'!AS20 -> 0 | V20: ='Prop2019-20DistTar'!AT20 -> 0 | W20: ='Prop2019-20DistTar'!AU20 -> 0 | X20: ='Prop2019-20DistTar'!AV20 -> 0 | Y20: ='Prop2019-20DistTar'!AW20 -> 0 | Z20: ='Prop2019-20DistTar'!AX20 -> 0 | AA20: ='Prop2019-20DistTar'!AY20 -> 0 | AB20: ='Prop2019-20DistTar'!AZ20 -> 0 | AI20: =D20/100*S20*'Model inputs'!$E$14 -> 0 | AJ20: 47981.01842 | AK20: 0 | AL20: 0 | AM20: 0 | AN20: 0 | AO20: 0 | AP20: =K20/100*Z20*'Model inputs'!$E$14 -> 0 | AQ20: =L20/100*AA20*'Model inputs'!$E$14 -> 0 | AR20: =M20/100*AB20*'Model inputs'!$E$14 -> 0 | AX20: 47981.01842
B21: ='Prop2019-20DistTar'!B21 -> Streetlighting Network | D21: 0 | E21: 1.297 | F21: 0 | G21: 0 | H21: 0 | I21: 0 | J21: 0 | K21: 0 | L21: 0 | M21: 0 | S21: ='Prop2019-20DistTar'!AQ21 -> 20.42364638 | T21: ='Prop2019-20DistTar'!AR21 -> 39998575.03 | U21: ='Prop2019-20DistTar'!AS21 -> 0 | V21: ='Prop2019-20DistTar'!AT21 -> 0 | W21: ='Prop2019-20DistTar'!AU21 -> 0 | X21: ='Prop2019-20DistTar'!AV21 -> 0 | Y21: ='Prop2019-20DistTar'!AW21 -> 0 | Z21: ='Prop2019-20DistTar'!AX21 -> 0 | AA21: ='Prop2019-20DistTar'!AY21 -> 0 | AB21: ='Prop2019-20DistTar'!AZ21 -> 0 | AI21: =D21/100*S21*'Model inputs'!$E$14 -> 0 | AJ21: 518781.5182 | AK21: 0 | AL21: 0 | AM21: 0 | AN21: 0 | AO21: 0 | AP21: =K21/100*Z21*'Model inputs'!$E$14 -> 0 | AQ21: =L21/100*AA21*'Model inputs'!$E$14 -> 0 | AR21: =M21/100*AB21*'Model inputs'!$E$14 -> 0 | AX21: 518781.5182
D22: 0 | E22: 0 | F22: 0 | G22: 0 | H22: 0 | I22: 0 | J22: 0 | K22: 0 | L22: 0 | M22: 0 | S22: ='Prop2019-20DistTar'!AQ22 -> 0 | T22: ='Prop2019-20DistTar'!AR22 -> 0 | U22: ='Prop2019-20DistTar'!AS22 -> 0 | V22: ='Prop2019-20DistTar'!AT22 -> 0 | W22: ='Prop2019-20DistTar'!AU22 -> 0 | X22: ='Prop2019-20DistTar'!AV22 -> 0 | Y22: ='Prop2019-20DistTar'!AW22 -> 0 | Z22: ='Prop2019-20DistTar'!AX22 -> 0 | AA22: ='Prop2019-20DistTar'!AY22 -> 0 | AB22: ='Prop2019-20DistTar'!AZ22 -> 0 | AI22: =D22/100*S22*'Model inputs'!$E$14 -> 0 | AJ22: 0 | AK22: 0 | AL22: 0 | AM22: 0 | AN22: 0 | AO22: 0 | AP22: =K22/100*Z22*'Model inputs'!$E$14 -> 0 | AQ22: =L22/100*AA22*'Model inputs'!$E$14 -> 0 | AR22: =M22/100*AB22*'Model inputs'!$E$14 -> 0 | AX22: 0
B23: ='Prop2019-20DistTar'!B23 -> HV TOU Demand Network | D23: 0 | E23: 0 | F23: 0 | G23: 0 | H23: 0.494 | I23: 0.28 | J23: 0.163 | K23: 0 | L23: 5.112 | M23: 5.112 | S23: ='Prop2019-20DistTar'!AQ23 -> 1 | T23: ='Prop2019-20DistTar'!AR23 -> 0 | U23: ='Prop2019-20DistTar'!AS23 -> 0 | V23: ='Prop2019-20DistTar'!AT23 -> 0 | W23: ='Prop2019-20DistTar'!AU23 -> 2714539.113 | X23: ='Prop2019-20DistTar'!AV23 -> 1132142.525 | Y23: ='Prop2019-20DistTar'!AW23 -> 3447505.058 | Z23: ='Prop2019-20DistTar'!AX23 -> 0 | AA23: ='Prop2019-20DistTar'!AY23 -> 1589.572824 | AB23: ='Prop2019-20DistTar'!AZ23 -> 2028.89842 | AI23: =D23/100*S23*'Model inputs'!$E$14 -> 0 | AJ23: 0 | AK23: 0 | AL23: 0 | AM23: 13409.82322 | AN23: 3169.99907 | AO23: 5619.433245 | AP23: =K23/100*Z23*'Model inputs'!$E$14 -> 0 | AQ23: =L23/100*AA23*'Model inputs'!$E$14 -> 29740.78036 | AR23: =M23/100*AB23*'Model inputs'!$E$14 -> 37960.52714 | AX23: 89900.56303
B24: ='Prop2019-20DistTar'!B24 -> HV TOU Demand Network – Customer LV | D24: 0 | E24: 0 | F24: 0 | G24: 0 | H24: 0.647 | I24: 0.383 | J24: 0.23 | K24: 0 | L24: 5.137 | M24: 5.137 | S24: ='Prop2019-20DistTar'!AQ24 -> 21.41865258 | T24: ='Prop2019-20DistTar'!AR24 -> 0 | U24: ='Prop2019-20DistTar'!AS24 -> 0 | V24: ='Prop2019-20DistTar'!AT24 -> 0 | W24: ='Prop2019-20DistTar'!AU24 -> 118297254.9 | X24: ='Prop2019-20DistTar'!AV24 -> 45733554.98 | Y24: ='Prop2019-20DistTar'!AW24 -> 149905321 | Z24: ='Prop2019-20DistTar'!AX24 -> 0 | AA24: ='Prop2019-20DistTar'!AY24 -> 58848.53748 | AB24: ='Prop2019-20DistTar'!AZ24 -> 68103.37407 | AI24: =D24/100*S24*'Model inputs'!$E$14 -> 0 | AJ24: 0 | AK24: 0 | AL24: 0 | AM24: 765383.2389 | AN24: 175159.5156 | AO24: 344782.2384 | AP24: =K24/100*Z24*'Model inputs'!$E$14 -> 0 | AQ24: =L24/100*AA24*'Model inputs'!$E$14 -> 1106436.07 | AR24: =M24/100*AB24*'Model inputs'!$E$14 -> 1280440.139 | AX24: 3672201.202
B25: ='Prop2019-20DistTar'!B25 -> HV TOU Demand Network – Customer HV and LV | D25: 0 | E25: 0 | F25: 0 | G25: 0 | H25: 0.947 | I25: 0.56 | J25: 0.337 | K25: 0 | L25: 3.906 | M25: 3.906 | S25: ='Prop2019-20DistTar'!AQ25 -> 11.87096285 | T25: ='Prop2019-20DistTar'!AR25 -> 0 | U25: ='Prop2019-20DistTar'!AS25 -> 0 | V25: ='Prop2019-20DistTar'!AT25 -> 0 | W25: ='Prop2019-20DistTar'!AU25 -> 18639720.33 | X25: ='Prop2019-20DistTar'!AV25 -> 8742244.557 | Y25: ='Prop2019-20DistTar'!AW25 -> 29629694.64 | Z25: ='Prop2019-20DistTar'!AX25 -> 0 | AA25: ='Prop2019-20DistTar'!AY25 -> 10017.68031 | AB25: ='Prop2019-20DistTar'!AZ25 -> 11703.87283 | AI25: =D25/100*S25*'Model inputs'!$E$14 -> 0 | AJ25: 0 | AK25: 0 | AL25: 0 | AM25: 176518.1515 | AN25: 48956.56952 | AO25: 99852.07093 | AP25: =K25/100*Z25*'Model inputs'!$E$14 -> 0 | AQ25: =L25/100*AA25*'Model inputs'!$E$14 -> 143212.357 | AR25: =M25/100*AB25*'Model inputs'!$E$14 -> 167318.0978 | AX25: 635857.2468
S66: =SUM(S6:S65) -> 205532.9495 | T66: 1062586429 | U66: 270151383.4 | V66: 14673027.2 | W66: 555728996.7 | X66: 272296642.3 | Y66: 741142483.1 | Z66: 123061.3292 | AA66: 244262.3885 | AB66: =SUM(AB6:AB65) -> 93079.92228 | AC66: 0 | AD66: 0 | AE66: 0 | AF66: 0 | AG66: 0 | AI66: =SUM(AI6:AI65) -> 0 | AJ66: 12088540.23 | AK66: 4161538.218 | AL66: 308125.7549 | AM66: 6824304.851 | AN66: 2176851.853 | AO66: 2921349.132 | AP66: 3052376.095 | AQ66: 7317571.52 | AR66: 1590615.782 | AS66: 0 | AT66: 0 | AU66: 0 | AV66: 0 | AW66: 0 | AX66: 40441273.44

Sheet Est2018-19TransRev
B1: ="Tariff Approval - "&'Model inputs'!C3 -> Tariff Approval - Evoenergy
B3: ="ESTIMATED "&'Model inputs'!C5&" TRANSMISSION TARIFF REVENUE" -> ESTIMATED 2018/19 TRANSMISSION TARIFF REVENUE
D4: ="Current Transmission Tariffs (Pt-1) for "&'Model inputs'!C5 -> Current Transmission Tariffs (Pt-1) for 2018/19 | Z4: ="Estimated Quantities (Qt-1) for "&'Model inputs'!C5 -> Estimated Quantities (Qt-1) for 2018/19 | AV4: ="Estimated Revenue (Pt-1 "&'Model inputs'!C5&")*(Qt-1 " &'Model inputs'!C5&")" -> Estimated Revenue (Pt-1 2018/19)*(Qt-1 2018/19)
B5: ="Tariffs "&'Model inputs'!C5 -> Tariffs 2018/19 | D5: ='Est2018-19DistRev'!D5 -> CurrentTar Fixed | E5: ='Est2018-19DistRev'!E5 -> CurrentTar Anytime | F5: ='Est2018-19DistRev'!F5 -> CurrentTar Block: Step 1 | G5: ='Est2018-19DistRev'!G5 -> CurrentTar Block: Step 2 | H5: ='Est2018-19DistRev'!H5 -> CurrentTar TOU: Peak | I5: ='Est2018-19DistRev'!I5 -> CurrentTar TOU: Shoulder | J5: ='Est2018-19DistRev'!J5 -> CurrentTar TOU: Off-peak | K5: ='Est2018-19DistRev'!K5 -> CurrentTar Dem kW | L5: ='Est2018-19DistRev'!L5 -> CurrentTar Dem kVA: peak | M5: ='Est2018-19DistRev'!M5 -> CurrentTar Capacity kVA: anytime | Z5: ='Est2018-19DistRev'!Z5 -> EstVol Fixed | AA5: ='Est2018-19DistRev'!AA5 -> EstVol Anytime | AB5: ='Est2018-19DistRev'!AB5 -> EstVol Block: Step 1 | AC5: ='Est2018-19DistRev'!AC5 -> EstVol Block: Step 2 | AD5: ='Est2018-19DistRev'!AD5 -> EstVol TOU: Peak | AE5: ='Est2018-19DistRev'!AE5 -> EstVol TOU: Shoulder | AF5: ='Est2018-19DistRev'!AF5 -> EstVol TOU: Off-peak | AG5: ='Est2018-19DistRev'!AG5 -> EstVol Dem kW | AH5: ='Est2018-19DistRev'!AH5 -> EstVol Dem kVA: peak | AI5: ='Est2018-19DistRev'!AI5 -> EstVol Capacity kVA: anytime | AV5: ='Est2018-19DistRev'!AV5 -> EstRev Fixed | AW5: ='Est2018-19DistRev'!AW5 -> EstRev Anytime | AX5: ='Est2018-19DistRev'!AX5 -> EstRev Block: Step 1 | AY5: ='Est2018-19DistRev'!AY5 -> EstRev Block: Step 2 | AZ5: ='Est2018-19DistRev'!AZ5 -> EstRev TOU: Peak | BA5: ='Est2018-19DistRev'!BA5 -> EstRev TOU: Shoulder | BB5: ='Est2018-19DistRev'!BB5 -> EstRev TOU: Off-peak | BC5: ='Est2018-19DistRev'!BC5 -> EstRev Dem kW | BD5: ='Est2018-19DistRev'!BD5 -> EstRev Dem kVA: peak | BE5: ='Est2018-19DistRev'!BE5 -> EstRev Capacity kVA: anytime | BQ5: ='Est2018-19DistRev'!BQ5 -> EstRev Total
AV6: =D6*Z6 -> 0 | AW6: =E6/100*AA6 -> 0 | AX6: 0 | AY6: 0 | AZ6: 0 | BA6: 0 | BB6: 0 | BC6: 0 | BD6: 0 | BE6: =M6*AI6 -> 0 | BQ6: =SUM(AV6:BP6) -> 0
B7: ='Est2018-19DistRev'!B7 -> Residential Basic Network | E7: 1.5936 | Z7: ='Est2018-19DistRev'!Z7 -> 128078.5854 | AA7: ='Est2018-19DistRev'!AA7 -> 776892459.2 | AB7: ='Est2018-19DistRev'!AB7 -> 0 | AC7: ='Est2018-19DistRev'!AC7 -> 0 | AD7: ='Est2018-19DistRev'!AD7 -> 0 | AE7: ='Est2018-19DistRev'!AE7 -> 0 | AF7: ='Est2018-19DistRev'!AF7 -> 0 | AG7: ='Est2018-19DistRev'!AG7 -> 0 | AH7: ='Est2018-19DistRev'!AH7 -> 0 | AI7: ='Est2018-19DistRev'!AI7 -> 0 | AV7: =D7/100*Z7*'Model inputs'!$D$14 -> 0 | AW7: =E7/100*AA7 -> 12380558.23 | AX7: 0 | AY7: 0 | AZ7: 0 | BA7: 0 | BB7: 0 | BC7: =K7/100*AG7*'Model inputs'!$D$14 -> 0 | BD7: =L7/100*AH7*'Model inputs'!$D$14 -> 0 | BE7: =M7/100*AI7*'Model inputs'!$D$14 -> 0 | BQ7: =SUM(AV7:BP7) -> 12380558.23
B8: ='Est2018-19DistRev'!B8 -> Residential TOU Network | H8: 2.2625 | I8: 1.4306 | J8: 1.0772 | Z8: ='Est2018-19DistRev'!Z8 -> 37571.41042 | AA8: ='Est2018-19DistRev'!AA8 -> 0 | AB8: ='Est2018-19DistRev'!AB8 -> 0 | AC8: ='Est2018-19DistRev'!AC8 -> 0 | AD8: ='Est2018-19DistRev'!AD8 -> 57421281.6 | AE8: ='Est2018-19DistRev'!AE8 -> 80471393.39 | AF8: ='Est2018-19DistRev'!AF8 -> 58191270.35 | AG8: ='Est2018-19DistRev'!AG8 -> 0 | AH8: ='Est2018-19DistRev'!AH8 -> 0 | AI8: ='Est2018-19DistRev'!AI8 -> 0 | AV8: =D8/100*Z8*'Model inputs'!$D$14 -> 0 | AW8: 0 | AX8: 0 | AY8: 0 | AZ8: 1299156.496 | BA8: 1151223.754 | BB8: 626836.3642 | BC8: =K8/100*AG8*'Model inputs'!$D$14 -> 0 | BD8: =L8/100*AH8*'Model inputs'!$D$14 -> 0 | BE8: =M8/100*AI8*'Model inputs'!$D$14 -> 0 | BQ8: 3077216.614
B9: ='Est2018-19DistRev'!B9 -> Residential 5000 Network | F9: 1.5936 | G9: 1.5936 | Z9: ='Est2018-19DistRev'!Z9 -> 4097.49375 | AA9: ='Est2018-19DistRev'!AA9 -> 0 | AB9: ='Est2018-19DistRev'!AB9 -> 30609473.52 | AC9: ='Est2018-19DistRev'!AC9 -> 1029792.818 | AD9: ='Est2018-19DistRev'!AD9 -> 0 | AE9: ='Est2018-19DistRev'!AE9 -> 0 | AF9: ='Est2018-19DistRev'!AF9 -> 0 | AG9: ='Est2018-19DistRev'!AG9 -> 0 | AH9: ='Est2018-19DistRev'!AH9 -> 0 | AI9: ='Est2018-19DistRev'!AI9 -> 0 | AV9: =D9/100*Z9*'Model inputs'!$D$14 -> 0 | AW9: 0 | AX9: 487792.5701 | AY9: 16410.77835 | AZ9: 0 | BA9: 0 | BB9: 0 | BC9: =K9/100*AG9*'Model inputs'!$D$14 -> 0 | BD9: =L9/100*AH9*'Model inputs'!$D$14 -> 0 | BE9: =M9/100*AI9*'Model inputs'!$D$14 -> 0 | BQ9: 504203.3484
B10: ='Est2018-19DistRev'!B10 -> Residential with Heat Pump Network | F10: 1.5936 | G10: 1.5936 | Z10: ='Est2018-19DistRev'!Z10 -> 5006.49375 | AA10: ='Est2018-19DistRev'!AA10 -> 0 | AB10: ='Est2018-19DistRev'!AB10 -> 63293804.34 | AC10: ='Est2018-19DistRev'!AC10 -> 785377.0308 | AD10: ='Est2018-19DistRev'!AD10 -> 0 | AE10: ='Est2018-19DistRev'!AE10 -> 0 | AF10: ='Est2018-19DistRev'!AF10 -> 0 | AG10: ='Est2018-19DistRev'!AG10 -> 0 | AH10: ='Est2018-19DistRev'!AH10 -> 0 | AI10: ='Est2018-19DistRev'!AI10 -> 0 | AV10: =D10/100*Z10*'Model inputs'!$D$14 -> 0 | AW10: 0 | AX10: 1008650.066 | AY10: 12515.76836 | AZ10: 0 | BA10: 0 | BB10: 0 | BC10: =K10/100*AG10*'Model inputs'!$D$14 -> 0 | BD10: =L10/100*AH10*'Model inputs'!$D$14 -> 0 | BE10: =M10/100*AI10*'Model inputs'!$D$14 -> 0 | BQ10: 1021165.834
B11: ='Est2018-19DistRev'!B11 -> Off-Peak (1) Night Network | J11: 0.7541 | Z11: ='Est2018-19DistRev'!Z11 -> 0 | AA11: ='Est2018-19DistRev'!AA11 -> 0 | AB11: ='Est2018-19DistRev'!AB11 -> 0 | AC11: ='Est2018-19DistRev'!AC11 -> 0 | AD11: ='Est2018-19DistRev'!AD11 -> 0 | AE11: ='Est2018-19DistRev'!AE11 -> 0 | AF11: ='Est2018-19DistRev'!AF11 -> 10567723.73 | AG11: ='Est2018-19DistRev'!AG11 -> 0 | AH11: ='Est2018-19DistRev'!AH11 -> 0 | AI11: ='Est2018-19DistRev'!AI11 -> 0 | AV11: =D11/100*Z11*'Model inputs'!$D$14 -> 0 | AW11: 0 | AX11: 0 | AY11: 0 | AZ11: 0 | BA11: 0 | BB11: 79691.20466 | BC11: =K11/100*AG11*'Model inputs'!$D$14 -> 0 | BD11: =L11/100*AH11*'Model inputs'!$D$14 -> 0 | BE11: =M11/100*AI11*'Model inputs'!$D$14 -> 0 | BQ11: 79691.20466
B12: ='Est2018-19DistRev'!B12 -> Off-Peak (3) Day & Night Network | J12: 1.2782 | Z12: ='Est2018-19DistRev'!Z12 -> 0 | AA12: ='Est2018-19DistRev'!AA12 -> 0 | AB12: ='Est2018-19DistRev'!AB12 -> 0 | AC12: ='Est2018-19DistRev'!AC12 -> 0 | AD12: ='Est2018-19DistRev'!AD12 -> 0 | AE12: ='Est2018-19DistRev'!AE12 -> 0 | AF12: ='Est2018-19DistRev'!AF12 -> 69190249.35 | AG12: ='Est2018-19DistRev'!AG12 -> 0 | AH12: ='Est2018-19DistRev'!AH12 -> 0 | AI12: ='Est2018-19DistRev'!AI12 -> 0 | AV12: =D12/100*Z12*'Model inputs'!$D$14 -> 0 | AW12: 0 | AX12: 0 | AY12: 0 | AZ12: 0 | BA12: 0 | BB12: 884389.7672 | BC12: =K12/100*AG12*'Model inputs'!$D$14 -> 0 | BD12: =L12/100*AH12*'Model inputs'!$D$14 -> 0 | BE12: =M12/100*AI12*'Model inputs'!$D$14 -> 0 | BQ12: 884389.7672
B13: ='Est2018-19DistRev'!B13 -> Residential Demand Network | E13: 0.5976 | K13: 2.786 | Z13: ='Est2018-19DistRev'!Z13 -> 7627.766667 | AA13: ='Est2018-19DistRev'!AA13 -> 31024618.24 | AB13: ='Est2018-19DistRev'!AB13 -> 0 | AC13: ='Est2018-19DistRev'!AC13 -> 0 | AD13: ='Est2018-19DistRev'!AD13 -> 0 | AE13: ='Est2018-19DistRev'!AE13 -> 0 | AF13: ='Est2018-19DistRev'!AF13 -> 0 | AG13: ='Est2018-19DistRev'!AG13 -> 24610.13995 | AH13: ='Est2018-19DistRev'!AH13 -> 0 | AI13: ='Est2018-19DistRev'!AI13 -> 0 | AV13: =D13/100*Z13*'Model inputs'!$D$14 -> 0 | AW13: 185403.1186 | AX13: 0 | AY13: 0 | AZ13: 0 | BA13: 0 | BB13: 0 | BC13: =K13/100*AG13*'Model inputs'!$D$14 -> 250258.0522 | BD13: =L13/100*AH13*'Model inputs'!$D$14 -> 0 | BE13: =M13/100*AI13*'Model inputs'!$D$14 -> 0 | BQ13: 435661.1708
Z14: ='Est2018-19DistRev'!Z14 -> 0 | AA14: ='Est2018-19DistRev'!AA14 -> 0 | AB14: ='Est2018-19DistRev'!AB14 -> 0 | AC14: ='Est2018-19DistRev'!AC14 -> 0 | AD14: ='Est2018-19DistRev'!AD14 -> 0 | AE14: ='Est2018-19DistRev'!AE14 -> 0 | AF14: ='Est2018-19DistRev'!AF14 -> 0 | AG14: ='Est2018-19DistRev'!AG14 -> 0 | AH14: ='Est2018-19DistRev'!AH14 -> 0 | AI14: ='Est2018-19DistRev'!AI14 -> 0 | AW14: 0 | AX14: 0 | AY14: 0 | AZ14: 0 | BA14: 0 | BB14: 0 | BC14: =K14/100*AG14*'Model inputs'!$D$14 -> 0 | BD14: =L14/100*AH14*'Model inputs'!$D$14 -> 0 | BE14: =M14/100*AI14*'Model inputs'!$D$14 -> 0 | BQ14: 0
B15: ='Est2018-19DistRev'!B15 -> General Network | F15: 2.1466 | G15: 2.1426 | Z15: ='Est2018-19DistRev'!Z15 -> 11774.63542 | AA15: ='Est2018-19DistRev'!AA15 -> 0 | AB15: ='Est2018-19DistRev'!AB15 -> 192948424.3 | AC15: ='Est2018-19DistRev'!AC15 -> 13783372.67 | AD15: ='Est2018-19DistRev'!AD15 -> 0 | AE15: ='Est2018-19DistRev'!AE15 -> 0 | AF15: ='Est2018-19DistRev'!AF15 -> 0 | AG15: ='Est2018-19DistRev'!AG15 -> 0 | AH15: ='Est2018-19DistRev'!AH15 -> 0 | AI15: ='Est2018-19DistRev'!AI15 -> 0 | AV15: =D15/100*Z15*'Model inputs'!$D$14 -> 0 | AW15: 0 | AX15: 4141830.877 | AY15: 295322.5428 | AZ15: 0 | BA15: 0 | BB15: 0 | BC15: =K15/100*AG15*'Model inputs'!$D$14 -> 0 | BD15: =L15/100*AH15*'Model inputs'!$D$14 -> 0 | BE15: =M15/100*AI15*'Model inputs'!$D$14 -> 0 | BQ15: 4437153.419
B16: ='Est2018-19DistRev'!B16 -> General TOU Network | H16: 3.3439 | I16: 1.4616 | J16: 0.3248 | Z16: ='Est2018-19DistRev'!Z16 -> 3495.946788 | AA16: ='Est2018-19DistRev'!AA16 -> 0 | AB16: ='Est2018-19DistRev'!AB16 -> 0 | AC16: ='Est2018-19DistRev'!AC16 -> 0 | AD16: ='Est2018-19DistRev'!AD16 -> 78604648.85 | AE16: ='Est2018-19DistRev'!AE16 -> 35837697.65 | AF16: ='Est2018-19DistRev'!AF16 -> 96074457.11 | AG16: ='Est2018-19DistRev'!AG16 -> 0 | AH16: ='Est2018-19DistRev'!AH16 -> 0 | AI16: ='Est2018-19DistRev'!AI16 -> 0 | AV16: =D16/100*Z16*'Model inputs'!$D$14 -> 0 | AW16: 0 | AX16: 0 | AY16: 0 | AZ16: 2628460.853 | BA16: 523803.7888 | BB16: 312049.8367 | BC16: =K16/100*AG16*'Model inputs'!$D$14 -> 0 | BD16: =L16/100*AH16*'Model inputs'!$D$14 -> 0 | BE16: =M16/100*AI16*'Model inputs'!$D$14 -> 0 | BQ16: 3464314.478
B17: ='Est2018-19DistRev'!B17 -> LV TOU kVA Demand Network | H17: 2.2299 | I17: 0.9746 | J17: 0.2168 | L17: 6.444 | Z17: ='Est2018-19DistRev'!Z17 -> 1666.847731 | AA17: ='Est2018-19DistRev'!AA17 -> 0 | AB17: ='Est2018-19DistRev'!AB17 -> 0 | AC17: ='Est2018-19DistRev'!AC17 -> 0 | AD17: ='Est2018-19DistRev'!AD17 -> 273707489.5 | AE17: ='Est2018-19DistRev'!AE17 -> 103099335.5 | AF17: ='Est2018-19DistRev'!AF17 -> 322718490.3 | AG17: ='Est2018-19DistRev'!AG17 -> 0 | AH17: ='Est2018-19DistRev'!AH17 -> 168355.1862 | AI17: ='Est2018-19DistRev'!AI17 -> 0 | AV17: =D17/100*Z17*'Model inputs'!$D$14 -> 0 | AW17: 0 | AX17: 0 | AY17: 0 | AZ17: 6103403.308 | BA17: 1004806.124 | BB17: 699653.687 | BC17: =K17/100*AG17*'Model inputs'!$D$14 -> 0 | BD17: =L17/100*AH17*'Model inputs'!$D$14 -> 3959814.992 | BE17: =M17/100*AI17*'Model inputs'!$D$14 -> 0 | BQ17: 11767678.11
B18: ='Est2018-19DistRev'!B18 -> LV TOU Capacity Network | H18: 2.2299 | I18: 0.9746 | J18: 0.2168 | L18: 2.892 | M18: 2.892 | Z18: ='Est2018-19DistRev'!Z18 -> 53.93919669 | AA18: ='Est2018-19DistRev'!AA18 -> 0 | AB18: ='Est2018-19DistRev'!AB18 -> 0 | AC18: ='Est2018-19DistRev'!AC18 -> 0 | AD18: ='Est2018-19DistRev'!AD18 -> 16547257.04 | AE18: ='Est2018-19DistRev'!AE18 -> 6880949.322 | AF18: ='Est2018-19DistRev'!AF18 -> 23332632.53 | AG18: ='Est2018-19DistRev'!AG18 -> 0 | AH18: ='Est2018-19DistRev'!AH18 -> 8641.406914 | AI18: ='Est2018-19DistRev'!AI18 -> 9966.171936 | AV18: =D18/100*Z18*'Model inputs'!$D$14 -> 0 | AW18: 0 | AX18: 0 | AY18: 0 | AZ18: 368987.2846 | BA18: 67061.73209 | BB18: 50585.14732 | BC18: =K18/100*AG18*'Model inputs'!$D$14 -> 0 | BD18: =L18/100*AH18*'Model inputs'!$D$14 -> 91216.9631 | BE18: =M18/100*AI18*'Model inputs'!$D$14 -> 105200.9177 | BQ18: 683052.0449
B19: ='Est2018-19DistRev'!B19 -> LV Demand Network | E19: 1.4296 | K19: 6.076 | Z19: ='Est2018-19DistRev'!Z19 -> 1095.884876 | AA19: ='Est2018-19DistRev'!AA19 -> 139133622.9 | AB19: ='Est2018-19DistRev'!AB19 -> 0 | AC19: ='Est2018-19DistRev'!AC19 -> 0 | AD19: ='Est2018-19DistRev'!AD19 -> 0 | AE19: ='Est2018-19DistRev'!AE19 -> 0 | AF19: ='Est2018-19DistRev'!AF19 -> 0 | AG19: ='Est2018-19DistRev'!AG19 -> 46149.73656 | AH19: ='Est2018-19DistRev'!AH19 -> 0 | AI19: ='Est2018-19DistRev'!AI19 -> 0 | AV19: =D19/100*Z19*'Model inputs'!$D$14 -> 0 | AW19: 1989054.273 | AX19: 0 | AY19: 0 | AZ19: 0 | BA19: 0 | BB19: 0 | BC19: =K19/100*AG19*'Model inputs'!$D$14 -> 1023481.168 | BD19: =L19/100*AH19*'Model inputs'!$D$14 -> 0 | BE19: =M19/100*AI19*'Model inputs'!$D$14 -> 0 | BQ19: 3012535.44
B20: ='Est2018-19DistRev'!B20 -> Small Unmetered Loads Network | E20: 2.1207 | Z20: ='Est2018-19DistRev'!Z20 -> 24.68247872 | AA20: ='Est2018-19DistRev'!AA20 -> 4404716.003 | AB20: ='Est2018-19DistRev'!AB20 -> 0 | AC20: ='Est2018-19DistRev'!AC20 -> 0 | AD20: ='Est2018-19DistRev'!AD20 -> 0 | AE20: ='Est2018-19DistRev'!AE20 -> 0 | AF20: ='Est2018-19DistRev'!AF20 -> 0 | AG20: ='Est2018-19DistRev'!AG20 -> 0 | AH20: ='Est2018-19DistRev'!AH20 -> 0 | AI20: ='Est2018-19DistRev'!AI20 -> 0 | AV20: =D20/100*Z20*'Model inputs'!$D$14 -> 0 | AW20: 93410.81228 | AX20: 0 | AY20: 0 | AZ20: 0 | BA20: 0 | BB20: 0 | BC20: =K20/100*AG20*'Model inputs'!$D$14 -> 0 | BD20: =L20/100*AH20*'Model inputs'!$D$14 -> 0 | BE20: =M20/100*AI20*'Model inputs'!$D$14 -> 0 | BQ20: 93410.81228
B21: ='Est2018-19DistRev'!B21 -> Streetlighting Network | E21: 1.3454 | Z21: ='Est2018-19DistRev'!Z21 -> 19.65085462 | AA21: ='Est2018-19DistRev'!AA21 -> 40053929.6 | AB21: ='Est2018-19DistRev'!AB21 -> 0 | AC21: ='Est2018-19DistRev'!AC21 -> 0 | AD21: ='Est2018-19DistRev'!AD21 -> 0 | AE21: ='Est2018-19DistRev'!AE21 -> 0 | AF21: ='Est2018-19DistRev'!AF21 -> 0 | AG21: ='Est2018-19DistRev'!AG21 -> 0 | AH21: ='Est2018-19DistRev'!AH21 -> 0 | AI21: ='Est2018-19DistRev'!AI21 -> 0 | AV21: =D21/100*Z21*'Model inputs'!$D$14 -> 0 | AW21: 538885.5688 | AX21: 0 | AY21: 0 | AZ21: 0 | BA21: 0 | BB21: 0 | BC21: =K21/100*AG21*'Model inputs'!$D$14 -> 0 | BD21: =L21/100*AH21*'Model inputs'!$D$14 -> 0 | BE21: =M21/100*AI21*'Model inputs'!$D$14 -> 0 | BQ21: 538885.5688
Z22: ='Est2018-19DistRev'!Z22 -> 0 | AA22: ='Est2018-19DistRev'!AA22 -> 0 | AB22: ='Est2018-19DistRev'!AB22 -> 0 | AC22: ='Est2018-19DistRev'!AC22 -> 0 | AD22: ='Est2018-19DistRev'!AD22 -> 0 | AE22: ='Est2018-19DistRev'!AE22 -> 0 | AF22: ='Est2018-19DistRev'!AF22 -> 0 | AG22: ='Est2018-19DistRev'!AG22 -> 0 | AH22: ='Est2018-19DistRev'!AH22 -> 0 | AI22: ='Est2018-19DistRev'!AI22 -> 0 | AW22: 0 | AX22: =F22/100*AB22 -> 0 | AY22: =G22/100*AC22 -> 0 | AZ22: =H22/100*AD22 -> 0 | BA22: =I22/100*AE22 -> 0 | BB22: =J22/100*AF22 -> 0 | BC22: =K22/100*AG22*'Model inputs'!$D$14 -> 0 | BD22: =L22/100*AH22*'Model inputs'!$D$14 -> 0 | BE22: =M22/100*AI22*'Model inputs'!$D$14 -> 0 | BQ22: 0
B23: ='Est2018-19DistRev'!B23 -> HV TOU Demand Network | H23: 1.2855 | I23: 0.562 | J23: 0.1246 | L23: 3.907 | M23: 3.907 | Z23: ='Est2018-19DistRev'!Z23 -> 1 | AA23: ='Est2018-19DistRev'!AA23 -> 0 | AB23: ='Est2018-19DistRev'!AB23 -> 0 | AC23: ='Est2018-19DistRev'!AC23 -> 0 | AD23: ='Est2018-19DistRev'!AD23 -> 2746335.711 | AE23: ='Est2018-19DistRev'!AE23 -> 1140177.41 | AF23: ='Est2018-19DistRev'!AF23 -> 3510984.612 | AG23: ='Est2018-19DistRev'!AG23 -> 0 | AH23: ='Est2018-19DistRev'!AH23 -> 1608.937218 | AI23: ='Est2018-19DistRev'!AI23 -> 2036.71193 | AV23: =D23/100*Z23*'Model inputs'!$D$14 -> 0 | AW23: 0 | AX23: 0 | AY23: 0 | AZ23: 35304.14557 | BA23: 6407.797042 | BB23: 4374.686827 | BC23: =K23/100*AG23*'Model inputs'!$D$14 -> 0 | BD23: =L23/100*AH23*'Model inputs'!$D$14 -> 22944.32964 | BE23: =M23/100*AI23*'Model inputs'!$D$14 -> 29044.63231 | BQ23: 98075.59139
B24: ='Est2018-19DistRev'!B24 -> HV TOU Demand Network – Customer LV | H24: 1.2855 | I24: 0.562 | J24: 0.1246 | L24: 3.907 | M24: 3.907 | Z24: ='Est2018-19DistRev'!Z24 -> 21.17240169 | AA24: ='Est2018-19DistRev'!AA24 -> 0 | AB24: ='Est2018-19DistRev'!AB24 -> 0 | AC24: ='Est2018-19DistRev'!AC24 -> 0 | AD24: ='Est2018-19DistRev'!AD24 -> 116981757.4 | AE24: ='Est2018-19DistRev'!AE24 -> 46202813.87 | AF24: ='Est2018-19DistRev'!AF24 -> 152065569.5 | AG24: ='Est2018-19DistRev'!AG24 -> 0 | AH24: ='Est2018-19DistRev'!AH24 -> 58501.30594 | AI24: ='Est2018-19DistRev'!AI24 -> 69716.33017 | AV24: =D24/100*Z24*'Model inputs'!$D$14 -> 0 | AW24: 0 | AX24: 0 | AY24: 0 | AZ24: 1503800.491 | BA24: 259659.814 | BB24: 189473.6996 | BC24: =K24/100*AG24*'Model inputs'!$D$14 -> 0 | BD24: =L24/100*AH24*'Model inputs'!$D$14 -> 834260.7985 | BE24: =M24/100*AI24*'Model inputs'!$D$14 -> 994193.2121 | BQ24: 3781388.015
B25: ='Est2018-19DistRev'!B25 -> HV TOU Demand Network – Customer HV and LV | H25: 1.2855 | I25: 0.562 | J25: 0.1246 | L25: 3.907 | M25: 3.907 | Z25: ='Est2018-19DistRev'!Z25 -> 9.816520601 | AA25: ='Est2018-19DistRev'!AA25 -> 0 | AB25: ='Est2018-19DistRev'!AB25 -> 0 | AC25: ='Est2018-19DistRev'!AC25 -> 0 | AD25: ='Est2018-19DistRev'!AD25 -> 15388643.24 | AE25: ='Est2018-19DistRev'!AE25 -> 7261467.761 | AF25: ='Est2018-19DistRev'!AF25 -> 25005714.15 | AG25: ='Est2018-19DistRev'!AG25 -> 0 | AH25: ='Est2018-19DistRev'!AH25 -> 8319.177748 | AI25: ='Est2018-19DistRev'!AI25 -> 9672.129721 | AV25: =D25/100*Z25*'Model inputs'!$D$14 -> 0 | AW25: 0 | AX25: 0 | AY25: 0 | AZ25: 197821.0089 | BA25: 40809.44882 | BB25: 31157.11983 | BC25: =K25/100*AG25*'Model inputs'!$D$14 -> 0 | BD25: =L25/100*AH25*'Model inputs'!$D$14 -> 118636.0502 | BE25: =M25/100*AI25*'Model inputs'!$D$14 -> 137929.8895 | BQ25: 526353.5172
Z66: =SUM(Z6:Z65) -> 200545.3263 | AA66: 991509345.9 | AB66: 286851702.2 | AC66: 15598542.52 | AD66: 561397413.3 | AE66: 280893834.9 | AF66: 760657091.6 | AG66: 70759.87652 | AH66: 245426.014 | AI66: 91391.34375 | AJ66: 0 | AK66: 0 | AL66: 0 | AM66: 0 | AN66: 0 | AO66: 0 | AP66: 0 | AQ66: 0 | AR66: 0 | AS66: 0 | AT66: 0 | AV66: =SUM(AV6:AV65) -> 0 | AW66: 15187312 | AX66: 5638273.513 | AY66: 324249.0895 | AZ66: 12136933.59 | BA66: 3053772.458 | BB66: 2878211.513 | BC66: 1273739.22 | BD66: 5026873.133 | BE66: 1266368.652 | BF66: 0 | BG66: 0 | BH66: 0 | BI66: 0 | BJ66: 0 | BK66: 0 | BL66: 0 | BM66: 0 | BN66: 0 | BO66: 0 | BP66: 0 | BQ66: 46785733.17

Sheet 2019-20TransRevCont
B2: ="Tariff Approval - "&'Model inputs'!C3 -> Tariff Approval - Evoenergy
B4: Designated pricing proposal charges (DPPC)
B6: Year (t) | C6: ='Model inputs'!C4 -> 2019/20
B8: Table 1- Compliance with DPPC Revenue Formula
B9: Revenue from designated pricing proposal charges for year t | C9: ='Prop2019-20TransTar'!AX66 -> 40441273.44
B10: Total DPPC related payments for year t | C10: =C25 -> 40441908.58
C11: =IF(C9="","",IF(C10>=C9,"DPPC REVENUE FORMULA COMPLIANT","DPPC REVENUE FORMULA BREACHED")) -> DPPC REVENUE FORMULA COMPLIANT
B14: Table 2 - Adjusted Annual Revenue for year t (AARt)
B15: Annual smoothed revenue requirement in the PTRM for year t (t=1) | C15: ='Model inputs'!E27 -> 27104241.82
B16: Adjusted Annual Smoothed Revenue for year t-1 (t=2,…,5)
B17: CPI for period t
B18: X factor for period t
B19: Adjusted Annual Smoothed Revenue for year t | C19: =C15 -> 27104241.82
B21: Table 3 - Total DPPC related payments for year t
B22: Transmission charges for year t | C22: =C31 -> 42214430.47
B23: DPPC revenue under/over recovery approved | C23: =-E62*(1+E60)^0.5 -> -1772521.892
B24: Transmission revenue under/over recovery for years 2014 and 2015
B25: Total DPPC related payments for year t | C25: =SUM(C22:C24) -> 40441908.58
B27: Table 4 - Transmission charges for year t
B28: Evoenergy Dual function asset revenue cap | C28: =C19 -> 27104241.82
B29: Net transmission charges paid to TNSPs | C29: ='Model inputs'!E29 -> 14851399.49
B30: Avoided TUOS payments | C30: ='Model inputs'!E30 -> 258789.17
B31: Total | C31: =SUM(C28:C30) -> 42214430.47
B36: Table 4 - DPPC Recovery Arrangements
C37: Year t-2 | D37: Year t-1 | E37: Year t
C38: (actual) | D38: (estimate) | E38: (forecast)
C39: 2017-18 | D39: 2018-19 | E39: =C$6 -> 2019/20
B41: (A) Revenue from designated pricing proposal charges | C41: 33782647.63 | D41: ='Est2018-19TransRev'!BQ66 -> 46785733.17 | E41: =C9 -> 40441273.44
B44: (B) Less Total DPPC related payments = | C44: =SUM(C45:C47) -> 51802837.62 | D44: =SUM(D45:D47) -> 46212991.12 | E44: 42214430.47
B45: + Evoenergy Dual function asset revenue cap | C45: 24609381.2 | D45: 24976698.28 | E45: =C28 -> 27104241.82
B46: + Net transmission charges paid to TNSPs | C46: 26934667.25 | D46: 20977503.67 | E46: =C29 -> 14851399.49
B47: + Avoided TUOS payments | C47: 258789.17 | D47: 258789.17 | E47: =C30 -> 258789.17
B51: (A minus B) Under/over recovery of revenue for regulatory year | C51: =C41-C44 -> -18020189.99 | D51: =D41-D44 -> 572742.0437 | E51: =E41-E44 -> -1773157.033
B55: Table 5 - DPPC Unders and Overs Account
C56: Year t-2 | D56: Year t-2 | E56: Year t
C57: (actual) | D57: (actual) | E57: (forecast)
C58: 2017-18 | D58: 2018-19 | E58: =C$6 -> 2019/20
B60: Nominal WACC | C60: ='Model inputs'!C13 -> 0.0630847945 | D60: ='Model inputs'!D13 -> 0.06214984081 | E60: ='Model inputs'!E13 -> 0.05530768021
B62: Opening balance | C62: 18482676.02 | D62: =C66 -> 1068754.131 | E62: =D66 -> 1725448.727
B63: Interest on Opening balance | C63: =C62*C60 -> 1165975.819 | D63: =D62*D60 -> 66422.89913 | E63: =E62*E60 -> 95430.56639
B64: Under/over recovery of revenue for regulatory year | C64: =C51 -> -18020189.99 | D64: =D51 -> 572742.0437 | E64: =E51 -> -1773157.033
B65: Interest on under/over recovery for regulatory year | C65: =C64*((1+C60)^0.5-1) -> -559707.7205 | D65: =D64*((1+D60)^0.5-1) -> 17529.65241 | E65: =E64*((1+E60)^0.5-1) -> -48374.72878
B66: Closing balance of DPPC overs/ (unders) account | C66: =SUM(C62:C65) -> 1068754.131 | D66: =SUM(D62:D65) -> 1725448.727 | E66: -652.4687672
B68: The DNSP is expected to achieve a closing balance as close to zero as practicable in its DPPC unders and overs account in each forecast year in its annual pricing proposals in the 2019–24 regulatory control period.

Sheet Prop2019-20JSTar
B1: ="Tariff Approval - "&'Model inputs'!C3 -> Tariff Approval - Evoenergy
B3: ="PROPOSED "&'Model inputs'!C4&" JURISDICTIONAL SCHEME TARIFFS" -> PROPOSED 2019/20 JURISDICTIONAL SCHEME TARIFFS
D4: ="Proposed Jurisdictional scheme Tariffs (Pt) for "&'Model inputs'!C4 -> Proposed Jurisdictional scheme Tariffs (Pt) for 2019/20 | Z4: ="Forecast Quantities (Qt) for "&'Model inputs'!C4 -> Forecast Quantities (Qt) for 2019/20 | AV4: ="Forecast Revenue (Pt "&'Model inputs'!C4&")*(Qt " &'Model inputs'!C4&")" -> Forecast Revenue (Pt 2019/20)*(Qt 2019/20)
B5: Proposed tariff | D5: ='Prop2019-20TransTar'!D5 -> PropTar Fixed | E5: ='Prop2019-20TransTar'!E5 -> PropTar Anytime | F5: ='Prop2019-20TransTar'!F5 -> PropTar Block: Step 1 | G5: ='Prop2019-20TransTar'!G5 -> PropTar Block: Step 2 | H5: ='Prop2019-20TransTar'!H5 -> PropTar TOU: Peak | I5: ='Prop2019-20TransTar'!I5 -> PropTar TOU: Shoulder | J5: ='Prop2019-20TransTar'!J5 -> PropTar TOU: Off-peak | K5: ='Prop2019-20TransTar'!K5 -> PropTar Dem kW | L5: ='Prop2019-20TransTar'!L5 -> PropTar Dem kVA: peak | M5: ='Prop2019-20TransTar'!M5 -> PropTar Capacity kVA: anytime | Z5: ='Prop2019-20TransTar'!S5 -> FcastVol Fixed | AA5: ='Prop2019-20TransTar'!T5 -> FcastVol Anytime | AB5: ='Prop2019-20TransTar'!U5 -> FcastVol Block: Step 1 | AC5: ='Prop2019-20TransTar'!V5 -> FcastVol Block: Step 2 | AD5: ='Prop2019-20TransTar'!W5 -> FcastVol TOU: Peak | AE5: ='Prop2019-20TransTar'!X5 -> FcastVol TOU: Shoulder | AF5: ='Prop2019-20TransTar'!Y5 -> FcastVol TOU: Off-peak | AG5: ='Prop2019-20TransTar'!Z5 -> FcastVol Dem kW | AH5: ='Prop2019-20TransTar'!AA5 -> FcastVol Dem kVA: peak | AI5: ='Prop2019-20TransTar'!AB5 -> FcastVol Capacity kVA: anytime | AV5: ='Prop2019-20TransTar'!AI5 -> PropRev Fixed | AW5: ='Prop2019-20TransTar'!AJ5 -> PropRev Anytime | AX5: ='Prop2019-20TransTar'!AK5 -> PropRev Block: Step 1 | AY5: ='Prop2019-20TransTar'!AL5 -> PropRev Block: Step 2 | AZ5: ='Prop2019-20TransTar'!AM5 -> PropRev TOU: Peak | BA5: ='Prop2019-20TransTar'!AN5 -> PropRev TOU: Shoulder | BB5: ='Prop2019-20TransTar'!AO5 -> PropRev TOU: Off-peak | BC5: ='Prop2019-20TransTar'!AP5 -> PropRev Dem kW | BD5: ='Prop2019-20TransTar'!AQ5 -> PropRev Dem kVA: peak | BE5: ='Prop2019-20TransTar'!AR5 -> PropRev Capacity kVA: anytime | BQ5: ='Prop2019-20TransTar'!AX5 -> PropRev Total
B7: ='Prop2019-20DistTar'!B7 -> Residential Basic Network | D7: 0 | E7: 2.794 | F7: 0 | G7: 0 | H7: 0 | I7: 0 | J7: 0 | K7: 0 | L7: 0 | M7: 0 | Z7: ='Prop2019-20DistTar'!AQ7 -> 125379.3729 | AA7: ='Prop2019-20DistTar'!AR7 -> 750732253.2 | AB7: ='Prop2019-20DistTar'!AS7 -> 0 | AC7: ='Prop2019-20DistTar'!AT7 -> 0 | AD7: ='Prop2019-20DistTar'!AU7 -> 0 | AE7: ='Prop2019-20DistTar'!AV7 -> 0 | AF7: ='Prop2019-20DistTar'!AW7 -> 0 | AG7: ='Prop2019-20DistTar'!AX7 -> 0 | AH7: ='Prop2019-20DistTar'!AY7 -> 0 | AI7: ='Prop2019-20DistTar'!AZ7 -> 0 | AV7: =D7/100*Z7*'Model inputs'!$E$14 -> 0 | AW7: =E7/100*AA7 -> 20975459.15 | AX7: =F7/100*AB7 -> 0 | AY7: =G7/100*AC7 -> 0 | AZ7: =H7/100*AD7 -> 0 | BA7: =I7/100*AE7 -> 0 | BB7: =J7/100*AF7 -> 0 | BC7: =K7/100*AG7*'Model inputs'!$E$14 -> 0 | BD7: =L7/100*AH7*'Model inputs'!$E$14 -> 0 | BE7: =M7/100*AI7*'Model inputs'!$E$14 -> 0 | BF7: =N7*AJ7 -> 0 | BG7: =O7*AK7 -> 0 | BH7: =P7*AL7 -> 0 | BI7: =Q7/100*AM7 -> 0 | BJ7: =R7/100*AN7 -> 0 | BK7: =S7/100*AO7 -> 0 | BL7: =T7/100*AP7 -> 0 | BM7: =U7/100*AQ7 -> 0 | BN7: =V7/100*AR7 -> 0 | BO7: =W7/100*AS7 -> 0 | BP7: =X7/100*AT7 -> 0 | BQ7: =SUM(AV7:BP7) -> 20975459.15
B8: ='Prop2019-20DistTar'!B8 -> Residential TOU Network | D8: 0 | E8: 0 | F8: 0 | G8: 0 | H8: 3.933 | I8: 2.928 | J8: 1.434 | K8: 0 | L8: 0 | M8: 0 | Z8: ='Prop2019-20DistTar'!AQ8 -> 36865.89208 | AA8: ='Prop2019-20DistTar'!AR8 -> 0 | AB8: ='Prop2019-20DistTar'!AS8 -> 0 | AC8: ='Prop2019-20DistTar'!AT8 -> 0 | AD8: ='Prop2019-20DistTar'!AU8 -> 55994396.57 | AE8: ='Prop2019-20DistTar'!AV8 -> 78489040.22 | AF8: ='Prop2019-20DistTar'!AW8 -> 56195943.49 | AG8: ='Prop2019-20DistTar'!AX8 -> 0 | AH8: ='Prop2019-20DistTar'!AY8 -> 0 | AI8: ='Prop2019-20DistTar'!AZ8 -> 0 | AV8: =D8/100*Z8*'Model inputs'!$E$14 -> 0 | AW8: 0 | AX8: 0 | AY8: 0 | AZ8: 2202259.617 | BA8: 2298159.098 | BB8: 805849.8296 | BC8: =K8/100*AG8*'Model inputs'!$E$14 -> 0 | BD8: =L8/100*AH8*'Model inputs'!$E$14 -> 0 | BE8: =M8/100*AI8*'Model inputs'!$E$14 -> 0 | BF8: 0 | BG8: 0 | BH8: 0 | BI8: 0 | BJ8: 0 | BK8: 0 | BL8: 0 | BM8: 0 | BN8: 0 | BO8: 0 | BP8: 0 | BQ8: 5306268.544
B9: ='Prop2019-20DistTar'!B9 -> Residential 5000 Network | D9: 0 | E9: 0 | F9: 2.747 | G9: 3.317 | H9: 0 | I9: 0 | J9: 0 | K9: 0 | L9: 0 | M9: 0 | Z9: ='Prop2019-20DistTar'!AQ9 -> 3933.797917 | AA9: ='Prop2019-20DistTar'!AR9 -> 0 | AB9: ='Prop2019-20DistTar'!AS9 -> 29267110.6 | AC9: ='Prop2019-20DistTar'!AT9 -> 866011.4945 | AD9: ='Prop2019-20DistTar'!AU9 -> 0 | AE9: ='Prop2019-20DistTar'!AV9 -> 0 | AF9: ='Prop2019-20DistTar'!AW9 -> 0 | AG9: ='Prop2019-20DistTar'!AX9 -> 0 | AH9: ='Prop2019-20DistTar'!AY9 -> 0 | AI9: ='Prop2019-20DistTar'!AZ9 -> 0 | AV9: =D9/100*Z9*'Model inputs'!$E$14 -> 0 | AW9: 0 | AX9: 803967.5282 | AY9: 28725.60127 | AZ9: 0 | BA9: 0 | BB9: 0 | BC9: =K9/100*AG9*'Model inputs'!$E$14 -> 0 | BD9: =L9/100*AH9*'Model inputs'!$E$14 -> 0 | BE9: =M9/100*AI9*'Model inputs'!$E$14 -> 0 | BF9: 0 | BG9: 0 | BH9: 0 | BI9: 0 | BJ9: 0 | BK9: 0 | BL9: 0 | BM9: 0 | BN9: 0 | BO9: 0 | BP9: 0 | BQ9: 832693.1295
B10: ='Prop2019-20DistTar'!B10 -> Residential with Heat Pump Network | D10: 0 | E10: 0 | F10: 2.688 | G10: 4.247 | H10: 0 | I10: 0 | J10: 0 | K10: 0 | L10: 0 | M10: 0 | Z10: ='Prop2019-20DistTar'!AQ10 -> 4828.797917 | AA10: ='Prop2019-20DistTar'!AR10 -> 0 | AB10: ='Prop2019-20DistTar'!AS10 -> 60221624.82 | AC10: ='Prop2019-20DistTar'!AT10 -> 739416.9216 | AD10: ='Prop2019-20DistTar'!AU10 -> 0 | AE10: ='Prop2019-20DistTar'!AV10 -> 0 | AF10: ='Prop2019-20DistTar'!AW10 -> 0 | AG10: ='Prop2019-20DistTar'!AX10 -> 0 | AH10: ='Prop2019-20DistTar'!AY10 -> 0 | AI10: ='Prop2019-20DistTar'!AZ10 -> 0 | AV10: =D10/100*Z10*'Model inputs'!$E$14 -> 0 | AW10: 0 | AX10: 1618757.275 | AY10: 31403.03666 | AZ10: 0 | BA10: 0 | BB10: 0 | BC10: =K10/100*AG10*'Model inputs'!$E$14 -> 0 | BD10: =L10/100*AH10*'Model inputs'!$E$14 -> 0 | BE10: =M10/100*AI10*'Model inputs'!$E$14 -> 0 | BF10: 0 | BG10: 0 | BH10: 0 | BI10: 0 | BJ10: 0 | BK10: 0 | BL10: 0 | BM10: 0 | BN10: 0 | BO10: 0 | BP10: 0 | BQ10: 1650160.312
B11: ='Prop2019-20DistTar'!B11 -> Off-Peak (1) Night Network | D11: 0 | E11: 0 | F11: 0 | G11: 0 | H11: 0 | I11: 0 | J11: 1.307 | K11: 0 | L11: 0 | M11: 0 | Z11: ='Prop2019-20DistTar'!AQ11 -> 0 | AA11: ='Prop2019-20DistTar'!AR11 -> 0 | AB11: ='Prop2019-20DistTar'!AS11 -> 0 | AC11: ='Prop2019-20DistTar'!AT11 -> 0 | AD11: ='Prop2019-20DistTar'!AU11 -> 0 | AE11: ='Prop2019-20DistTar'!AV11 -> 0 | AF11: ='Prop2019-20DistTar'!AW11 -> 11564212.89 | AG11: ='Prop2019-20DistTar'!AX11 -> 0 | AH11: ='Prop2019-20DistTar'!AY11 -> 0 | AI11: ='Prop2019-20DistTar'!AZ11 -> 0 | AV11: =D11/100*Z11*'Model inputs'!$E$14 -> 0 | AW11: 0 | AX11: 0 | AY11: 0 | AZ11: 0 | BA11: 0 | BB11: 151144.2624 | BC11: =K11/100*AG11*'Model inputs'!$E$14 -> 0 | BD11: =L11/100*AH11*'Model inputs'!$E$14 -> 0 | BE11: =M11/100*AI11*'Model inputs'!$E$14 -> 0 | BF11: 0 | BG11: 0 | BH11: 0 | BI11: 0 | BJ11: 0 | BK11: 0 | BL11: 0 | BM11: 0 | BN11: 0 | BO11: 0 | BP11: 0 | BQ11: 151144.2624
B12: ='Prop2019-20DistTar'!B12 -> Off-Peak (3) Day & Night Network | D12: 0 | E12: 0 | F12: 0 | G12: 0 | H12: 0 | I12: 0 | J12: 2.012 | K12: 0 | L12: 0 | M12: 0 | Z12: ='Prop2019-20DistTar'!AQ12 -> 0 | AA12: ='Prop2019-20DistTar'!AR12 -> 0 | AB12: ='Prop2019-20DistTar'!AS12 -> 0 | AC12: ='Prop2019-20DistTar'!AT12 -> 0 | AD12: ='Prop2019-20DistTar'!AU12 -> 0 | AE12: ='Prop2019-20DistTar'!AV12 -> 0 | AF12: ='Prop2019-20DistTar'!AW12 -> 74967089.13 | AG12: ='Prop2019-20DistTar'!AX12 -> 0 | AH12: ='Prop2019-20DistTar'!AY12 -> 0 | AI12: ='Prop2019-20DistTar'!AZ12 -> 0 | AV12: =D12/100*Z12*'Model inputs'!$E$14 -> 0 | AW12: 0 | AX12: 0 | AY12: 0 | AZ12: 0 | BA12: 0 | BB12: 1508337.833 | BC12: =K12/100*AG12*'Model inputs'!$E$14 -> 0 | BD12: =L12/100*AH12*'Model inputs'!$E$14 -> 0 | BE12: =M12/100*AI12*'Model inputs'!$E$14 -> 0 | BF12: 0 | BG12: 0 | BH12: 0 | BI12: 0 | BJ12: 0 | BK12: 0 | BL12: 0 | BM12: 0 | BN12: 0 | BO12: 0 | BP12: 0 | BQ12: 1508337.833
B13: ='Prop2019-20DistTar'!B13 -> Residential Demand Network | D13: 2.574 | E13: 2.471 | F13: 0 | G13: 0 | H13: 0 | I13: 0 | J13: 0 | K13: 0 | L13: 0 | M13: 0 | Z13: ='Prop2019-20DistTar'!AQ13 -> 15800.38917 | AA13: ='Prop2019-20DistTar'!AR13 -> 64156094 | AB13: ='Prop2019-20DistTar'!AS13 -> 0 | AC13: ='Prop2019-20DistTar'!AT13 -> 0 | AD13: ='Prop2019-20DistTar'!AU13 -> 0 | AE13: ='Prop2019-20DistTar'!AV13 -> 0 | AF13: ='Prop2019-20DistTar'!AW13 -> 0 | AG13: ='Prop2019-20DistTar'!AX13 -> 51543.45693 | AH13: ='Prop2019-20DistTar'!AY13 -> 0 | AI13: ='Prop2019-20DistTar'!AZ13 -> 0 | AV13: =D13/100*Z13*'Model inputs'!$E$14 -> 148852.9383 | AW13: 1585297.083 | AX13: 0 | AY13: 0 | AZ13: 0 | BA13: 0 | BB13: 0 | BC13: =K13/100*AG13*'Model inputs'!$E$14 -> 0 | BD13: =L13/100*AH13*'Model inputs'!$E$14 -> 0 | BE13: =M13/100*AI13*'Model inputs'!$E$14 -> 0 | BF13: 0 | BG13: 0 | BH13: 0 | BI13: 0 | BJ13: 0 | BK13: 0 | BL13: 0 | BM13: 0 | BN13: 0 | BO13: 0 | BP13: 0 | BQ13: 1734150.021
D14: 0 | E14: 0 | F14: 0 | G14: 0 | H14: 0 | I14: 0 | J14: 0 | K14: 0 | L14: 0 | M14: 0 | Z14: ='Prop2019-20DistTar'!AQ14 -> 0 | AA14: ='Prop2019-20DistTar'!AR14 -> 0 | AB14: ='Prop2019-20DistTar'!AS14 -> 0 | AC14: ='Prop2019-20DistTar'!AT14 -> 0 | AD14: ='Prop2019-20DistTar'!AU14 -> 0 | AE14: ='Prop2019-20DistTar'!AV14 -> 0 | AF14: ='Prop2019-20DistTar'!AW14 -> 0 | AG14: ='Prop2019-20DistTar'!AX14 -> 0 | AH14: ='Prop2019-20DistTar'!AY14 -> 0 | AI14: ='Prop2019-20DistTar'!AZ14 -> 0 | AV14: =D14/100*Z14*'Model inputs'!$E$14 -> 0 | AW14: 0 | AX14: 0 | AY14: 0 | AZ14: 0 | BA14: 0 | BB14: 0 | BC14: =K14/100*AG14*'Model inputs'!$E$14 -> 0 | BD14: =L14/100*AH14*'Model inputs'!$E$14 -> 0 | BE14: =M14/100*AI14*'Model inputs'!$E$14 -> 0 | BF14: 0 | BG14: 0 | BH14: 0 | BI14: 0 | BJ14: 0 | BK14: 0 | BL14: 0 | BM14: 0 | BN14: 0 | BO14: 0 | BP14: 0 | BQ14: 0
B15: ='Prop2019-20DistTar'!B15 -> General Network | D15: 0 | E15: 0 | F15: 3.31 | G15: 4.299 | H15: 0 | I15: 0 | J15: 0 | K15: 0 | L15: 0 | M15: 0 | Z15: ='Prop2019-20DistTar'!AQ15 -> 11678.65625 | AA15: ='Prop2019-20DistTar'!AR15 -> 0 | AB15: ='Prop2019-20DistTar'!AS15 -> 180662648 | AC15: ='Prop2019-20DistTar'!AT15 -> 13067598.78 | AD15: ='Prop2019-20DistTar'!AU15 -> 0 | AE15: ='Prop2019-20DistTar'!AV15 -> 0 | AF15: ='Prop2019-20DistTar'!AW15 -> 0 | AG15: ='Prop2019-20DistTar'!AX15 -> 0 | AH15: ='Prop2019-20DistTar'!AY15 -> 0 | AI15: ='Prop2019-20DistTar'!AZ15 -> 0 | AV15: =D15/100*Z15*'Model inputs'!$E$14 -> 0 | AW15: 0 | AX15: 5979933.648 | AY15: 561776.0716 | AZ15: 0 | BA15: 0 | BB15: 0 | BC15: =K15/100*AG15*'Model inputs'!$E$14 -> 0 | BD15: =L15/100*AH15*'Model inputs'!$E$14 -> 0 | BE15: =M15/100*AI15*'Model inputs'!$E$14 -> 0 | BF15: 0 | BG15: 0 | BH15: 0 | BI15: 0 | BJ15: 0 | BK15: 0 | BL15: 0 | BM15: 0 | BN15: 0 | BO15: 0 | BP15: 0 | BQ15: 6541709.72
B16: ='Prop2019-20DistTar'!B16 -> General TOU Network | D16: 0 | E16: 0 | F16: 0 | G16: 0 | H16: 4.444 | I16: 3.326 | J16: 1.504 | K16: 0 | L16: 0 | M16: 0 | Z16: ='Prop2019-20DistTar'!AQ16 -> 3530.968226 | AA16: ='Prop2019-20DistTar'!AR16 -> 0 | AB16: ='Prop2019-20DistTar'!AS16 -> 0 | AC16: ='Prop2019-20DistTar'!AT16 -> 0 | AD16: ='Prop2019-20DistTar'!AU16 -> 77093171.92 | AE16: ='Prop2019-20DistTar'!AV16 -> 33846089.99 | AF16: ='Prop2019-20DistTar'!AW16 -> 90092863.81 | AG16: ='Prop2019-20DistTar'!AX16 -> 0 | AH16: ='Prop2019-20DistTar'!AY16 -> 0 | AI16: ='Prop2019-20DistTar'!AZ16 -> 0 | AV16: =D16/100*Z16*'Model inputs'!$E$14 -> 0 | AW16: 0 | AX16: 0 | AY16: 0 | AZ16: 3426020.56 | BA16: 1125720.953 | BB16: 1354996.672 | BC16: =K16/100*AG16*'Model inputs'!$E$14 -> 0 | BD16: =L16/100*AH16*'Model inputs'!$E$14 -> 0 | BE16: =M16/100*AI16*'Model inputs'!$E$14 -> 0 | BF16: 0 | BG16: 0 | BH16: 0 | BI16: 0 | BJ16: 0 | BK16: 0 | BL16: 0 | BM16: 0 | BN16: 0 | BO16: 0 | BP16: 0 | BQ16: 5906738.185
B17: ='Prop2019-20DistTar'!B17 -> LV TOU kVA Demand Network | D17: 0 | E17: 0 | F17: 0 | G17: 0 | H17: 4.64 | I17: 2.561 | J17: 1.394 | K17: 0 | L17: 0 | M17: 0 | Z17: ='Prop2019-20DistTar'!AQ17 -> 1670.33727 | AA17: ='Prop2019-20DistTar'!AR17 -> 0 | AB17: ='Prop2019-20DistTar'!AS17 -> 0 | AC17: ='Prop2019-20DistTar'!AT17 -> 0 | AD17: ='Prop2019-20DistTar'!AU17 -> 265878059.4 | AE17: ='Prop2019-20DistTar'!AV17 -> 96902363.92 | AF17: ='Prop2019-20DistTar'!AW17 -> 299727066.3 | AG17: ='Prop2019-20DistTar'!AX17 -> 0 | AH17: ='Prop2019-20DistTar'!AY17 -> 164093.4961 | AI17: ='Prop2019-20DistTar'!AZ17 -> 0 | AV17: =D17/100*Z17*'Model inputs'!$E$14 -> 0 | AW17: 0 | AX17: 0 | AY17: 0 | AZ17: 12336741.96 | BA17: 2481669.54 | BB17: 4178195.304 | BC17: =K17/100*AG17*'Model inputs'!$E$14 -> 0 | BD17: =L17/100*AH17*'Model inputs'!$E$14 -> 0 | BE17: =M17/100*AI17*'Model inputs'!$E$14 -> 0 | BF17: 0 | BG17: 0 | BH17: 0 | BI17: 0 | BJ17: 0 | BK17: 0 | BL17: 0 | BM17: 0 | BN17: 0 | BO17: 0 | BP17: 0 | BQ17: 18996606.8
B18: ='Prop2019-20DistTar'!B18 -> LV TOU Capacity Network | D18: 0 | E18: 0 | F18: 0 | G18: 0 | H18: 4.501 | I18: 2.484 | J18: 1.353 | K18: 0 | L18: 0 | M18: 0 | Z18: ='Prop2019-20DistTar'!AQ18 -> 61.33959027 | AA18: ='Prop2019-20DistTar'!AR18 -> 0 | AB18: ='Prop2019-20DistTar'!AS18 -> 0 | AC18: ='Prop2019-20DistTar'!AT18 -> 0 | AD18: ='Prop2019-20DistTar'!AU18 -> 17111854.46 | AE18: ='Prop2019-20DistTar'!AV18 -> 7451206.072 | AF18: ='Prop2019-20DistTar'!AW18 -> 25612786.78 | AG18: ='Prop2019-20DistTar'!AX18 -> 0 | AH18: ='Prop2019-20DistTar'!AY18 -> 9713.101791 | AI18: ='Prop2019-20DistTar'!AZ18 -> 11243.77696 | AV18: =D18/100*Z18*'Model inputs'!$E$14 -> 0 | AW18: 0 | AX18: 0 | AY18: 0 | AZ18: 770204.5691 | BA18: 185087.9588 | BB18: 346541.0052 | BC18: =K18/100*AG18*'Model inputs'!$E$14 -> 0 | BD18: =L18/100*AH18*'Model inputs'!$E$14 -> 0 | BE18: =M18/100*AI18*'Model inputs'!$E$14 -> 0 | BF18: 0 | BG18: 0 | BH18: 0 | BI18: 0 | BJ18: 0 | BK18: 0 | BL18: 0 | BM18: 0 | BN18: 0 | BO18: 0 | BP18: 0 | BQ18: 1301833.533
B19: ='Prop2019-20DistTar'!B19 -> LV Demand Network | D19: 0 | E19: 3.283 | F19: 0 | G19: 0 | H19: 0 | I19: 0 | J19: 0 | K19: 0 | L19: 0 | M19: 0 | Z19: ='Prop2019-20DistTar'!AQ19 -> 1704.77526 | AA19: ='Prop2019-20DistTar'!AR19 -> 204431045 | AB19: ='Prop2019-20DistTar'!AS19 -> 0 | AC19: ='Prop2019-20DistTar'!AT19 -> 0 | AD19: ='Prop2019-20DistTar'!AU19 -> 0 | AE19: ='Prop2019-20DistTar'!AV19 -> 0 | AF19: ='Prop2019-20DistTar'!AW19 -> 0 | AG19: ='Prop2019-20DistTar'!AX19 -> 71517.87226 | AH19: ='Prop2019-20DistTar'!AY19 -> 0 | AI19: ='Prop2019-20DistTar'!AZ19 -> 0 | AV19: =D19/100*Z19*'Model inputs'!$E$14 -> 0 | AW19: 6711471.206 | AX19: 0 | AY19: 0 | AZ19: 0 | BA19: 0 | BB19: 0 | BC19: =K19/100*AG19*'Model inputs'!$E$14 -> 0 | BD19: =L19/100*AH19*'Model inputs'!$E$14 -> 0 | BE19: =M19/100*AI19*'Model inputs'!$E$14 -> 0 | BF19: 0 | BG19: 0 | BH19: 0 | BI19: 0 | BJ19: 0 | BK19: 0 | BL19: 0 | BM19: 0 | BN19: 0 | BO19: 0 | BP19: 0 | BQ19: 6711471.206
B20: ='Prop2019-20DistTar'!B20 -> Small Unmetered Loads Network | D20: 0 | E20: 2.964 | F20: 0 | G20: 0 | H20: 0 | I20: 0 | J20: 0 | K20: 0 | L20: 0 | M20: 0 | Z20: ='Prop2019-20DistTar'!AQ20 -> 23.90968695 | AA20: ='Prop2019-20DistTar'!AR20 -> 3268461.745 | AB20: ='Prop2019-20DistTar'!AS20 -> 0 | AC20: ='Prop2019-20DistTar'!AT20 -> 0 | AD20: ='Prop2019-20DistTar'!AU20 -> 0 | AE20: ='Prop2019-20DistTar'!AV20 -> 0 | AF20: ='Prop2019-20DistTar'!AW20 -> 0 | AG20: ='Prop2019-20DistTar'!AX20 -> 0 | AH20: ='Prop2019-20DistTar'!AY20 -> 0 | AI20: ='Prop2019-20DistTar'!AZ20 -> 0 | AV20: =D20/100*Z20*'Model inputs'!$E$14 -> 0 | AW20: 96877.20614 | AX20: 0 | AY20: 0 | AZ20: 0 | BA20: 0 | BB20: 0 | BC20: =K20/100*AG20*'Model inputs'!$E$14 -> 0 | BD20: =L20/100*AH20*'Model inputs'!$E$14 -> 0 | BE20: =M20/100*AI20*'Model inputs'!$E$14 -> 0 | BF20: 0 | BG20: 0 | BH20: 0 | BI20: 0 | BJ20: 0 | BK20: 0 | BL20: 0 | BM20: 0 | BN20: 0 | BO20: 0 | BP20: 0 | BQ20: 96877.20614
B21: ='Prop2019-20DistTar'!B21 -> Streetlighting Network | D21: 0 | E21: 2.619 | F21: 0 | G21: 0 | H21: 0 | I21: 0 | J21: 0 | K21: 0 | L21: 0 | M21: 0 | Z21: ='Prop2019-20DistTar'!AQ21 -> 20.42364638 | AA21: ='Prop2019-20DistTar'!AR21 -> 39998575.03 | AB21: ='Prop2019-20DistTar'!AS21 -> 0 | AC21: ='Prop2019-20DistTar'!AT21 -> 0 | AD21: ='Prop2019-20DistTar'!AU21 -> 0 | AE21: ='Prop2019-20DistTar'!AV21 -> 0 | AF21: ='Prop2019-20DistTar'!AW21 -> 0 | AG21: ='Prop2019-20DistTar'!AX21 -> 0 | AH21: ='Prop2019-20DistTar'!AY21 -> 0 | AI21: ='Prop2019-20DistTar'!AZ21 -> 0 | AV21: =D21/100*Z21*'Model inputs'!$E$14 -> 0 | AW21: 1047562.68 | AX21: 0 | AY21: 0 | AZ21: 0 | BA21: 0 | BB21: 0 | BC21: =K21/100*AG21*'Model inputs'!$E$14 -> 0 | BD21: =L21/100*AH21*'Model inputs'!$E$14 -> 0 | BE21: =M21/100*AI21*'Model inputs'!$E$14 -> 0 | BF21: 0 | BG21: 0 | BH21: 0 | BI21: 0 | BJ21: 0 | BK21: 0 | BL21: 0 | BM21: 0 | BN21: 0 | BO21: 0 | BP21: 0 | BQ21: 1047562.68
D22: 0 | E22: 0 | F22: 0 | G22: 0 | H22: 0 | I22: 0 | J22: 0 | K22: 0 | L22: 0 | M22: 0 | Z22: ='Prop2019-20DistTar'!AQ22 -> 0 | AA22: ='Prop2019-20DistTar'!AR22 -> 0 | AB22: ='Prop2019-20DistTar'!AS22 -> 0 | AC22: ='Prop2019-20DistTar'!AT22 -> 0 | AD22: ='Prop2019-20DistTar'!AU22 -> 0 | AE22: ='Prop2019-20DistTar'!AV22 -> 0 | AF22: ='Prop2019-20DistTar'!AW22 -> 0 | AG22: ='Prop2019-20DistTar'!AX22 -> 0 | AH22: ='Prop2019-20DistTar'!AY22 -> 0 | AI22: ='Prop2019-20DistTar'!AZ22 -> 0 | AV22: =D22/100*Z22*'Model inputs'!$E$14 -> 0 | AW22: 0 | AX22: 0 | AY22: 0 | AZ22: 0 | BA22: 0 | BB22: 0 | BC22: =K22/100*AG22*'Model inputs'!$E$14 -> 0 | BD22: =L22/100*AH22*'Model inputs'!$E$14 -> 0 | BE22: =M22/100*AI22*'Model inputs'!$E$14 -> 0 | BF22: 0 | BG22: 0 | BH22: 0 | BI22: 0 | BJ22: 0 | BK22: 0 | BL22: 0 | BM22: 0 | BN22: 0 | BO22: 0 | BP22: 0 | BQ22: 0
B23: ='Prop2019-20DistTar'!B23 -> HV TOU Demand Network | D23: 0 | E23: 0 | F23: 0 | G23: 0 | H23: 4.034 | I23: 2.292 | J23: 1.334 | K23: 0 | L23: 0 | M23: 0 | Z23: ='Prop2019-20DistTar'!AQ23 -> 1 | AA23: ='Prop2019-20DistTar'!AR23 -> 0 | AB23: ='Prop2019-20DistTar'!AS23 -> 0 | AC23: ='Prop2019-20DistTar'!AT23 -> 0 | AD23: ='Prop2019-20DistTar'!AU23 -> 2714539.113 | AE23: ='Prop2019-20DistTar'!AV23 -> 1132142.525 | AF23: ='Prop2019-20DistTar'!AW23 -> 3447505.058 | AG23: ='Prop2019-20DistTar'!AX23 -> 0 | AH23: ='Prop2019-20DistTar'!AY23 -> 1589.572824 | AI23: ='Prop2019-20DistTar'!AZ23 -> 2028.89842 | AV23: =D23/100*Z23*'Model inputs'!$E$14 -> 0 | AW23: 0 | AX23: 0 | AY23: 0 | AZ23: 109504.5078 | BA23: 25948.70667 | BB23: 45989.71748 | BC23: =K23/100*AG23*'Model inputs'!$E$14 -> 0 | BD23: =L23/100*AH23*'Model inputs'!$E$14 -> 0 | BE23: =M23/100*AI23*'Model inputs'!$E$14 -> 0 | BF23: 0 | BG23: 0 | BH23: 0 | BI23: 0 | BJ23: 0 | BK23: 0 | BL23: 0 | BM23: 0 | BN23: 0 | BO23: 0 | BP23: 0 | BQ23: 181442.932
B24: ='Prop2019-20DistTar'!B24 -> HV TOU Demand Network – Customer LV | D24: 0 | E24: 0 | F24: 0 | G24: 0 | H24: 3.729 | I24: 2.206 | J24: 1.328 | K24: 0 | L24: 0 | M24: 0 | Z24: ='Prop2019-20DistTar'!AQ24 -> 21.41865258 | AA24: ='Prop2019-20DistTar'!AR24 -> 0 | AB24: ='Prop2019-20DistTar'!AS24 -> 0 | AC24: ='Prop2019-20DistTar'!AT24 -> 0 | AD24: ='Prop2019-20DistTar'!AU24 -> 118297254.9 | AE24: ='Prop2019-20DistTar'!AV24 -> 45733554.98 | AF24: ='Prop2019-20DistTar'!AW24 -> 149905321 | AG24: ='Prop2019-20DistTar'!AX24 -> 0 | AH24: ='Prop2019-20DistTar'!AY24 -> 58848.53748 | AI24: ='Prop2019-20DistTar'!AZ24 -> 68103.37407 | AV24: =D24/100*Z24*'Model inputs'!$E$14 -> 0 | AW24: 0 | AX24: 0 | AY24: 0 | AZ24: 4411304.634 | BA24: 1008882.223 | BB24: 1990742.664 | BC24: =K24/100*AG24*'Model inputs'!$E$14 -> 0 | BD24: =L24/100*AH24*'Model inputs'!$E$14 -> 0 | BE24: =M24/100*AI24*'Model inputs'!$E$14 -> 0 | BF24: 0 | BG24: 0 | BH24: 0 | BI24: 0 | BJ24: 0 | BK24: 0 | BL24: 0 | BM24: 0 | BN24: 0 | BO24: 0 | BP24: 0 | BQ24: 7410929.52
B25: ='Prop2019-20DistTar'!B25 -> HV TOU Demand Network – Customer HV and LV | D25: 0 | E25: 0 | F25: 0 | G25: 0 | H25: 3.736 | I25: 2.21 | J25: 1.331 | K25: 0 | L25: 0 | M25: 0 | Z25: ='Prop2019-20DistTar'!AQ25 -> 11.87096285 | AA25: ='Prop2019-20DistTar'!AR25 -> 0 | AB25: ='Prop2019-20DistTar'!AS25 -> 0 | AC25: ='Prop2019-20DistTar'!AT25 -> 0 | AD25: ='Prop2019-20DistTar'!AU25 -> 18639720.33 | AE25: ='Prop2019-20DistTar'!AV25 -> 8742244.557 | AF25: ='Prop2019-20DistTar'!AW25 -> 29629694.64 | AG25: ='Prop2019-20DistTar'!AX25 -> 0 | AH25: ='Prop2019-20DistTar'!AY25 -> 10017.68031 | AI25: ='Prop2019-20DistTar'!AZ25 -> 11703.87283 | AV25: =D25/100*Z25*'Model inputs'!$E$14 -> 0 | AW25: 0 | AX25: 0 | AY25: 0 | AZ25: 696379.9516 | BA25: 193203.6047 | BB25: 394371.2356 | BC25: =K25/100*AG25*'Model inputs'!$E$14 -> 0 | BD25: =L25/100*AH25*'Model inputs'!$E$14 -> 0 | BE25: =M25/100*AI25*'Model inputs'!$E$14 -> 0 | BF25: 0 | BG25: 0 | BH25: 0 | BI25: 0 | BJ25: 0 | BK25: 0 | BL25: 0 | BM25: 0 | BN25: 0 | BO25: 0 | BP25: 0 | BQ25: 1283954.792
AV26: =D26/100*Z26*'Model inputs'!$E$14 -> 0 | AW26: 0 | AX26: 0 | AY26: 0 | AZ26: 0 | BA26: 0 | BB26: 0 | BC26: =K26/100*AG26*'Model inputs'!$E$14 -> 0 | BD26: =L26/100*AH26*'Model inputs'!$E$14 -> 0 | BE26: =M26/100*AI26*'Model inputs'!$E$14 -> 0 | BF26: 0 | BG26: 0 | BH26: 0 | BI26: 0 | BJ26: 0 | BK26: 0 | BL26: 0 | BM26: 0 | BN26: 0 | BO26: 0 | BP26: 0 | BQ26: 0
AV27: =D27/100*Z27*'Model inputs'!$E$14 -> 0 | AW27: 0 | AX27: 0 | AY27: 0 | AZ27: 0 | BA27: 0 | BB27: 0 | BC27: =K27/100*AG27*'Model inputs'!$E$14 -> 0 | BD27: =L27/100*AH27*'Model inputs'!$E$14 -> 0 | BE27: =M27/100*AI27*'Model inputs'!$E$14 -> 0 | BF27: 0 | BG27: 0 | BH27: 0 | BI27: 0 | BJ27: 0 | BK27: 0 | BL27: 0 | BM27: 0 | BN27: 0 | BO27: 0 | BP27: 0 | BQ27: 0
AV28: =D28/100*Z28*'Model inputs'!$E$14 -> 0 | AW28: 0 | AX28: 0 | AY28: 0 | AZ28: 0 | BA28: 0 | BB28: 0 | BC28: =K28/100*AG28*'Model inputs'!$E$14 -> 0 | BD28: =L28/100*AH28*'Model inputs'!$E$14 -> 0 | BE28: =M28/100*AI28*'Model inputs'!$E$14 -> 0 | BF28: 0 | BG28: 0 | BH28: 0 | BI28: 0 | BJ28: 0 | BK28: 0 | BL28: 0 | BM28: 0 | BN28: 0 | BO28: 0 | BP28: 0 | BQ28: 0
AV29: =D29/100*Z29*'Model inputs'!$E$14 -> 0 | AW29: 0 | AX29: 0 | AY29: 0 | AZ29: 0 | BA29: 0 | BB29: 0 | BC29: =K29/100*AG29*'Model inputs'!$E$14 -> 0 | BD29: =L29/100*AH29*'Model inputs'!$E$14 -> 0 | BE29: =M29/100*AI29*'Model inputs'!$E$14 -> 0 | BF29: 0 | BG29: 0 | BH29: 0 | BI29: 0 | BJ29: 0 | BK29: 0 | BL29: 0 | BM29: 0 | BN29: 0 | BO29: 0 | BP29: 0 | BQ29: 0
AV30: =D30/100*Z30*'Model inputs'!$E$14 -> 0 | AW30: 0 | AX30: 0 | AY30: 0 | AZ30: 0 | BA30: 0 | BB30: 0 | BC30: =K30/100*AG30*'Model inputs'!$E$14 -> 0 | BD30: =L30/100*AH30*'Model inputs'!$E$14 -> 0 | BE30: =M30/100*AI30*'Model inputs'!$E$14 -> 0 | BF30: 0 | BG30: 0 | BH30: 0 | BI30: 0 | BJ30: 0 | BK30: 0 | BL30: 0 | BM30: 0 | BN30: 0 | BO30: 0 | BP30: 0 | BQ30: 0
AV31: =D31/100*Z31*'Model inputs'!$E$14 -> 0 | AW31: 0 | AX31: 0 | AY31: 0 | AZ31: 0 | BA31: 0 | BB31: 0 | BC31: =K31/100*AG31*'Model inputs'!$E$14 -> 0 | BD31: =L31/100*AH31*'Model inputs'!$E$14 -> 0 | BE31: =M31/100*AI31*'Model inputs'!$E$14 -> 0 | BF31: 0 | BG31: 0 | BH31: 0 | BI31: 0 | BJ31: 0 | BK31: 0 | BL31: 0 | BM31: 0 | BN31: 0 | BO31: 0 | BP31: 0 | BQ31: 0
AV32: =D32/100*Z32*'Model inputs'!$E$14 -> 0 | AW32: 0 | AX32: 0 | AY32: 0 | AZ32: 0 | BA32: 0 | BB32: 0 | BC32: =K32/100*AG32*'Model inputs'!$E$14 -> 0 | BD32: =L32/100*AH32*'Model inputs'!$E$14 -> 0 | BE32: =M32/100*AI32*'Model inputs'!$E$14 -> 0 | BF32: 0 | BG32: 0 | BH32: 0 | BI32: 0 | BJ32: 0 | BK32: 0 | BL32: 0 | BM32: 0 | BN32: 0 | BO32: 0 | BP32: 0 | BQ32: 0
AV33: =D33/100*Z33*'Model inputs'!$E$14 -> 0 | AW33: 0 | AX33: 0 | AY33: 0 | AZ33: 0 | BA33: 0 | BB33: 0 | BC33: =K33/100*AG33*'Model inputs'!$E$14 -> 0 | BD33: =L33/100*AH33*'Model inputs'!$E$14 -> 0 | BE33: =M33/100*AI33*'Model inputs'!$E$14 -> 0 | BF33: 0 | BG33: 0 | BH33: 0 | BI33: 0 | BJ33: 0 | BK33: 0 | BL33: 0 | BM33: 0 | BN33: 0 | BO33: 0 | BP33: 0 | BQ33: 0
AV34: =D34/100*Z34*'Model inputs'!$E$14 -> 0 | AW34: 0 | AX34: 0 | AY34: 0 | AZ34: 0 | BA34: 0 | BB34: 0 | BC34: =K34/100*AG34*'Model inputs'!$E$14 -> 0 | BD34: =L34/100*AH34*'Model inputs'!$E$14 -> 0 | BE34: =M34/100*AI34*'Model inputs'!$E$14 -> 0 | BF34: 0 | BG34: 0 | BH34: 0 | BI34: 0 | BJ34: 0 | BK34: 0 | BL34: 0 | BM34: 0 | BN34: 0 | BO34: 0 | BP34: 0 | BQ34: 0
AV35: =D35/100*Z35*'Model inputs'!$E$14 -> 0 | AW35: 0 | AX35: 0 | AY35: 0 | AZ35: 0 | BA35: 0 | BB35: 0 | BC35: =K35/100*AG35*'Model inputs'!$E$14 -> 0 | BD35: =L35/100*AH35*'Model inputs'!$E$14 -> 0 | BE35: =M35/100*AI35*'Model inputs'!$E$14 -> 0 | BF35: 0 | BG35: 0 | BH35: 0 | BI35: 0 | BJ35: 0 | BK35: 0 | BL35: 0 | BM35: 0 | BN35: 0 | BO35: 0 | BP35: 0 | BQ35: 0
AV36: =D36/100*Z36*'Model inputs'!$E$14 -> 0 | AW36: 0 | AX36: 0 | AY36: 0 | AZ36: 0 | BA36: 0 | BB36: 0 | BC36: =K36/100*AG36*'Model inputs'!$E$14 -> 0 | BD36: =L36/100*AH36*'Model inputs'!$E$14 -> 0 | BE36: =M36/100*AI36*'Model inputs'!$E$14 -> 0 | BF36: 0 | BG36: 0 | BH36: 0 | BI36: 0 | BJ36: 0 | BK36: 0 | BL36: 0 | BM36: 0 | BN36: 0 | BO36: 0 | BP36: 0 | BQ36: 0
AV37: =D37/100*Z37*'Model inputs'!$E$14 -> 0 | AW37: 0 | AX37: 0 | AY37: 0 | AZ37: 0 | BA37: 0 | BB37: 0 | BC37: =K37/100*AG37*'Model inputs'!$E$14 -> 0 | BD37: =L37/100*AH37*'Model inputs'!$E$14 -> 0 | BE37: =M37/100*AI37*'Model inputs'!$E$14 -> 0 | BF37: 0 | BG37: 0 | BH37: 0 | BI37: 0 | BJ37: 0 | BK37: 0 | BL37: 0 | BM37: 0 | BN37: 0 | BO37: 0 | BP37: 0 | BQ37: 0
AV38: =D38/100*Z38*'Model inputs'!$E$14 -> 0 | AW38: 0 | AX38: 0 | AY38: 0 | AZ38: 0 | BA38: 0 | BB38: 0 | BC38: =K38/100*AG38*'Model inputs'!$E$14 -> 0 | BD38: =L38/100*AH38*'Model inputs'!$E$14 -> 0 | BE38: =M38/100*AI38*'Model inputs'!$E$14 -> 0 | BF38: 0 | BG38: 0 | BH38: 0 | BI38: 0 | BJ38: 0 | BK38: 0 | BL38: 0 | BM38: 0 | BN38: 0 | BO38: 0 | BP38: 0 | BQ38: 0
AV39: =D39/100*Z39*'Model inputs'!$E$14 -> 0 | AW39: 0 | AX39: 0 | AY39: 0 | AZ39: 0 | BA39: 0 | BB39: 0 | BC39: =K39/100*AG39*'Model inputs'!$E$14 -> 0 | BD39: =L39/100*AH39*'Model inputs'!$E$14 -> 0 | BE39: =M39/100*AI39*'Model inputs'!$E$14 -> 0 | BF39: 0 | BG39: 0 | BH39: 0 | BI39: 0 | BJ39: 0 | BK39: 0 | BL39: 0 | BM39: 0 | BN39: 0 | BO39: 0 | BP39: 0 | BQ39: 0
AV40: =D40/100*Z40*'Model inputs'!$E$14 -> 0 | AW40: 0 | AX40: 0 | AY40: 0 | AZ40: 0 | BA40: 0 | BB40: 0 | BC40: =K40/100*AG40*'Model inputs'!$E$14 -> 0 | BD40: =L40/100*AH40*'Model inputs'!$E$14 -> 0 | BE40: =M40/100*AI40*'Model inputs'!$E$14 -> 0 | BF40: 0 | BG40: 0 | BH40: 0 | BI40: 0 | BJ40: 0 | BK40: 0 | BL40: 0 | BM40: 0 | BN40: 0 | BO40: 0 | BP40: 0 | BQ40: 0
AV41: =D41/100*Z41*'Model inputs'!$E$14 -> 0 | AW41: 0 | AX41: 0 | AY41: 0 | AZ41: 0 | BA41: 0 | BB41: 0 | BC41: =K41/100*AG41*'Model inputs'!$E$14 -> 0 | BD41: =L41/100*AH41*'Model inputs'!$E$14 -> 0 | BE41: =M41/100*AI41*'Model inputs'!$E$14 -> 0 | BF41: 0 | BG41: 0 | BH41: 0 | BI41: 0 | BJ41: 0 | BK41: 0 | BL41: 0 | BM41: 0 | BN41: 0 | BO41: 0 | BP41: 0 | BQ41: 0
AV42: =D42/100*Z42*'Model inputs'!$E$14 -> 0 | AW42: 0 | AX42: 0 | AY42: 0 | AZ42: 0 | BA42: 0 | BB42: 0 | BC42: =K42/100*AG42*'Model inputs'!$E$14 -> 0 | BD42: =L42/100*AH42*'Model inputs'!$E$14 -> 0 | BE42: =M42/100*AI42*'Model inputs'!$E$14 -> 0 | BF42: 0 | BG42: 0 | BH42: 0 | BI42: 0 | BJ42: 0 | BK42: 0 | BL42: 0 | BM42: 0 | BN42: 0 | BO42: 0 | BP42: 0 | BQ42: 0
AV43: =D43/100*Z43*'Model inputs'!$E$14 -> 0 | AW43: 0 | AX43: 0 | AY43: 0 | AZ43: 0 | BA43: 0 | BB43: 0 | BC43: =K43/100*AG43*'Model inputs'!$E$14 -> 0 | BD43: =L43/100*AH43*'Model inputs'!$E$14 -> 0 | BE43: =M43/100*AI43*'Model inputs'!$E$14 -> 0 | BF43: 0 | BG43: 0 | BH43: 0 | BI43: 0 | BJ43: 0 | BK43: 0 | BL43: 0 | BM43: 0 | BN43: 0 | BO43: 0 | BP43: 0 | BQ43: 0
AV44: =D44/100*Z44*'Model inputs'!$E$14 -> 0 | AW44: 0 | AX44: 0 | AY44: 0 | AZ44: 0 | BA44: 0 | BB44: 0 | BC44: =K44/100*AG44*'Model inputs'!$E$14 -> 0 | BD44: =L44/100*AH44*'Model inputs'!$E$14 -> 0 | BE44: =M44/100*AI44*'Model inputs'!$E$14 -> 0 | BF44: 0 | BG44: 0 | BH44: 0 | BI44: 0 | BJ44: 0 | BK44: 0 | BL44: 0 | BM44: 0 | BN44: 0 | BO44: 0 | BP44: 0 | BQ44: 0
AV45: =D45/100*Z45*'Model inputs'!$E$14 -> 0 | AW45: 0 | AX45: 0 | AY45: 0 | AZ45: 0 | BA45: 0 | BB45: 0 | BC45: =K45/100*AG45*'Model inputs'!$E$14 -> 0 | BD45: =L45/100*AH45*'Model inputs'!$E$14 -> 0 | BE45: =M45/100*AI45*'Model inputs'!$E$14 -> 0 | BF45: 0 | BG45: 0 | BH45: 0 | BI45: 0 | BJ45: 0 | BK45: 0 | BL45: 0 | BM45: 0 | BN45: 0 | BO45: 0 | BP45: 0 | BQ45: 0
AV46: =D46/100*Z46*'Model inputs'!$E$14 -> 0 | AW46: 0 | AX46: 0 | AY46: 0 | AZ46: 0 | BA46: 0 | BB46: 0 | BC46: =K46/100*AG46*'Model inputs'!$E$14 -> 0 | BD46: =L46/100*AH46*'Model inputs'!$E$14 -> 0 | BE46: =M46/100*AI46*'Model inputs'!$E$14 -> 0 | BF46: 0 | BG46: 0 | BH46: 0 | BI46: 0 | BJ46: 0 | BK46: 0 | BL46: 0 | BM46: 0 | BN46: 0 | BO46: 0 | BP46: 0 | BQ46: 0
AV47: =D47/100*Z47*'Model inputs'!$E$14 -> 0 | AW47: 0 | AX47: 0 | AY47: 0 | AZ47: 0 | BA47: 0 | BB47: 0 | BC47: =K47/100*AG47*'Model inputs'!$E$14 -> 0 | BD47: =L47/100*AH47*'Model inputs'!$E$14 -> 0 | BE47: =M47/100*AI47*'Model inputs'!$E$14 -> 0 | BF47: 0 | BG47: 0 | BH47: 0 | BI47: 0 | BJ47: 0 | BK47: 0 | BL47: 0 | BM47: 0 | BN47: 0 | BO47: 0 | BP47: 0 | BQ47: 0
AV48: =D48/100*Z48*'Model inputs'!$E$14 -> 0 | AW48: 0 | AX48: 0 | AY48: 0 | AZ48: 0 | BA48: 0 | BB48: 0 | BC48: =K48/100*AG48*'Model inputs'!$E$14 -> 0 | BD48: =L48/100*AH48*'Model inputs'!$E$14 -> 0 | BE48: =M48/100*AI48*'Model inputs'!$E$14 -> 0 | BF48: 0 | BG48: 0 | BH48: 0 | BI48: 0 | BJ48: 0 | BK48: 0 | BL48: 0 | BM48: 0 | BN48: 0 | BO48: 0 | BP48: 0 | BQ48: 0
AV49: =D49/100*Z49*'Model inputs'!$E$14 -> 0 | AW49: 0 | AX49: 0 | AY49: 0 | AZ49: 0 | BA49: 0 | BB49: 0 | BC49: =K49/100*AG49*'Model inputs'!$E$14 -> 0 | BD49: =L49/100*AH49*'Model inputs'!$E$14 -> 0 | BE49: =M49/100*AI49*'Model inputs'!$E$14 -> 0 | BF49: 0 | BG49: 0 | BH49: 0 | BI49: 0 | BJ49: 0 | BK49: 0 | BL49: 0 | BM49: 0 | BN49: 0 | BO49: 0 | BP49: 0 | BQ49: 0
AV50: =D50/100*Z50*'Model inputs'!$E$14 -> 0 | AW50: 0 | AX50: 0 | AY50: 0 | AZ50: 0 | BA50: 0 | BB50: 0 | BC50: =K50/100*AG50*'Model inputs'!$E$14 -> 0 | BD50: =L50/100*AH50*'Model inputs'!$E$14 -> 0 | BE50: =M50/100*AI50*'Model inputs'!$E$14 -> 0 | BF50: 0 | BG50: 0 | BH50: 0 | BI50: 0 | BJ50: 0 | BK50: 0 | BL50: 0 | BM50: 0 | BN50: 0 | BO50: 0 | BP50: 0 | BQ50: 0
AV51: =D51/100*Z51*'Model inputs'!$E$14 -> 0 | AW51: 0 | AX51: 0 | AY51: 0 | AZ51: 0 | BA51: 0 | BB51: 0 | BC51: =K51/100*AG51*'Model inputs'!$E$14 -> 0 | BD51: =L51/100*AH51*'Model inputs'!$E$14 -> 0 | BE51: =M51/100*AI51*'Model inputs'!$E$14 -> 0 | BF51: 0 | BG51: 0 | BH51: 0 | BI51: 0 | BJ51: 0 | BK51: 0 | BL51: 0 | BM51: 0 | BN51: 0 | BO51: 0 | BP51: 0 | BQ51: 0
AV52: =D52/100*Z52*'Model inputs'!$E$14 -> 0 | AW52: 0 | AX52: 0 | AY52: 0 | AZ52: 0 | BA52: 0 | BB52: 0 | BC52: =K52/100*AG52*'Model inputs'!$E$14 -> 0 | BD52: =L52/100*AH52*'Model inputs'!$E$14 -> 0 | BE52: =M52/100*AI52*'Model inputs'!$E$14 -> 0 | BF52: 0 | BG52: 0 | BH52: 0 | BI52: 0 | BJ52: 0 | BK52: 0 | BL52: 0 | BM52: 0 | BN52: 0 | BO52: 0 | BP52: 0 | BQ52: 0
AV53: =D53/100*Z53*'Model inputs'!$E$14 -> 0 | AW53: 0 | AX53: 0 | AY53: 0 | AZ53: 0 | BA53: 0 | BB53: 0 | BC53: =K53/100*AG53*'Model inputs'!$E$14 -> 0 | BD53: =L53/100*AH53*'Model inputs'!$E$14 -> 0 | BE53: =M53/100*AI53*'Model inputs'!$E$14 -> 0 | BF53: 0 | BG53: 0 | BH53: 0 | BI53: 0 | BJ53: 0 | BK53: 0 | BL53: 0 | BM53: 0 | BN53: 0 | BO53: 0 | BP53: 0 | BQ53: 0
AV54: =D54/100*Z54*'Model inputs'!$E$14 -> 0 | AW54: 0 | AX54: 0 | AY54: 0 | AZ54: 0 | BA54: 0 | BB54: 0 | BC54: =K54/100*AG54*'Model inputs'!$E$14 -> 0 | BD54: =L54/100*AH54*'Model inputs'!$E$14 -> 0 | BE54: =M54/100*AI54*'Model inputs'!$E$14 -> 0 | BF54: 0 | BG54: 0 | BH54: 0 | BI54: 0 | BJ54: 0 | BK54: 0 | BL54: 0 | BM54: 0 | BN54: 0 | BO54: 0 | BP54: 0 | BQ54: 0
AV55: =D55/100*Z55*'Model inputs'!$E$14 -> 0 | AW55: 0 | AX55: 0 | AY55: 0 | AZ55: 0 | BA55: 0 | BB55: 0 | BC55: =K55/100*AG55*'Model inputs'!$E$14 -> 0 | BD55: =L55/100*AH55*'Model inputs'!$E$14 -> 0 | BE55: =M55/100*AI55*'Model inputs'!$E$14 -> 0 | BF55: 0 | BG55: 0 | BH55: 0 | BI55: 0 | BJ55: 0 | BK55: 0 | BL55: 0 | BM55: 0 | BN55: 0 | BO55: 0 | BP55: 0 | BQ55: 0
AV56: =D56/100*Z56*'Model inputs'!$E$14 -> 0 | AW56: 0 | AX56: 0 | AY56: 0 | AZ56: 0 | BA56: 0 | BB56: 0 | BC56: =K56/100*AG56*'Model inputs'!$E$14 -> 0 | BD56: =L56/100*AH56*'Model inputs'!$E$14 -> 0 | BE56: =M56/100*AI56*'Model inputs'!$E$14 -> 0 | BF56: 0 | BG56: 0 | BH56: 0 | BI56: 0 | BJ56: 0 | BK56: 0 | BL56: 0 | BM56: 0 | BN56: 0 | BO56: 0 | BP56: 0 | BQ56: 0
AV57: =D57/100*Z57*'Model inputs'!$E$14 -> 0 | AW57: 0 | AX57: 0 | AY57: 0 | AZ57: 0 | BA57: 0 | BB57: 0 | BC57: =K57/100*AG57*'Model inputs'!$E$14 -> 0 | BD57: =L57/100*AH57*'Model inputs'!$E$14 -> 0 | BE57: =M57/100*AI57*'Model inputs'!$E$14 -> 0 | BF57: 0 | BG57: 0 | BH57: 0 | BI57: 0 | BJ57: 0 | BK57: 0 | BL57: 0 | BM57: 0 | BN57: 0 | BO57: 0 | BP57: 0 | BQ57: 0
AV58: =D58/100*Z58*'Model inputs'!$E$14 -> 0 | AW58: 0 | AX58: 0 | AY58: 0 | AZ58: 0 | BA58: 0 | BB58: 0 | BC58: =K58/100*AG58*'Model inputs'!$E$14 -> 0 | BD58: =L58/100*AH58*'Model inputs'!$E$14 -> 0 | BE58: =M58/100*AI58*'Model inputs'!$E$14 -> 0 | BF58: 0 | BG58: 0 | BH58: 0 | BI58: 0 | BJ58: 0 | BK58: 0 | BL58: 0 | BM58: 0 | BN58: 0 | BO58: 0 | BP58: 0 | BQ58: 0
AV59: =D59/100*Z59*'Model inputs'!$E$14 -> 0 | AW59: 0 | AX59: 0 | AY59: 0 | AZ59: 0 | BA59: 0 | BB59: 0 | BC59: =K59/100*AG59*'Model inputs'!$E$14 -> 0 | BD59: =L59/100*AH59*'Model inputs'!$E$14 -> 0 | BE59: =M59/100*AI59*'Model inputs'!$E$14 -> 0 | BF59: 0 | BG59: 0 | BH59: 0 | BI59: 0 | BJ59: 0 | BK59: 0 | BL59: 0 | BM59: 0 | BN59: 0 | BO59: 0 | BP59: 0 | BQ59: 0
AV60: =D60/100*Z60*'Model inputs'!$E$14 -> 0 | AW60: 0 | AX60: 0 | AY60: 0 | AZ60: 0 | BA60: 0 | BB60: 0 | BC60: =K60/100*AG60*'Model inputs'!$E$14 -> 0 | BD60: =L60/100*AH60*'Model inputs'!$E$14 -> 0 | BE60: =M60/100*AI60*'Model inputs'!$E$14 -> 0 | BF60: 0 | BG60: 0 | BH60: 0 | BI60: 0 | BJ60: 0 | BK60: 0 | BL60: 0 | BM60: 0 | BN60: 0 | BO60: 0 | BP60: 0 | BQ60: 0
AV61: =D61/100*Z61*'Model inputs'!$E$14 -> 0 | AW61: 0 | AX61: 0 | AY61: 0 | AZ61: 0 | BA61: 0 | BB61: 0 | BC61: =K61/100*AG61*'Model inputs'!$E$14 -> 0 | BD61: =L61/100*AH61*'Model inputs'!$E$14 -> 0 | BE61: =M61/100*AI61*'Model inputs'!$E$14 -> 0 | BF61: 0 | BG61: 0 | BH61: 0 | BI61: 0 | BJ61: 0 | BK61: 0 | BL61: 0 | BM61: 0 | BN61: 0 | BO61: 0 | BP61: 0 | BQ61: 0
AV62: =D62/100*Z62*'Model inputs'!$E$14 -> 0 | AW62: 0 | AX62: 0 | AY62: 0 | AZ62: 0 | BA62: 0 | BB62: 0 | BC62: =K62/100*AG62*'Model inputs'!$E$14 -> 0 | BD62: =L62/100*AH62*'Model inputs'!$E$14 -> 0 | BE62: =M62/100*AI62*'Model inputs'!$E$14 -> 0 | BF62: 0 | BG62: 0 | BH62: 0 | BI62: 0 | BJ62: 0 | BK62: 0 | BL62: 0 | BM62: 0 | BN62: 0 | BO62: 0 | BP62: 0 | BQ62: 0
AV63: =D63/100*Z63*'Model inputs'!$E$14 -> 0 | AW63: 0 | AX63: 0 | AY63: 0 | AZ63: 0 | BA63: 0 | BB63: 0 | BC63: =K63/100*AG63*'Model inputs'!$E$14 -> 0 | BD63: =L63/100*AH63*'Model inputs'!$E$14 -> 0 | BE63: =M63/100*AI63*'Model inputs'!$E$14 -> 0 | BF63: 0 | BG63: 0 | BH63: 0 | BI63: 0 | BJ63: 0 | BK63: 0 | BL63: 0 | BM63: 0 | BN63: 0 | BO63: 0 | BP63: 0 | BQ63: 0
AV64: =D64/100*Z64*'Model inputs'!$E$14 -> 0 | AW64: 0 | AX64: 0 | AY64: 0 | AZ64: 0 | BA64: 0 | BB64: 0 | BC64: =K64/100*AG64*'Model inputs'!$E$14 -> 0 | BD64: =L64/100*AH64*'Model inputs'!$E$14 -> 0 | BE64: =M64/100*AI64*'Model inputs'!$E$14 -> 0 | BF64: 0 | BG64: 0 | BH64: 0 | BI64: 0 | BJ64: 0 | BK64: 0 | BL64: 0 | BM64: 0 | BN64: 0 | BO64: 0 | BP64: 0 | BQ64: 0
AV65: =D65/100*Z65*'Model inputs'!$E$14 -> 0 | AW65: 0 | AX65: 0 | AY65: 0 | AZ65: 0 | BA65: 0 | BB65: 0 | BC65: =K65/100*AG65*'Model inputs'!$E$14 -> 0 | BD65: =L65/100*AH65*'Model inputs'!$E$14 -> 0 | BE65: =M65/100*AI65*'Model inputs'!$E$14 -> 0 | BF65: 0 | BG65: 0 | BH65: 0 | BI65: 0 | BJ65: 0 | BK65: 0 | BL65: 0 | BM65: 0 | BN65: 0 | BO65: 0 | BP65: 0 | BQ65: 0
Z66: =SUM(Z6:Z65) -> 205532.9495 | AA66: 1062586429 | AB66: 270151383.4 | AC66: 14673027.2 | AD66: 555728996.7 | AE66: 272296642.3 | AF66: 741142483.1 | AG66: 123061.3292 | AH66: 244262.3885 | AI66: 93079.92228 | AJ66: 0 | AK66: 0 | AL66: 0 | AM66: =SUM(AM6:AM65) -> 0 | AN66: 0 | AO66: 0 | AP66: 0 | AQ66: 0 | AR66: 0 | AS66: 0 | AT66: 0 | AV66: =SUM(AV6:AV65) -> 148852.9383 | AW66: 30416667.33 | AX66: 8402658.452 | AY66: 621904.7096 | AZ66: 23952415.8 | BA66: 7318672.084 | BB66: 10776168.52 | BC66: 0 | BD66: 0 | BE66: 0 | BF66: 0 | BG66: 0 | BH66: 0 | BI66: 0 | BJ66: 0 | BK66: 0 | BL66: 0 | BM66: 0 | BN66: 0 | BO66: 0 | BP66: 0 | BQ66: =SUM(AV66:BP66) -> 81637339.83

Sheet Est2018-19JSRev
B1: ="Tariff Approval - "&'Model inputs'!C3 -> Tariff Approval - Evoenergy
B3: ="ESTIMATED "&'Model inputs'!C5&" JURISDICTIONAL SCHEME REVENUE" -> ESTIMATED 2018/19 JURISDICTIONAL SCHEME REVENUE
D4: ="Current Jurisdictional scheme Tariffs (Pt-1) for "&'Model inputs'!C5 -> Current Jurisdictional scheme Tariffs (Pt-1) for 2018/19 | Z4: ="Estimated Quantities (Qt-1) for "&'Model inputs'!C5 -> Estimated Quantities (Qt-1) for 2018/19 | AV4: ="Estimated Revenue (Pt-1 "&'Model inputs'!C5&")*(Qt-1 " &'Model inputs'!C5&")" -> Estimated Revenue (Pt-1 2018/19)*(Qt-1 2018/19)
B5: ="Tariffs "&'Model inputs'!C5 -> Tariffs 2018/19 | D5: ='Est2018-19TransRev'!D5 -> CurrentTar Fixed | E5: ='Est2018-19TransRev'!E5 -> CurrentTar Anytime | F5: ='Est2018-19TransRev'!F5 -> CurrentTar Block: Step 1 | G5: ='Est2018-19TransRev'!G5 -> CurrentTar Block: Step 2 | H5: ='Est2018-19TransRev'!H5 -> CurrentTar TOU: Peak | I5: ='Est2018-19TransRev'!I5 -> CurrentTar TOU: Shoulder | J5: ='Est2018-19TransRev'!J5 -> CurrentTar TOU: Off-peak | K5: ='Est2018-19TransRev'!K5 -> CurrentTar Dem kW | L5: ='Est2018-19TransRev'!L5 -> CurrentTar Dem kVA: peak | M5: ='Est2018-19TransRev'!M5 -> CurrentTar Capacity kVA: anytime | Z5: ='Est2018-19TransRev'!Z5 -> EstVol Fixed | AA5: ='Est2018-19TransRev'!AA5 -> EstVol Anytime | AB5: ='Est2018-19TransRev'!AB5 -> EstVol Block: Step 1 | AC5: ='Est2018-19TransRev'!AC5 -> EstVol Block: Step 2 | AD5: ='Est2018-19TransRev'!AD5 -> EstVol TOU: Peak | AE5: ='Est2018-19TransRev'!AE5 -> EstVol TOU: Shoulder | AF5: ='Est2018-19TransRev'!AF5 -> EstVol TOU: Off-peak | AG5: ='Est2018-19TransRev'!AG5 -> EstVol Dem kW | AH5: ='Est2018-19TransRev'!AH5 -> EstVol Dem kVA: peak | AI5: ='Est2018-19TransRev'!AI5 -> EstVol Capacity kVA: anytime | AV5: ='Est2018-19TransRev'!AV5 -> EstRev Fixed | AW5: ='Est2018-19TransRev'!AW5 -> EstRev Anytime | AX5: ='Est2018-19TransRev'!AX5 -> EstRev Block: Step 1 | AY5: ='Est2018-19TransRev'!AY5 -> EstRev Block: Step 2 | AZ5: ='Est2018-19TransRev'!AZ5 -> EstRev TOU: Peak | BA5: ='Est2018-19TransRev'!BA5 -> EstRev TOU: Shoulder | BB5: ='Est2018-19TransRev'!BB5 -> EstRev TOU: Off-peak | BC5: ='Est2018-19TransRev'!BC5 -> EstRev Dem kW | BD5: ='Est2018-19TransRev'!BD5 -> EstRev Dem kVA: peak | BE5: ='Est2018-19TransRev'!BE5 -> EstRev Capacity kVA: anytime | BQ5: ='Est2018-19TransRev'!BQ5 -> EstRev Total
B7: ='Est2018-19TransRev'!B7 -> Residential Basic Network | D7: 0 | E7: 2.0204 | Z7: ='Est2018-19TransRev'!Z7 -> 128078.5854 | AA7: ='Est2018-19TransRev'!AA7 -> 776892459.2 | AB7: ='Est2018-19TransRev'!AB7 -> 0 | AC7: ='Est2018-19TransRev'!AC7 -> 0 | AD7: ='Est2018-19TransRev'!AD7 -> 0 | AE7: ='Est2018-19TransRev'!AE7 -> 0 | AF7: ='Est2018-19TransRev'!AF7 -> 0 | AG7: ='Est2018-19TransRev'!AG7 -> 0 | AH7: ='Est2018-19TransRev'!AH7 -> 0 | AI7: ='Est2018-19TransRev'!AI7 -> 0 | AV7: =D7/100*Z7*'Model inputs'!$D$14 -> 0 | AW7: =E7/100*AA7 -> 15696335.25 | AX7: =F7/100*AB7 -> 0 | AY7: =G7/100*AC7 -> 0 | AZ7: =H7/100*AD7 -> 0 | BA7: =I7/100*AE7 -> 0 | BB7: =J7/100*AF7 -> 0 | BC7: =K7/100*AG7*'Model inputs'!$D$14 -> 0 | BD7: =L7/100*AH7*'Model inputs'!$D$14 -> 0 | BE7: =M7/100*AI7*'Model inputs'!$D$14 -> 0 | BF7: =N7*AJ7 -> 0 | BG7: =O7*AK7 -> 0 | BH7: =P7*AL7 -> 0 | BI7: =Q7/100*AM7 -> 0 | BJ7: =R7/100*AN7 -> 0 | BK7: =S7/100*AO7 -> 0 | BL7: =T7/100*AP7 -> 0 | BM7: =U7/100*AQ7 -> 0 | BN7: =V7/100*AR7 -> 0 | BO7: =W7/100*AS7 -> 0 | BP7: =X7/100*AT7 -> 0 | BQ7: =SUM(AV7:BP7) -> 15696335.25
B8: ='Est2018-19TransRev'!B8 -> Residential TOU Network | D8: 0 | H8: 2.5255 | I8: 2.0204 | J8: 1.5128 | Z8: ='Est2018-19TransRev'!Z8 -> 37571.41042 | AA8: ='Est2018-19TransRev'!AA8 -> 0 | AB8: ='Est2018-19TransRev'!AB8 -> 0 | AC8: ='Est2018-19TransRev'!AC8 -> 0 | AD8: ='Est2018-19TransRev'!AD8 -> 57421281.6 | AE8: ='Est2018-19TransRev'!AE8 -> 80471393.39 | AF8: ='Est2018-19TransRev'!AF8 -> 58191270.35 | AG8: ='Est2018-19TransRev'!AG8 -> 0 | AH8: ='Est2018-19TransRev'!AH8 -> 0 | AI8: ='Est2018-19TransRev'!AI8 -> 0 | AV8: =D8/100*Z8*'Model inputs'!$D$14 -> 0 | AW8: 0 | AX8: 0 | AY8: 0 | AZ8: 1450174.467 | BA8: 1625844.032 | BB8: 880317.5379 | BC8: =K8/100*AG8*'Model inputs'!$D$14 -> 0 | BD8: =L8/100*AH8*'Model inputs'!$D$14 -> 0 | BE8: =M8/100*AI8*'Model inputs'!$D$14 -> 0 | BF8: 0 | BG8: 0 | BH8: 0 | BI8: 0 | BJ8: 0 | BK8: 0 | BL8: 0 | BM8: 0 | BN8: 0 | BO8: 0 | BP8: 0 | BQ8: 3956336.037
B9: ='Est2018-19TransRev'!B9 -> Residential 5000 Network | D9: 0 | F9: 2.0204 | G9: 2.0204 | Z9: ='Est2018-19TransRev'!Z9 -> 4097.49375 | AA9: ='Est2018-19TransRev'!AA9 -> 0 | AB9: ='Est2018-19TransRev'!AB9 -> 30609473.52 | AC9: ='Est2018-19TransRev'!AC9 -> 1029792.818 | AD9: ='Est2018-19TransRev'!AD9 -> 0 | AE9: ='Est2018-19TransRev'!AE9 -> 0 | AF9: ='Est2018-19TransRev'!AF9 -> 0 | AG9: ='Est2018-19TransRev'!AG9 -> 0 | AH9: ='Est2018-19TransRev'!AH9 -> 0 | AI9: ='Est2018-19TransRev'!AI9 -> 0 | AV9: =D9/100*Z9*'Model inputs'!$D$14 -> 0 | AW9: 0 | AX9: 618433.803 | AY9: 20805.9341 | AZ9: 0 | BA9: 0 | BB9: 0 | BC9: =K9/100*AG9*'Model inputs'!$D$14 -> 0 | BD9: =L9/100*AH9*'Model inputs'!$D$14 -> 0 | BE9: =M9/100*AI9*'Model inputs'!$D$14 -> 0 | BF9: 0 | BG9: 0 | BH9: 0 | BI9: 0 | BJ9: 0 | BK9: 0 | BL9: 0 | BM9: 0 | BN9: 0 | BO9: 0 | BP9: 0 | BQ9: 639239.7371
B10: ='Est2018-19TransRev'!B10 -> Residential with Heat Pump Network | D10: 0 | F10: 2.0204 | G10: 2.0204 | Z10: ='Est2018-19TransRev'!Z10 -> 5006.49375 | AA10: ='Est2018-19TransRev'!AA10 -> 0 | AB10: ='Est2018-19TransRev'!AB10 -> 63293804.34 | AC10: ='Est2018-19TransRev'!AC10 -> 785377.0308 | AD10: ='Est2018-19TransRev'!AD10 -> 0 | AE10: ='Est2018-19TransRev'!AE10 -> 0 | AF10: ='Est2018-19TransRev'!AF10 -> 0 | AG10: ='Est2018-19TransRev'!AG10 -> 0 | AH10: ='Est2018-19TransRev'!AH10 -> 0 | AI10: ='Est2018-19TransRev'!AI10 -> 0 | AV10: =D10/100*Z10*'Model inputs'!$D$14 -> 0 | AW10: 0 | AX10: 1278788.023 | AY10: 15867.75753 | AZ10: 0 | BA10: 0 | BB10: 0 | BC10: =K10/100*AG10*'Model inputs'!$D$14 -> 0 | BD10: =L10/100*AH10*'Model inputs'!$D$14 -> 0 | BE10: =M10/100*AI10*'Model inputs'!$D$14 -> 0 | BF10: 0 | BG10: 0 | BH10: 0 | BI10: 0 | BJ10: 0 | BK10: 0 | BL10: 0 | BM10: 0 | BN10: 0 | BO10: 0 | BP10: 0 | BQ10: 1294655.78
B11: ='Est2018-19TransRev'!B11 -> Off-Peak (1) Night Network | J11: 1.0589 | Z11: ='Est2018-19TransRev'!Z11 -> 0 | AA11: ='Est2018-19TransRev'!AA11 -> 0 | AB11: ='Est2018-19TransRev'!AB11 -> 0 | AC11: ='Est2018-19TransRev'!AC11 -> 0 | AD11: ='Est2018-19TransRev'!AD11 -> 0 | AE11: ='Est2018-19TransRev'!AE11 -> 0 | AF11: ='Est2018-19TransRev'!AF11 -> 10567723.73 | AG11: ='Est2018-19TransRev'!AG11 -> 0 | AH11: ='Est2018-19TransRev'!AH11 -> 0 | AI11: ='Est2018-19TransRev'!AI11 -> 0 | AV11: =D11/100*Z11*'Model inputs'!$D$14 -> 0 | AW11: 0 | AX11: 0 | AY11: 0 | AZ11: 0 | BA11: 0 | BB11: 111901.6266 | BC11: =K11/100*AG11*'Model inputs'!$D$14 -> 0 | BD11: =L11/100*AH11*'Model inputs'!$D$14 -> 0 | BE11: =M11/100*AI11*'Model inputs'!$D$14 -> 0 | BF11: 0 | BG11: 0 | BH11: 0 | BI11: 0 | BJ11: 0 | BK11: 0 | BL11: 0 | BM11: 0 | BN11: 0 | BO11: 0 | BP11: 0 | BQ11: 111901.6266
B12: ='Est2018-19TransRev'!B12 -> Off-Peak (3) Day & Night Network | J12: 1.5128 | Z12: ='Est2018-19TransRev'!Z12 -> 0 | AA12: ='Est2018-19TransRev'!AA12 -> 0 | AB12: ='Est2018-19TransRev'!AB12 -> 0 | AC12: ='Est2018-19TransRev'!AC12 -> 0 | AD12: ='Est2018-19TransRev'!AD12 -> 0 | AE12: ='Est2018-19TransRev'!AE12 -> 0 | AF12: ='Est2018-19TransRev'!AF12 -> 69190249.35 | AG12: ='Est2018-19TransRev'!AG12 -> 0 | AH12: ='Est2018-19TransRev'!AH12 -> 0 | AI12: ='Est2018-19TransRev'!AI12 -> 0 | AV12: =D12/100*Z12*'Model inputs'!$D$14 -> 0 | AW12: 0 | AX12: 0 | AY12: 0 | AZ12: 0 | BA12: 0 | BB12: 1046710.092 | BC12: =K12/100*AG12*'Model inputs'!$D$14 -> 0 | BD12: =L12/100*AH12*'Model inputs'!$D$14 -> 0 | BE12: =M12/100*AI12*'Model inputs'!$D$14 -> 0 | BF12: 0 | BG12: 0 | BH12: 0 | BI12: 0 | BJ12: 0 | BK12: 0 | BL12: 0 | BM12: 0 | BN12: 0 | BO12: 0 | BP12: 0 | BQ12: 1046710.092
B13: ='Est2018-19TransRev'!B13 -> Residential Demand Network | D13: 0 | E13: 2.0204 | K13: 0 | Z13: ='Est2018-19TransRev'!Z13 -> 7627.766667 | AA13: ='Est2018-19TransRev'!AA13 -> 31024618.24 | AB13: ='Est2018-19TransRev'!AB13 -> 0 | AC13: ='Est2018-19TransRev'!AC13 -> 0 | AD13: ='Est2018-19TransRev'!AD13 -> 0 | AE13: ='Est2018-19TransRev'!AE13 -> 0 | AF13: ='Est2018-19TransRev'!AF13 -> 0 | AG13: ='Est2018-19TransRev'!AG13 -> 24610.13995 | AH13: ='Est2018-19TransRev'!AH13 -> 0 | AI13: ='Est2018-19TransRev'!AI13 -> 0 | AV13: =D13/100*Z13*'Model inputs'!$D$14 -> 0 | AW13: 626821.3869 | AX13: 0 | AY13: 0 | AZ13: 0 | BA13: 0 | BB13: 0 | BC13: =K13/100*AG13*'Model inputs'!$D$14 -> 0 | BD13: =L13/100*AH13*'Model inputs'!$D$14 -> 0 | BE13: =M13/100*AI13*'Model inputs'!$D$14 -> 0 | BF13: 0 | BG13: 0 | BH13: 0 | BI13: 0 | BJ13: 0 | BK13: 0 | BL13: 0 | BM13: 0 | BN13: 0 | BO13: 0 | BP13: 0 | BQ13: 626821.3869
Z14: ='Est2018-19TransRev'!Z14 -> 0 | AA14: ='Est2018-19TransRev'!AA14 -> 0 | AB14: ='Est2018-19TransRev'!AB14 -> 0 | AC14: ='Est2018-19TransRev'!AC14 -> 0 | AD14: ='Est2018-19TransRev'!AD14 -> 0 | AE14: ='Est2018-19TransRev'!AE14 -> 0 | AF14: ='Est2018-19TransRev'!AF14 -> 0 | AG14: ='Est2018-19TransRev'!AG14 -> 0 | AH14: ='Est2018-19TransRev'!AH14 -> 0 | AI14: ='Est2018-19TransRev'!AI14 -> 0 | AV14: =D14/100*Z14*'Model inputs'!$D$14 -> 0 | AW14: 0 | AX14: 0 | AY14: 0 | AZ14: 0 | BA14: 0 | BB14: 0 | BC14: =K14/100*AG14*'Model inputs'!$D$14 -> 0 | BD14: =L14/100*AH14*'Model inputs'!$D$14 -> 0 | BE14: =M14/100*AI14*'Model inputs'!$D$14 -> 0 | BF14: 0 | BG14: 0 | BH14: 0 | BI14: 0 | BJ14: 0 | BK14: 0 | BL14: 0 | BM14: 0 | BN14: 0 | BO14: 0 | BP14: 0 | BQ14: 0
B15: ='Est2018-19TransRev'!B15 -> General Network | D15: 0 | F15: 2.0204 | G15: 2.0204 | Z15: ='Est2018-19TransRev'!Z15 -> 11774.63542 | AA15: ='Est2018-19TransRev'!AA15 -> 0 | AB15: ='Est2018-19TransRev'!AB15 -> 192948424.3 | AC15: ='Est2018-19TransRev'!AC15 -> 13783372.67 | AD15: ='Est2018-19TransRev'!AD15 -> 0 | AE15: ='Est2018-19TransRev'!AE15 -> 0 | AF15: ='Est2018-19TransRev'!AF15 -> 0 | AG15: ='Est2018-19TransRev'!AG15 -> 0 | AH15: ='Est2018-19TransRev'!AH15 -> 0 | AI15: ='Est2018-19TransRev'!AI15 -> 0 | AV15: =D15/100*Z15*'Model inputs'!$D$14 -> 0 | AW15: 0 | AX15: 3898329.965 | AY15: 278479.2614 | AZ15: 0 | BA15: 0 | BB15: 0 | BC15: =K15/100*AG15*'Model inputs'!$D$14 -> 0 | BD15: =L15/100*AH15*'Model inputs'!$D$14 -> 0 | BE15: =M15/100*AI15*'Model inputs'!$D$14 -> 0 | BF15: 0 | BG15: 0 | BH15: 0 | BI15: 0 | BJ15: 0 | BK15: 0 | BL15: 0 | BM15: 0 | BN15: 0 | BO15: 0 | BP15: 0 | BQ15: 4176809.227
B16: ='Est2018-19TransRev'!B16 -> General TOU Network | D16: 0 | H16: 2.5801 | I16: 2.0204 | J16: 1.5392 | Z16: ='Est2018-19TransRev'!Z16 -> 3495.946788 | AA16: ='Est2018-19TransRev'!AA16 -> 0 | AB16: ='Est2018-19TransRev'!AB16 -> 0 | AC16: ='Est2018-19TransRev'!AC16 -> 0 | AD16: ='Est2018-19TransRev'!AD16 -> 78604648.85 | AE16: ='Est2018-19TransRev'!AE16 -> 35837697.65 | AF16: ='Est2018-19TransRev'!AF16 -> 96074457.11 | AG16: ='Est2018-19TransRev'!AG16 -> 0 | AH16: ='Est2018-19TransRev'!AH16 -> 0 | AI16: ='Est2018-19TransRev'!AI16 -> 0 | AV16: =D16/100*Z16*'Model inputs'!$D$14 -> 0 | AW16: 0 | AX16: 0 | AY16: 0 | AZ16: 2028078.545 | BA16: 724064.8433 | BB16: 1478778.044 | BC16: =K16/100*AG16*'Model inputs'!$D$14 -> 0 | BD16: =L16/100*AH16*'Model inputs'!$D$14 -> 0 | BE16: =M16/100*AI16*'Model inputs'!$D$14 -> 0 | BF16: 0 | BG16: 0 | BH16: 0 | BI16: 0 | BJ16: 0 | BK16: 0 | BL16: 0 | BM16: 0 | BN16: 0 | BO16: 0 | BP16: 0 | BQ16: 4230921.432
B17: ='Est2018-19TransRev'!B17 -> LV TOU kVA Demand Network | D17: 0 | H17: 2.5801 | I17: 2.0204 | J17: 1.5392 | L17: 0 | Z17: ='Est2018-19TransRev'!Z17 -> 1666.847731 | AA17: ='Est2018-19TransRev'!AA17 -> 0 | AB17: ='Est2018-19TransRev'!AB17 -> 0 | AC17: ='Est2018-19TransRev'!AC17 -> 0 | AD17: ='Est2018-19TransRev'!AD17 -> 273707489.5 | AE17: ='Est2018-19TransRev'!AE17 -> 103099335.5 | AF17: ='Est2018-19TransRev'!AF17 -> 322718490.3 | AG17: ='Est2018-19TransRev'!AG17 -> 0 | AH17: ='Est2018-19TransRev'!AH17 -> 168355.1862 | AI17: ='Est2018-19TransRev'!AI17 -> 0 | AV17: =D17/100*Z17*'Model inputs'!$D$14 -> 0 | AW17: 0 | AX17: 0 | AY17: 0 | AZ17: 7061926.936 | BA17: 2083018.974 | BB17: 4967283.003 | BC17: =K17/100*AG17*'Model inputs'!$D$14 -> 0 | BD17: =L17/100*AH17*'Model inputs'!$D$14 -> 0 | BE17: =M17/100*AI17*'Model inputs'!$D$14 -> 0 | BF17: 0 | BG17: 0 | BH17: 0 | BI17: 0 | BJ17: 0 | BK17: 0 | BL17: 0 | BM17: 0 | BN17: 0 | BO17: 0 | BP17: 0 | BQ17: 14112228.91
B18: ='Est2018-19TransRev'!B18 -> LV TOU Capacity Network | D18: 0 | H18: 2.5801 | I18: 2.0204 | J18: 1.5392 | L18: 0 | M18: 0 | Z18: ='Est2018-19TransRev'!Z18 -> 53.93919669 | AA18: ='Est2018-19TransRev'!AA18 -> 0 | AB18: ='Est2018-19TransRev'!AB18 -> 0 | AC18: ='Est2018-19TransRev'!AC18 -> 0 | AD18: ='Est2018-19TransRev'!AD18 -> 16547257.04 | AE18: ='Est2018-19TransRev'!AE18 -> 6880949.322 | AF18: ='Est2018-19TransRev'!AF18 -> 23332632.53 | AG18: ='Est2018-19TransRev'!AG18 -> 0 | AH18: ='Est2018-19TransRev'!AH18 -> 8641.406914 | AI18: ='Est2018-19TransRev'!AI18 -> 9966.171936 | AV18: =D18/100*Z18*'Model inputs'!$D$14 -> 0 | AW18: 0 | AX18: 0 | AY18: 0 | AZ18: 426935.7788 | BA18: 139022.7001 | BB18: 359135.8799 | BC18: =K18/100*AG18*'Model inputs'!$D$14 -> 0 | BD18: =L18/100*AH18*'Model inputs'!$D$14 -> 0 | BE18: =M18/100*AI18*'Model inputs'!$D$14 -> 0 | BF18: 0 | BG18: 0 | BH18: 0 | BI18: 0 | BJ18: 0 | BK18: 0 | BL18: 0 | BM18: 0 | BN18: 0 | BO18: 0 | BP18: 0 | BQ18: 925094.3588
B19: ='Est2018-19TransRev'!B19 -> LV Demand Network | D19: 0 | E19: 2.0204 | K19: 0 | Z19: ='Est2018-19TransRev'!Z19 -> 1095.884876 | AA19: ='Est2018-19TransRev'!AA19 -> 139133622.9 | AB19: ='Est2018-19TransRev'!AB19 -> 0 | AC19: ='Est2018-19TransRev'!AC19 -> 0 | AD19: ='Est2018-19TransRev'!AD19 -> 0 | AE19: ='Est2018-19TransRev'!AE19 -> 0 | AF19: ='Est2018-19TransRev'!AF19 -> 0 | AG19: ='Est2018-19TransRev'!AG19 -> 46149.73656 | AH19: ='Est2018-19TransRev'!AH19 -> 0 | AI19: ='Est2018-19TransRev'!AI19 -> 0 | AV19: =D19/100*Z19*'Model inputs'!$D$14 -> 0 | AW19: 2811055.717 | AX19: 0 | AY19: 0 | AZ19: 0 | BA19: 0 | BB19: 0 | BC19: =K19/100*AG19*'Model inputs'!$D$14 -> 0 | BD19: =L19/100*AH19*'Model inputs'!$D$14 -> 0 | BE19: =M19/100*AI19*'Model inputs'!$D$14 -> 0 | BF19: 0 | BG19: 0 | BH19: 0 | BI19: 0 | BJ19: 0 | BK19: 0 | BL19: 0 | BM19: 0 | BN19: 0 | BO19: 0 | BP19: 0 | BQ19: 2811055.717
B20: ='Est2018-19TransRev'!B20 -> Small Unmetered Loads Network | D20: 0 | E20: 1.4989 | Z20: ='Est2018-19TransRev'!Z20 -> 24.68247872 | AA20: ='Est2018-19TransRev'!AA20 -> 4404716.003 | AB20: ='Est2018-19TransRev'!AB20 -> 0 | AC20: ='Est2018-19TransRev'!AC20 -> 0 | AD20: ='Est2018-19TransRev'!AD20 -> 0 | AE20: ='Est2018-19TransRev'!AE20 -> 0 | AF20: ='Est2018-19TransRev'!AF20 -> 0 | AG20: ='Est2018-19TransRev'!AG20 -> 0 | AH20: ='Est2018-19TransRev'!AH20 -> 0 | AI20: ='Est2018-19TransRev'!AI20 -> 0 | AV20: =D20/100*Z20*'Model inputs'!$D$14 -> 0 | AW20: 66022.28817 | AX20: 0 | AY20: 0 | AZ20: 0 | BA20: 0 | BB20: 0 | BC20: =K20/100*AG20*'Model inputs'!$D$14 -> 0 | BD20: =L20/100*AH20*'Model inputs'!$D$14 -> 0 | BE20: =M20/100*AI20*'Model inputs'!$D$14 -> 0 | BF20: 0 | BG20: 0 | BH20: 0 | BI20: 0 | BJ20: 0 | BK20: 0 | BL20: 0 | BM20: 0 | BN20: 0 | BO20: 0 | BP20: 0 | BQ20: 66022.28817
B21: ='Est2018-19TransRev'!B21 -> Streetlighting Network | D21: 0 | E21: 2.0406 | Z21: ='Est2018-19TransRev'!Z21 -> 19.65085462 | AA21: ='Est2018-19TransRev'!AA21 -> 40053929.6 | AB21: ='Est2018-19TransRev'!AB21 -> 0 | AC21: ='Est2018-19TransRev'!AC21 -> 0 | AD21: ='Est2018-19TransRev'!AD21 -> 0 | AE21: ='Est2018-19TransRev'!AE21 -> 0 | AF21: ='Est2018-19TransRev'!AF21 -> 0 | AG21: ='Est2018-19TransRev'!AG21 -> 0 | AH21: ='Est2018-19TransRev'!AH21 -> 0 | AI21: ='Est2018-19TransRev'!AI21 -> 0 | AV21: =D21/100*Z21*'Model inputs'!$D$14 -> 0 | AW21: 817340.4874 | AX21: 0 | AY21: 0 | AZ21: 0 | BA21: 0 | BB21: 0 | BC21: =K21/100*AG21*'Model inputs'!$D$14 -> 0 | BD21: =L21/100*AH21*'Model inputs'!$D$14 -> 0 | BE21: =M21/100*AI21*'Model inputs'!$D$14 -> 0 | BF21: 0 | BG21: 0 | BH21: 0 | BI21: 0 | BJ21: 0 | BK21: 0 | BL21: 0 | BM21: 0 | BN21: 0 | BO21: 0 | BP21: 0 | BQ21: 817340.4874
Z22: ='Est2018-19TransRev'!Z22 -> 0 | AA22: ='Est2018-19TransRev'!AA22 -> 0 | AB22: ='Est2018-19TransRev'!AB22 -> 0 | AC22: ='Est2018-19TransRev'!AC22 -> 0 | AD22: ='Est2018-19TransRev'!AD22 -> 0 | AE22: ='Est2018-19TransRev'!AE22 -> 0 | AF22: ='Est2018-19TransRev'!AF22 -> 0 | AG22: ='Est2018-19TransRev'!AG22 -> 0 | AH22: ='Est2018-19TransRev'!AH22 -> 0 | AI22: ='Est2018-19TransRev'!AI22 -> 0 | AV22: =D22/100*Z22*'Model inputs'!$D$14 -> 0 | AW22: 0 | AX22: 0 | AY22: 0 | AZ22: 0 | BA22: 0 | BB22: 0 | BC22: =K22/100*AG22*'Model inputs'!$D$14 -> 0 | BD22: =L22/100*AH22*'Model inputs'!$D$14 -> 0 | BE22: =M22/100*AI22*'Model inputs'!$D$14 -> 0 | BF22: 0 | BG22: 0 | BH22: 0 | BI22: 0 | BJ22: 0 | BK22: 0 | BL22: 0 | BM22: 0 | BN22: 0 | BO22: 0 | BP22: 0 | BQ22: 0
B23: ='Est2018-19TransRev'!B23 -> HV TOU Demand Network | D23: 0 | H23: 2.5285 | I23: 1.98 | J23: 1.5084 | L23: 0 | M23: 0 | Z23: ='Est2018-19TransRev'!Z23 -> 1 | AA23: ='Est2018-19TransRev'!AA23 -> 0 | AB23: ='Est2018-19TransRev'!AB23 -> 0 | AC23: ='Est2018-19TransRev'!AC23 -> 0 | AD23: ='Est2018-19TransRev'!AD23 -> 2746335.711 | AE23: ='Est2018-19TransRev'!AE23 -> 1140177.41 | AF23: ='Est2018-19TransRev'!AF23 -> 3510984.612 | AG23: ='Est2018-19TransRev'!AG23 -> 0 | AH23: ='Est2018-19TransRev'!AH23 -> 1608.937218 | AI23: ='Est2018-19TransRev'!AI23 -> 2036.71193 | AV23: =D23/100*Z23*'Model inputs'!$D$14 -> 0 | AW23: 0 | AX23: 0 | AY23: 0 | AZ23: 69441.09846 | BA23: 22575.51271 | BB23: 52959.69189 | BC23: =K23/100*AG23*'Model inputs'!$D$14 -> 0 | BD23: =L23/100*AH23*'Model inputs'!$D$14 -> 0 | BE23: =M23/100*AI23*'Model inputs'!$D$14 -> 0 | BF23: 0 | BG23: 0 | BH23: 0 | BI23: 0 | BJ23: 0 | BK23: 0 | BL23: 0 | BM23: 0 | BN23: 0 | BO23: 0 | BP23: 0 | BQ23: 144976.3031
B24: ='Est2018-19TransRev'!B24 -> HV TOU Demand Network – Customer LV | D24: 0 | H24: 2.5285 | I24: 1.98 | J24: 1.5084 | L24: 0 | M24: 0 | Z24: ='Est2018-19TransRev'!Z24 -> 21.17240169 | AA24: ='Est2018-19TransRev'!AA24 -> 0 | AB24: ='Est2018-19TransRev'!AB24 -> 0 | AC24: ='Est2018-19TransRev'!AC24 -> 0 | AD24: ='Est2018-19TransRev'!AD24 -> 116981757.4 | AE24: ='Est2018-19TransRev'!AE24 -> 46202813.87 | AF24: ='Est2018-19TransRev'!AF24 -> 152065569.5 | AG24: ='Est2018-19TransRev'!AG24 -> 0 | AH24: ='Est2018-19TransRev'!AH24 -> 58501.30594 | AI24: ='Est2018-19TransRev'!AI24 -> 69716.33017 | AV24: =D24/100*Z24*'Model inputs'!$D$14 -> 0 | AW24: 0 | AX24: 0 | AY24: 0 | AZ24: 2957883.735 | BA24: 914815.7147 | BB24: 2293757.05 | BC24: =K24/100*AG24*'Model inputs'!$D$14 -> 0 | BD24: =L24/100*AH24*'Model inputs'!$D$14 -> 0 | BE24: =M24/100*AI24*'Model inputs'!$D$14 -> 0 | BF24: 0 | BG24: 0 | BH24: 0 | BI24: 0 | BJ24: 0 | BK24: 0 | BL24: 0 | BM24: 0 | BN24: 0 | BO24: 0 | BP24: 0 | BQ24: 6166456.5
B25: ='Est2018-19TransRev'!B25 -> HV TOU Demand Network – Customer HV and LV | D25: 0 | H25: 2.5285 | I25: 1.98 | J25: 1.5084 | L25: 0 | M25: 0 | Z25: ='Est2018-19TransRev'!Z25 -> 9.816520601 | AA25: ='Est2018-19TransRev'!AA25 -> 0 | AB25: ='Est2018-19TransRev'!AB25 -> 0 | AC25: ='Est2018-19TransRev'!AC25 -> 0 | AD25: ='Est2018-19TransRev'!AD25 -> 15388643.24 | AE25: ='Est2018-19TransRev'!AE25 -> 7261467.761 | AF25: ='Est2018-19TransRev'!AF25 -> 25005714.15 | AG25: ='Est2018-19TransRev'!AG25 -> 0 | AH25: ='Est2018-19TransRev'!AH25 -> 8319.177748 | AI25: ='Est2018-19TransRev'!AI25 -> 9672.129721 | AV25: =D25/100*Z25*'Model inputs'!$D$14 -> 0 | AW25: 0 | AX25: 0 | AY25: 0 | AZ25: 389101.8443 | BA25: 143777.0617 | BB25: 377186.1922 | BC25: =K25/100*AG25*'Model inputs'!$D$14 -> 0 | BD25: =L25/100*AH25*'Model inputs'!$D$14 -> 0 | BE25: =M25/100*AI25*'Model inputs'!$D$14 -> 0 | BF25: 0 | BG25: 0 | BH25: 0 | BI25: 0 | BJ25: 0 | BK25: 0 | BL25: 0 | BM25: 0 | BN25: 0 | BO25: 0 | BP25: 0 | BQ25: 910065.0982
AV26: =D26/100*Z26*'Model inputs'!$D$14 -> 0 | AW26: 0 | AX26: 0 | AY26: 0 | AZ26: 0 | BA26: 0 | BB26: 0 | BC26: =K26/100*AG26*'Model inputs'!$D$14 -> 0 | BD26: =L26/100*AH26*'Model inputs'!$D$14 -> 0 | BE26: =M26/100*AI26*'Model inputs'!$D$14 -> 0 | BF26: 0 | BG26: 0 | BH26: 0 | BI26: 0 | BJ26: 0 | BK26: 0 | BL26: 0 | BM26: 0 | BN26: 0 | BO26: 0 | BP26: 0 | BQ26: 0
AV27: =D27/100*Z27*'Model inputs'!$D$14 -> 0 | AW27: 0 | AX27: 0 | AY27: 0 | AZ27: 0 | BA27: 0 | BB27: 0 | BC27: =K27/100*AG27*'Model inputs'!$D$14 -> 0 | BD27: =L27/100*AH27*'Model inputs'!$D$14 -> 0 | BE27: =M27/100*AI27*'Model inputs'!$D$14 -> 0 | BF27: 0 | BG27: 0 | BH27: 0 | BI27: 0 | BJ27: 0 | BK27: 0 | BL27: 0 | BM27: 0 | BN27: 0 | BO27: 0 | BP27: 0 | BQ27: 0
AV28: =D28/100*Z28*'Model inputs'!$D$14 -> 0 | AW28: 0 | AX28: 0 | AY28: 0 | AZ28: 0 | BA28: 0 | BB28: 0 | BC28: =K28/100*AG28*'Model inputs'!$D$14 -> 0 | BD28: =L28/100*AH28*'Model inputs'!$D$14 -> 0 | BE28: =M28/100*AI28*'Model inputs'!$D$14 -> 0 | BF28: 0 | BG28: 0 | BH28: 0 | BI28: 0 | BJ28: 0 | BK28: 0 | BL28: 0 | BM28: 0 | BN28: 0 | BO28: 0 | BP28: 0 | BQ28: 0
AV29: =D29/100*Z29*'Model inputs'!$D$14 -> 0 | AW29: 0 | AX29: 0 | AY29: 0 | AZ29: 0 | BA29: 0 | BB29: 0 | BC29: =K29/100*AG29*'Model inputs'!$D$14 -> 0 | BD29: =L29/100*AH29*'Model inputs'!$D$14 -> 0 | BE29: =M29/100*AI29*'Model inputs'!$D$14 -> 0 | BF29: 0 | BG29: 0 | BH29: 0 | BI29: 0 | BJ29: 0 | BK29: 0 | BL29: 0 | BM29: 0 | BN29: 0 | BO29: 0 | BP29: 0 | BQ29: 0
AV30: =D30/100*Z30*'Model inputs'!$D$14 -> 0 | AW30: 0 | AX30: 0 | AY30: 0 | AZ30: 0 | BA30: 0 | BB30: 0 | BC30: =K30/100*AG30*'Model inputs'!$D$14 -> 0 | BD30: =L30/100*AH30*'Model inputs'!$D$14 -> 0 | BE30: =M30/100*AI30*'Model inputs'!$D$14 -> 0 | BF30: 0 | BG30: 0 | BH30: 0 | BI30: 0 | BJ30: 0 | BK30: 0 | BL30: 0 | BM30: 0 | BN30: 0 | BO30: 0 | BP30: 0 | BQ30: 0
AV31: =D31/100*Z31*'Model inputs'!$D$14 -> 0 | AW31: 0 | AX31: 0 | AY31: 0 | AZ31: 0 | BA31: 0 | BB31: 0 | BC31: =K31/100*AG31*'Model inputs'!$D$14 -> 0 | BD31: =L31/100*AH31*'Model inputs'!$D$14 -> 0 | BE31: =M31/100*AI31*'Model inputs'!$D$14 -> 0 | BF31: 0 | BG31: 0 | BH31: 0 | BI31: 0 | BJ31: 0 | BK31: 0 | BL31: 0 | BM31: 0 | BN31: 0 | BO31: 0 | BP31: 0 | BQ31: 0
AV32: =D32/100*Z32*'Model inputs'!$D$14 -> 0 | AW32: 0 | AX32: 0 | AY32: 0 | AZ32: 0 | BA32: 0 | BB32: 0 | BC32: =K32/100*AG32*'Model inputs'!$D$14 -> 0 | BD32: =L32/100*AH32*'Model inputs'!$D$14 -> 0 | BE32: =M32/100*AI32*'Model inputs'!$D$14 -> 0 | BF32: 0 | BG32: 0 | BH32: 0 | BI32: 0 | BJ32: 0 | BK32: 0 | BL32: 0 | BM32: 0 | BN32: 0 | BO32: 0 | BP32: 0 | BQ32: 0
AV33: =D33/100*Z33*'Model inputs'!$D$14 -> 0 | AW33: 0 | AX33: 0 | AY33: 0 | AZ33: 0 | BA33: 0 | BB33: 0 | BC33: =K33/100*AG33*'Model inputs'!$D$14 -> 0 | BD33: =L33/100*AH33*'Model inputs'!$D$14 -> 0 | BE33: =M33/100*AI33*'Model inputs'!$D$14 -> 0 | BF33: 0 | BG33: 0 | BH33: 0 | BI33: 0 | BJ33: 0 | BK33: 0 | BL33: 0 | BM33: 0 | BN33: 0 | BO33: 0 | BP33: 0 | BQ33: 0
AV34: =D34/100*Z34*'Model inputs'!$D$14 -> 0 | AW34: 0 | AX34: 0 | AY34: 0 | AZ34: 0 | BA34: 0 | BB34: 0 | BC34: =K34/100*AG34*'Model inputs'!$D$14 -> 0 | BD34: =L34/100*AH34*'Model inputs'!$D$14 -> 0 | BE34: =M34/100*AI34*'Model inputs'!$D$14 -> 0 | BF34: 0 | BG34: 0 | BH34: 0 | BI34: 0 | BJ34: 0 | BK34: 0 | BL34: 0 | BM34: 0 | BN34: 0 | BO34: 0 | BP34: 0 | BQ34: 0
AV35: =D35/100*Z35*'Model inputs'!$D$14 -> 0 | AW35: 0 | AX35: 0 | AY35: 0 | AZ35: 0 | BA35: 0 | BB35: 0 | BC35: =K35/100*AG35*'Model inputs'!$D$14 -> 0 | BD35: =L35/100*AH35*'Model inputs'!$D$14 -> 0 | BE35: =M35/100*AI35*'Model inputs'!$D$14 -> 0 | BF35: 0 | BG35: 0 | BH35: 0 | BI35: 0 | BJ35: 0 | BK35: 0 | BL35: 0 | BM35: 0 | BN35: 0 | BO35: 0 | BP35: 0 | BQ35: 0
AV36: =D36/100*Z36*'Model inputs'!$D$14 -> 0 | AW36: 0 | AX36: 0 | AY36: 0 | AZ36: 0 | BA36: 0 | BB36: 0 | BC36: =K36/100*AG36*'Model inputs'!$D$14 -> 0 | BD36: =L36/100*AH36*'Model inputs'!$D$14 -> 0 | BE36: =M36/100*AI36*'Model inputs'!$D$14 -> 0 | BF36: 0 | BG36: 0 | BH36: 0 | BI36: 0 | BJ36: 0 | BK36: 0 | BL36: 0 | BM36: 0 | BN36: 0 | BO36: 0 | BP36: 0 | BQ36: 0
AV37: =D37/100*Z37*'Model inputs'!$D$14 -> 0 | AW37: 0 | AX37: 0 | AY37: 0 | AZ37: 0 | BA37: 0 | BB37: 0 | BC37: =K37/100*AG37*'Model inputs'!$D$14 -> 0 | BD37: =L37/100*AH37*'Model inputs'!$D$14 -> 0 | BE37: =M37/100*AI37*'Model inputs'!$D$14 -> 0 | BF37: 0 | BG37: 0 | BH37: 0 | BI37: 0 | BJ37: 0 | BK37: 0 | BL37: 0 | BM37: 0 | BN37: 0 | BO37: 0 | BP37: 0 | BQ37: 0
AV38: =D38/100*Z38*'Model inputs'!$D$14 -> 0 | AW38: 0 | AX38: 0 | AY38: 0 | AZ38: 0 | BA38: 0 | BB38: 0 | BC38: =K38/100*AG38*'Model inputs'!$D$14 -> 0 | BD38: =L38/100*AH38*'Model inputs'!$D$14 -> 0 | BE38: =M38/100*AI38*'Model inputs'!$D$14 -> 0 | BF38: 0 | BG38: 0 | BH38: 0 | BI38: 0 | BJ38: 0 | BK38: 0 | BL38: 0 | BM38: 0 | BN38: 0 | BO38: 0 | BP38: 0 | BQ38: 0
AV39: =D39/100*Z39*'Model inputs'!$D$14 -> 0 | AW39: 0 | AX39: 0 | AY39: 0 | AZ39: 0 | BA39: 0 | BB39: 0 | BC39: =K39/100*AG39*'Model inputs'!$D$14 -> 0 | BD39: =L39/100*AH39*'Model inputs'!$D$14 -> 0 | BE39: =M39/100*AI39*'Model inputs'!$D$14 -> 0 | BF39: 0 | BG39: 0 | BH39: 0 | BI39: 0 | BJ39: 0 | BK39: 0 | BL39: 0 | BM39: 0 | BN39: 0 | BO39: 0 | BP39: 0 | BQ39: 0
AV40: =D40/100*Z40*'Model inputs'!$D$14 -> 0 | AW40: 0 | AX40: 0 | AY40: 0 | AZ40: 0 | BA40: 0 | BB40: 0 | BC40: =K40/100*AG40*'Model inputs'!$D$14 -> 0 | BD40: =L40/100*AH40*'Model inputs'!$D$14 -> 0 | BE40: =M40/100*AI40*'Model inputs'!$D$14 -> 0 | BF40: 0 | BG40: 0 | BH40: 0 | BI40: 0 | BJ40: 0 | BK40: 0 | BL40: 0 | BM40: 0 | BN40: 0 | BO40: 0 | BP40: 0 | BQ40: 0
AV41: =D41/100*Z41*'Model inputs'!$D$14 -> 0 | AW41: 0 | AX41: 0 | AY41: 0 | AZ41: 0 | BA41: 0 | BB41: 0 | BC41: =K41/100*AG41*'Model inputs'!$D$14 -> 0 | BD41: =L41/100*AH41*'Model inputs'!$D$14 -> 0 | BE41: =M41/100*AI41*'Model inputs'!$D$14 -> 0 | BF41: 0 | BG41: 0 | BH41: 0 | BI41: 0 | BJ41: 0 | BK41: 0 | BL41: 0 | BM41: 0 | BN41: 0 | BO41: 0 | BP41: 0 | BQ41: 0
AV42: =D42/100*Z42*'Model inputs'!$D$14 -> 0 | AW42: 0 | AX42: 0 | AY42: 0 | AZ42: 0 | BA42: 0 | BB42: 0 | BC42: =K42/100*AG42*'Model inputs'!$D$14 -> 0 | BD42: =L42/100*AH42*'Model inputs'!$D$14 -> 0 | BE42: =M42/100*AI42*'Model inputs'!$D$14 -> 0 | BF42: 0 | BG42: 0 | BH42: 0 | BI42: 0 | BJ42: 0 | BK42: 0 | BL42: 0 | BM42: 0 | BN42: 0 | BO42: 0 | BP42: 0 | BQ42: 0
AV43: =D43/100*Z43*'Model inputs'!$D$14 -> 0 | AW43: 0 | AX43: 0 | AY43: 0 | AZ43: 0 | BA43: 0 | BB43: 0 | BC43: =K43/100*AG43*'Model inputs'!$D$14 -> 0 | BD43: =L43/100*AH43*'Model inputs'!$D$14 -> 0 | BE43: =M43/100*AI43*'Model inputs'!$D$14 -> 0 | BF43: 0 | BG43: 0 | BH43: 0 | BI43: 0 | BJ43: 0 | BK43: 0 | BL43: 0 | BM43: 0 | BN43: 0 | BO43: 0 | BP43: 0 | BQ43: 0
AV44: =D44/100*Z44*'Model inputs'!$D$14 -> 0 | AW44: 0 | AX44: 0 | AY44: 0 | AZ44: 0 | BA44: 0 | BB44: 0 | BC44: =K44/100*AG44*'Model inputs'!$D$14 -> 0 | BD44: =L44/100*AH44*'Model inputs'!$D$14 -> 0 | BE44: =M44/100*AI44*'Model inputs'!$D$14 -> 0 | BF44: 0 | BG44: 0 | BH44: 0 | BI44: 0 | BJ44: 0 | BK44: 0 | BL44: 0 | BM44: 0 | BN44: 0 | BO44: 0 | BP44: 0 | BQ44: 0
AV45: =D45/100*Z45*'Model inputs'!$D$14 -> 0 | AW45: 0 | AX45: 0 | AY45: 0 | AZ45: 0 | BA45: 0 | BB45: 0 | BC45: =K45/100*AG45*'Model inputs'!$D$14 -> 0 | BD45: =L45/100*AH45*'Model inputs'!$D$14 -> 0 | BE45: =M45/100*AI45*'Model inputs'!$D$14 -> 0 | BF45: 0 | BG45: 0 | BH45: 0 | BI45: 0 | BJ45: 0 | BK45: 0 | BL45: 0 | BM45: 0 | BN45: 0 | BO45: 0 | BP45: 0 | BQ45: 0
AV46: =D46/100*Z46*'Model inputs'!$D$14 -> 0 | AW46: 0 | AX46: 0 | AY46: 0 | AZ46: 0 | BA46: 0 | BB46: 0 | BC46: =K46/100*AG46*'Model inputs'!$D$14 -> 0 | BD46: =L46/100*AH46*'Model inputs'!$D$14 -> 0 | BE46: =M46/100*AI46*'Model inputs'!$D$14 -> 0 | BF46: 0 | BG46: 0 | BH46: 0 | BI46: 0 | BJ46: 0 | BK46: 0 | BL46: 0 | BM46: 0 | BN46: 0 | BO46: 0 | BP46: 0 | BQ46: 0
AV47: =D47/100*Z47*'Model inputs'!$D$14 -> 0 | AW47: 0 | AX47: 0 | AY47: 0 | AZ47: 0 | BA47: 0 | BB47: 0 | BC47: =K47/100*AG47*'Model inputs'!$D$14 -> 0 | BD47: =L47/100*AH47*'Model inputs'!$D$14 -> 0 | BE47: =M47/100*AI47*'Model inputs'!$D$14 -> 0 | BF47: 0 | BG47: 0 | BH47: 0 | BI47: 0 | BJ47: 0 | BK47: 0 | BL47: 0 | BM47: 0 | BN47: 0 | BO47: 0 | BP47: 0 | BQ47: 0
AV48: =D48/100*Z48*'Model inputs'!$D$14 -> 0 | AW48: 0 | AX48: 0 | AY48: 0 | AZ48: 0 | BA48: 0 | BB48: 0 | BC48: =K48/100*AG48*'Model inputs'!$D$14 -> 0 | BD48: =L48/100*AH48*'Model inputs'!$D$14 -> 0 | BE48: =M48/100*AI48*'Model inputs'!$D$14 -> 0 | BF48: 0 | BG48: 0 | BH48: 0 | BI48: 0 | BJ48: 0 | BK48: 0 | BL48: 0 | BM48: 0 | BN48: 0 | BO48: 0 | BP48: 0 | BQ48: 0
AV49: =D49/100*Z49*'Model inputs'!$D$14 -> 0 | AW49: 0 | AX49: 0 | AY49: 0 | AZ49: 0 | BA49: 0 | BB49: 0 | BC49: =K49/100*AG49*'Model inputs'!$D$14 -> 0 | BD49: =L49/100*AH49*'Model inputs'!$D$14 -> 0 | BE49: =M49/100*AI49*'Model inputs'!$D$14 -> 0 | BF49: 0 | BG49: 0 | BH49: 0 | BI49: 0 | BJ49: 0 | BK49: 0 | BL49: 0 | BM49: 0 | BN49: 0 | BO49: 0 | BP49: 0 | BQ49: 0
AV50: =D50/100*Z50*'Model inputs'!$D$14 -> 0 | AW50: 0 | AX50: 0 | AY50: 0 | AZ50: 0 | BA50: 0 | BB50: 0 | BC50: =K50/100*AG50*'Model inputs'!$D$14 -> 0 | BD50: =L50/100*AH50*'Model inputs'!$D$14 -> 0 | BE50: =M50/100*AI50*'Model inputs'!$D$14 -> 0 | BF50: 0 | BG50: 0 | BH50: 0 | BI50: 0 | BJ50: 0 | BK50: 0 | BL50: 0 | BM50: 0 | BN50: 0 | BO50: 0 | BP50: 0 | BQ50: 0
AV51: =D51/100*Z51*'Model inputs'!$D$14 -> 0 | AW51: 0 | AX51: 0 | AY51: 0 | AZ51: 0 | BA51: 0 | BB51: 0 | BC51: =K51/100*AG51*'Model inputs'!$D$14 -> 0 | BD51: =L51/100*AH51*'Model inputs'!$D$14 -> 0 | BE51: =M51/100*AI51*'Model inputs'!$D$14 -> 0 | BF51: 0 | BG51: 0 | BH51: 0 | BI51: 0 | BJ51: 0 | BK51: 0 | BL51: 0 | BM51: 0 | BN51: 0 | BO51: 0 | BP51: 0 | BQ51: 0
AV52: =D52/100*Z52*'Model inputs'!$D$14 -> 0 | AW52: 0 | AX52: 0 | AY52: 0 | AZ52: 0 | BA52: 0 | BB52: 0 | BC52: =K52/100*AG52*'Model inputs'!$D$14 -> 0 | BD52: =L52/100*AH52*'Model inputs'!$D$14 -> 0 | BE52: =M52/100*AI52*'Model inputs'!$D$14 -> 0 | BF52: 0 | BG52: 0 | BH52: 0 | BI52: 0 | BJ52: 0 | BK52: 0 | BL52: 0 | BM52: 0 | BN52: 0 | BO52: 0 | BP52: 0 | BQ52: 0
AV53: =D53/100*Z53*'Model inputs'!$D$14 -> 0 | AW53: 0 | AX53: 0 | AY53: 0 | AZ53: 0 | BA53: 0 | BB53: 0 | BC53: =K53/100*AG53*'Model inputs'!$D$14 -> 0 | BD53: =L53/100*AH53*'Model inputs'!$D$14 -> 0 | BE53: =M53/100*AI53*'Model inputs'!$D$14 -> 0 | BF53: 0 | BG53: 0 | BH53: 0 | BI53: 0 | BJ53: 0 | BK53: 0 | BL53: 0 | BM53: 0 | BN53: 0 | BO53: 0 | BP53: 0 | BQ53: 0
AV54: =D54/100*Z54*'Model inputs'!$D$14 -> 0 | AW54: 0 | AX54: 0 | AY54: 0 | AZ54: 0 | BA54: 0 | BB54: 0 | BC54: =K54/100*AG54*'Model inputs'!$D$14 -> 0 | BD54: =L54/100*AH54*'Model inputs'!$D$14 -> 0 | BE54: =M54/100*AI54*'Model inputs'!$D$14 -> 0 | BF54: 0 | BG54: 0 | BH54: 0 | BI54: 0 | BJ54: 0 | BK54: 0 | BL54: 0 | BM54: 0 | BN54: 0 | BO54: 0 | BP54: 0 | BQ54: 0
AV55: =D55/100*Z55*'Model inputs'!$D$14 -> 0 | AW55: 0 | AX55: 0 | AY55: 0 | AZ55: 0 | BA55: 0 | BB55: 0 | BC55: =K55/100*AG55*'Model inputs'!$D$14 -> 0 | BD55: =L55/100*AH55*'Model inputs'!$D$14 -> 0 | BE55: =M55/100*AI55*'Model inputs'!$D$14 -> 0 | BF55: 0 | BG55: 0 | BH55: 0 | BI55: 0 | BJ55: 0 | BK55: 0 | BL55: 0 | BM55: 0 | BN55: 0 | BO55: 0 | BP55: 0 | BQ55: 0
AV56: =D56/100*Z56*'Model inputs'!$D$14 -> 0 | AW56: 0 | AX56: 0 | AY56: 0 | AZ56: 0 | BA56: 0 | BB56: 0 | BC56: =K56/100*AG56*'Model inputs'!$D$14 -> 0 | BD56: =L56/100*AH56*'Model inputs'!$D$14 -> 0 | BE56: =M56/100*AI56*'Model inputs'!$D$14 -> 0 | BF56: 0 | BG56: 0 | BH56: 0 | BI56: 0 | BJ56: 0 | BK56: 0 | BL56: 0 | BM56: 0 | BN56: 0 | BO56: 0 | BP56: 0 | BQ56: 0
AV57: =D57/100*Z57*'Model inputs'!$D$14 -> 0 | AW57: 0 | AX57: 0 | AY57: 0 | AZ57: 0 | BA57: 0 | BB57: 0 | BC57: =K57/100*AG57*'Model inputs'!$D$14 -> 0 | BD57: =L57/100*AH57*'Model inputs'!$D$14 -> 0 | BE57: =M57/100*AI57*'Model inputs'!$D$14 -> 0 | BF57: 0 | BG57: 0 | BH57: 0 | BI57: 0 | BJ57: 0 | BK57: 0 | BL57: 0 | BM57: 0 | BN57: 0 | BO57: 0 | BP57: 0 | BQ57: 0
AV58: =D58/100*Z58*'Model inputs'!$D$14 -> 0 | AW58: 0 | AX58: 0 | AY58: 0 | AZ58: 0 | BA58: 0 | BB58: 0 | BC58: =K58/100*AG58*'Model inputs'!$D$14 -> 0 | BD58: =L58/100*AH58*'Model inputs'!$D$14 -> 0 | BE58: =M58/100*AI58*'Model inputs'!$D$14 -> 0 | BF58: 0 | BG58: 0 | BH58: 0 | BI58: 0 | BJ58: 0 | BK58: 0 | BL58: 0 | BM58: 0 | BN58: 0 | BO58: 0 | BP58: 0 | BQ58: 0
AV59: =D59/100*Z59*'Model inputs'!$D$14 -> 0 | AW59: 0 | AX59: 0 | AY59: 0 | AZ59: 0 | BA59: 0 | BB59: 0 | BC59: =K59/100*AG59*'Model inputs'!$D$14 -> 0 | BD59: =L59/100*AH59*'Model inputs'!$D$14 -> 0 | BE59: =M59/100*AI59*'Model inputs'!$D$14 -> 0 | BF59: 0 | BG59: 0 | BH59: 0 | BI59: 0 | BJ59: 0 | BK59: 0 | BL59: 0 | BM59: 0 | BN59: 0 | BO59: 0 | BP59: 0 | BQ59: 0
AV60: =D60/100*Z60*'Model inputs'!$D$14 -> 0 | AW60: 0 | AX60: 0 | AY60: 0 | AZ60: 0 | BA60: 0 | BB60: 0 | BC60: =K60/100*AG60*'Model inputs'!$D$14 -> 0 | BD60: =L60/100*AH60*'Model inputs'!$D$14 -> 0 | BE60: =M60/100*AI60*'Model inputs'!$D$14 -> 0 | BF60: 0 | BG60: 0 | BH60: 0 | BI60: 0 | BJ60: 0 | BK60: 0 | BL60: 0 | BM60: 0 | BN60: 0 | BO60: 0 | BP60: 0 | BQ60: 0
AV61: =D61/100*Z61*'Model inputs'!$D$14 -> 0 | AW61: 0 | AX61: 0 | AY61: 0 | AZ61: 0 | BA61: 0 | BB61: 0 | BC61: =K61/100*AG61*'Model inputs'!$D$14 -> 0 | BD61: =L61/100*AH61*'Model inputs'!$D$14 -> 0 | BE61: =M61/100*AI61*'Model inputs'!$D$14 -> 0 | BF61: 0 | BG61: 0 | BH61: 0 | BI61: 0 | BJ61: 0 | BK61: 0 | BL61: 0 | BM61: 0 | BN61: 0 | BO61: 0 | BP61: 0 | BQ61: 0
AV62: =D62/100*Z62*'Model inputs'!$D$14 -> 0 | AW62: 0 | AX62: 0 | AY62: 0 | AZ62: 0 | BA62: 0 | BB62: 0 | BC62: =K62/100*AG62*'Model inputs'!$D$14 -> 0 | BD62: =L62/100*AH62*'Model inputs'!$D$14 -> 0 | BE62: =M62/100*AI62*'Model inputs'!$D$14 -> 0 | BF62: 0 | BG62: 0 | BH62: 0 | BI62: 0 | BJ62: 0 | BK62: 0 | BL62: 0 | BM62: 0 | BN62: 0 | BO62: 0 | BP62: 0 | BQ62: 0
AV63: =D63/100*Z63*'Model inputs'!$D$14 -> 0 | AW63: 0 | AX63: 0 | AY63: 0 | AZ63: 0 | BA63: 0 | BB63: 0 | BC63: =K63/100*AG63*'Model inputs'!$D$14 -> 0 | BD63: =L63/100*AH63*'Model inputs'!$D$14 -> 0 | BE63: =M63/100*AI63*'Model inputs'!$D$14 -> 0 | BF63: 0 | BG63: 0 | BH63: 0 | BI63: 0 | BJ63: 0 | BK63: 0 | BL63: 0 | BM63: 0 | BN63: 0 | BO63: 0 | BP63: 0 | BQ63: 0
AV64: =D64/100*Z64*'Model inputs'!$D$14 -> 0 | AW64: 0 | AX64: 0 | AY64: 0 | AZ64: 0 | BA64: 0 | BB64: 0 | BC64: =K64/100*AG64*'Model inputs'!$D$14 -> 0 | BD64: =L64/100*AH64*'Model inputs'!$D$14 -> 0 | BE64: =M64/100*AI64*'Model inputs'!$D$14 -> 0 | BF64: 0 | BG64: 0 | BH64: 0 | BI64: 0 | BJ64: 0 | BK64: 0 | BL64: 0 | BM64: 0 | BN64: 0 | BO64: 0 | BP64: 0 | BQ64: 0
AV65: =D65/100*Z65*'Model inputs'!$D$14 -> 0 | AW65: 0 | AX65: 0 | AY65: 0 | AZ65: 0 | BA65: 0 | BB65: 0 | BC65: =K65/100*AG65*'Model inputs'!$D$14 -> 0 | BD65: =L65/100*AH65*'Model inputs'!$D$14 -> 0 | BE65: =M65/100*AI65*'Model inputs'!$D$14 -> 0 | BF65: 0 | BG65: 0 | BH65: 0 | BI65: 0 | BJ65: 0 | BK65: 0 | BL65: 0 | BM65: 0 | BN65: 0 | BO65: 0 | BP65: 0 | BQ65: 0
Z66: =SUM(Z6:Z65) -> 200545.3263 | AA66: 991509345.9 | AB66: 286851702.2 | AC66: 15598542.52 | AD66: 561397413.3 | AE66: 280893834.9 | AF66: 760657091.6 | AG66: 70759.87652 | AH66: 245426.014 | AI66: 91391.34375 | AJ66: 0 | AK66: 0 | AL66: 0 | AM66: 0 | AN66: 0 | AO66: 0 | AP66: 0 | AQ66: 0 | AR66: 0 | AS66: 0 | AT66: 0 | AV66: =SUM(AV6:AV65) -> 0 | AW66: 20017575.12 | AX66: 5795551.791 | AY66: 315152.953 | AZ66: 14383542.4 | BA66: 5653118.839 | BB66: 11568029.12 | BC66: 0 | BD66: 0 | BE66: 0 | BF66: 0 | BG66: 0 | BH66: 0 | BI66: 0 | BJ66: 0 | BK66: 0 | BL66: 0 | BM66: 0 | BN66: 0 | BO66: 0 | BP66: 0 | BQ66: 57732970.23

Sheet 2019JSRevCont
B2: ="Tariff Approval - "&'Model inputs'!C3 -> Tariff Approval - Evoenergy
B4: Jurisdictional Scheme Amounts (JSA)
B6: Year (t) | C6: ='Model inputs'!C4 -> 2019/20
B8: Table 1- Compliance with JSA Revenue Formula
B9: Revenue from Jurisdictional Scheme Amounts charges for year t | C9: ='Prop2019-20JSTar'!BQ66 -> 81637339.83
B10: Total JSA related payments for year t | C10: =C18 -> 81651169.48
C11: =IF(C9="","",IF(C10>=C9,"JSA REVENUE FORMULA COMPLIANT","JSA REVENUE FORMULA BREACHED")) -> JSA REVENUE FORMULA COMPLIANT
B13: Table 2 - Total JSA related payments for year t
B14: Feed-in Tariffs | C14: =C23 -> 67523401.51
B15: UNFT | C15: ='Model inputs'!E35 -> 8770105.441
B16: Energy Industry levy | C16: ='Model inputs'!E36 -> 1500000
B17: JSA revenue under/over recovery approved | C17: =-E68*(1+E66)^0.5 -> 3857662.53
B18: Total JSA related payments for year t | C18: =SUM(C14:C17) -> 81651169.48
B20: Table 3 - Feed-in Tariffs charges for year t
B21: Feed-in Tariffs (small & medium scale) | C21: ='Model inputs'!E32 -> 15494500.49
B22: Feed-in Tariffs (large scale) Allowable cost determination | C22: ='Model inputs'!E38 -> 52028901.02
B23: Feed-in Tariffs total | C23: =SUM(C21:C22) -> 67523401.51
B28: Table 4 - JSA Recovery Arrangements Small & Medium FiT
C29: Year t-2 | D29: Year t-1 | E29: Year t
C30: (actual) | D30: (estimate) | E30: (forecast)
C31: ='Model inputs'!C6 -> 2017/18 | D31: ='Model inputs'!C5 -> 2018/19 | E31: =C$6 -> 2019/20
B33: (A) Revenue from JSA proposal charges | C33: 26741733.92 | D33: 25855140.81 | E33: =C9-E50 -> 29608438.81
B36: (B) Less Total JSA related payments = | C36: =SUM(C37:C39) -> 25829317.71 | D36: =SUM(D37:D39) -> 24481640.42 | E36: 25764605.93
B37: +FiT small & medium scale | C37: 16551186.68 | D37: 14983299.65 | E37: =C21 -> 15494500.49
B38: +UNFT | C38: 7721812.33 | D38: 8215594.526 | E38: =C15 -> 8770105.441
B39: +Energy Industry Levy | C39: 1556318.7 | D39: 1282746.243 | E39: =C16 -> 1500000
B42: (A minus B) Under/over recovery of revenue for regulatory year | C42: =C33-C36 -> 912416.21 | D42: =D33-D36 -> 1373500.388 | E42: =E33-E36 -> 3843832.88
B45: Table 5 - JSA Recovery Arrangements Large FiT
C46: Year t-2 | D46: Year t-1 | E46: Year t
C47: (actual) | D47: (estimate) | E47: (forecast)
C48: =C31 -> 2017/18 | D48: =D31 -> 2018/19 | E48: =C$6 -> 2019/20
B50: (A) Revenue from JSA proposal charges | C50: 39115000 | D50: 31877829.42 | E50: ='Model inputs'!E38 -> 52028901.02
B53: (B) Less Total JSA related payments = | C53: =C54+C55 -> 14331478.86 | D53: =D54+D55 -> 19392999.7 | E53: 63601515.21
B54: +Large scale | C54: 14208181.04 | D54: 19266002.94 | E54: ='Model inputs'!E33 -> 63601515.21
B55: +Administration | C55: 123297.8249 | D55: 126996.7596 | E55: ='Model inputs'!E37 -> 0
B58: (A minus B) Under/over recovery of revenue for regulatory year | C58: =C50-C53 -> 24783521.14 | D58: =D50-D53 -> 12484829.72 | E58: =E50-E53 -> -11572614.19
B61: Table 6 - JSA Unders and Overs Account Small & Medium
C62: Year t-2 | D62: Year t-1 | E62: Year t
C63: (actual) | D63: (estimate) | E63: (forecast)
C64: =C31 -> 2017/18 | D64: =D31 -> 2018/19 | E64: =C$6 -> 2019/20
B66: Nominal | C66: ='Model inputs'!C13 -> 0.0630847945 | D66: ='Model inputs'!D13 -> 0.06214984081 | E66: ='Model inputs'!E13 -> 0.05530768021
B68: Opening balance | C68: -5464240.29 | D68: =C72 -> -4868194.877 | E68: =D72 -> -3755213.93
B69: Interest on Opening balance | C69: =C68*C66 -> -344710.4758 | D69: =D68*D66 -> -302557.5366 | E69: =E68*E66 -> -207692.1712
B70: Under/over recovery of revenue for regulatory year | C70: =C42 -> 912416.21 | D70: =D42 -> 1373500.388 | E70: =E42 -> 3843832.88
B71: Interest on under/over recovery for regulatory year | C71: =C70*((1+C66)^0.5-1) -> 28339.67885 | D71: =D70*((1+D66)^0.5-1) -> 42038.09492 | E71: =E70*((1+E66)^0.5-1) -> 104866.275
B72: Closing balance of JSA overs/ (unders) account | C72: =SUM(C68:C71) -> -4868194.877 | D72: =SUM(D68:D71) -> -3755213.93 | E72: =SUM(E68:E71) -> -14206.94616
B75: Table 7 - JSA Unders and Overs Large
C76: Year t-2 | D76: Year t-1 | E76: Year t
C77: (actual) | D77: (estimate) | E77: (forecast)
C78: =C31 -> 2017/18 | D78: =D31 -> 2018/19 | E78: =C$6 -> 2019/20
B80: Nominal | C80: =C66 -> 0.0630847945 | D80: =D66 -> 0.06214984081 | E80: 0.05530768021
B82: Opening balance | C82: 8505849.456 | D82: =C86 -> 34595737.37 | E82: =D86 -> 49612804.11
B83: Interest on Opening balance | C83: =C82*C80 -> 536589.765 | D83: =D82*D80 -> 2150119.57 | E83: =E82*E80 -> 2743969.104
B84: Under/over recovery of revenue for regulatory year | C84: =C58 -> 24783521.14 | D84: =D58 -> 12484829.72 | E84: -11572614.19
B85: Interest on under/over recovery for regulatory year | C85: =C84*((1+C80)^0.5-1) -> 769777.0186 | D85: =D84*((1+D80)^0.5-1) -> 382117.4434 | E85: =E84*((1+E80)^0.5-1) -> -315720.5269
B86: Closing balance of JSA overs/ (unders) account | C86: =SUM(C82:C85) -> 34595737.37 | D86: =SUM(D82:D85) -> 49612804.11 | E86: 40468438.5
B88: The DNSP is expected to achieve a closing balance as close to zero as practicable in its jurisdictional scheme amount unders and overs account in each forecast year in its annual pricing proposals in the 2019–24 regulatory control period.

Sheet Prop2019TSSComp
B1: ="Tariff Approval - "&'Model inputs'!C3 -> Tariff Approval - Evoenergy
B3: ="COMPARISON OF "&'Model inputs'!C4&" PROPOSED AND TSS INDICATIVE DISTRIBUTION TARIFFS" -> COMPARISON OF 2019/20 PROPOSED AND TSS INDICATIVE DISTRIBUTION TARIFFS | BR3: Materiality threshold
D4: ="Proposed NUOS Tariffs (Pt) for "&'Model inputs'!C4 -> Proposed NUOS Tariffs (Pt) for 2019/20 | Z4: ="TSS indicative tariffs for "&'Model inputs'!C4 -> TSS indicative tariffs for 2019/20 | AW4: ="Percentage difference between proposed "&'Model inputs'!C4&" tariffs and indicative TSS tariffs" -> Percentage difference between proposed 2019/20 tariffs and indicative TSS tariffs | BR4: 0.1
B5: TSS name | C5: Proposed tariff | D5: ='Prop2019-20DistTar'!D5 -> PropTar Fixed | E5: ='Prop2019-20DistTar'!E5 -> PropTar Anytime | F5: ='Prop2019-20DistTar'!F5 -> PropTar Block: Step 1 | G5: ='Prop2019-20DistTar'!G5 -> PropTar Block: Step 2 | H5: ='Prop2019-20DistTar'!H5 -> PropTar TOU: Peak | I5: ='Prop2019-20DistTar'!I5 -> PropTar TOU: Shoulder | J5: ='Prop2019-20DistTar'!J5 -> PropTar TOU: Off-peak | K5: ='Prop2019-20DistTar'!K5 -> PropTar Dem kW | L5: ='Prop2019-20DistTar'!L5 -> PropTar Dem kVA: peak | M5: ='Prop2019-20DistTar'!M5 -> PropTar Capacity kVA: anytime | Z5: Fixed | AA5: Anytime | AB5: Block: Step 1 | AC5: Block: Step 2 | AD5: TOU: Peak | AE5: TOU: Shoulder | AF5: TOU: Off-peak | AG5: Dem kW | AH5: Dem kVA: peak | AI5: Capacity kVA: anytime | AW5: Fixed | AX5: Anytime | AY5: Block: Step 1 | AZ5: Block: Step 2 | BA5: TOU: Peak | BB5: TOU: Shoulder | BC5: TOU: Off-peak | BD5: Dem kW | BE5: Dem kVA: peak | BF5: Capacity kVA: anytime | BR5: Explanation required?
BR6: =IF(MAX(ABS(AW6:BQ6))>$BR$4,"EXPLAIN","") -> 
C7: ='Prop2019-20DistTar'!B7 -> Residential Basic Network | D7: =SUM('Prop2019-20DistTar'!D7,'Prop2019-20TransTar'!D7,'Prop2019-20JSTar'!D7) -> 27.105 | E7: =SUM('Prop2019-20DistTar'!E7,'Prop2019-20TransTar'!E7,'Prop2019-20JSTar'!E7) -> 7.894 | F7: =SUM('Prop2019-20DistTar'!F7,'Prop2019-20TransTar'!F7,'Prop2019-20JSTar'!F7) -> 0 | G7: =SUM('Prop2019-20DistTar'!G7,'Prop2019-20TransTar'!G7,'Prop2019-20JSTar'!G7) -> 0 | H7: =SUM('Prop2019-20DistTar'!H7,'Prop2019-20TransTar'!H7,'Prop2019-20JSTar'!H7) -> 0 | I7: =SUM('Prop2019-20DistTar'!I7,'Prop2019-20TransTar'!I7,'Prop2019-20JSTar'!I7) -> 0 | J7: =SUM('Prop2019-20DistTar'!J7,'Prop2019-20TransTar'!J7,'Prop2019-20JSTar'!J7) -> 0 | K7: =SUM('Prop2019-20DistTar'!K7,'Prop2019-20TransTar'!K7,'Prop2019-20JSTar'!K7) -> 0 | L7: =SUM('Prop2019-20DistTar'!L7,'Prop2019-20TransTar'!L7,'Prop2019-20JSTar'!L7) -> 0 | M7: =SUM('Prop2019-20DistTar'!M7,'Prop2019-20TransTar'!M7,'Prop2019-20JSTar'!M7) -> 0 | Z7: 27.962 | AA7: 8.082 | AB7: 0 | AC7: 0 | AD7: 0 | AE7: 0 | AF7: 0 | AG7: 0 | AH7: 0 | AI7: 0 | AW7: =IFERROR(D7/Z7-1,0) -> -0.03064873757 | AX7: =IFERROR(E7/AA7-1,0) -> -0.02326156892 | AY7: =IFERROR(F7/AB7-1,0) -> 0 | AZ7: =IFERROR(G7/AC7-1,0) -> 0 | BA7: =IFERROR(H7/AD7-1,0) -> 0 | BB7: =IFERROR(I7/AE7-1,0) -> 0 | BC7: =IFERROR(J7/AF7-1,0) -> 0 | BD7: =IFERROR(K7/AG7-1,0) -> 0 | BE7: =IFERROR(L7/AH7-1,0) -> 0 | BF7: =IFERROR(M7/AI7-1,0) -> 0 | BG7: =IFERROR(N7/AJ7-1,0) -> 0 | BH7: 0 | BI7: 0 | BJ7: 0 | BK7: 0 | BL7: 0 | BM7: =IFERROR(T7/AP7-1,0) -> 0 | BN7: 0 | BO7: 0 | BP7: 0 | BQ7: 0 | BR7: =IF(MAX(ABS(AW7:BQ7))>$BR$4,"EXPLAIN","") -> 
C8: ='Prop2019-20DistTar'!B8 -> Residential TOU Network | D8: =SUM('Prop2019-20DistTar'!D8,'Prop2019-20TransTar'!D8,'Prop2019-20JSTar'!D8) -> 27.105 | E8: =SUM('Prop2019-20DistTar'!E8,'Prop2019-20TransTar'!E8,'Prop2019-20JSTar'!E8) -> 0 | F8: =SUM('Prop2019-20DistTar'!F8,'Prop2019-20TransTar'!F8,'Prop2019-20JSTar'!F8) -> 0 | G8: =SUM('Prop2019-20DistTar'!G8,'Prop2019-20TransTar'!G8,'Prop2019-20JSTar'!G8) -> 0 | H8: =SUM('Prop2019-20DistTar'!H8,'Prop2019-20TransTar'!H8,'Prop2019-20JSTar'!H8) -> 14.131 | I8: =SUM('Prop2019-20DistTar'!I8,'Prop2019-20TransTar'!I8,'Prop2019-20JSTar'!I8) -> 6.438 | J8: =SUM('Prop2019-20DistTar'!J8,'Prop2019-20TransTar'!J8,'Prop2019-20JSTar'!J8) -> 3.154 | K8: =SUM('Prop2019-20DistTar'!K8,'Prop2019-20TransTar'!K8,'Prop2019-20JSTar'!K8) -> 0 | L8: =SUM('Prop2019-20DistTar'!L8,'Prop2019-20TransTar'!L8,'Prop2019-20JSTar'!L8) -> 0 | M8: =SUM('Prop2019-20DistTar'!M8,'Prop2019-20TransTar'!M8,'Prop2019-20JSTar'!M8) -> 0 | Z8: 27.962 | AA8: 0 | AB8: 0 | AC8: 0 | AD8: 14.195 | AE8: 6.696 | AF8: 3.28 | AG8: 0 | AH8: 0 | AI8: 0 | AW8: =IFERROR(D8/Z8-1,0) -> -0.03064873757 | AX8: 0 | AY8: 0 | AZ8: 0 | BA8: -0.004508629799 | BB8: -0.03853046595 | BC8: -0.03841463415 | BD8: 0 | BE8: 0 | BF8: 0 | BG8: 0 | BH8: 0 | BI8: 0 | BJ8: 0 | BK8: 0 | BL8: 0 | BM8: 0 | BN8: 0 | BO8: 0 | BP8: 0 | BQ8: 0 | BR8: =IF(MAX(ABS(AW8:BQ8))>$BR$4,"EXPLAIN","") -> 
C9: ='Prop2019-20DistTar'!B9 -> Residential 5000 Network | D9: =SUM('Prop2019-20DistTar'!D9,'Prop2019-20TransTar'!D9,'Prop2019-20JSTar'!D9) -> 48.989 | E9: =SUM('Prop2019-20DistTar'!E9,'Prop2019-20TransTar'!E9,'Prop2019-20JSTar'!E9) -> 0 | F9: =SUM('Prop2019-20DistTar'!F9,'Prop2019-20TransTar'!F9,'Prop2019-20JSTar'!F9) -> 6.539 | G9: =SUM('Prop2019-20DistTar'!G9,'Prop2019-20TransTar'!G9,'Prop2019-20JSTar'!G9) -> 7.895 | H9: =SUM('Prop2019-20DistTar'!H9,'Prop2019-20TransTar'!H9,'Prop2019-20JSTar'!H9) -> 0 | I9: =SUM('Prop2019-20DistTar'!I9,'Prop2019-20TransTar'!I9,'Prop2019-20JSTar'!I9) -> 0 | J9: =SUM('Prop2019-20DistTar'!J9,'Prop2019-20TransTar'!J9,'Prop2019-20JSTar'!J9) -> 0 | K9: =SUM('Prop2019-20DistTar'!K9,'Prop2019-20TransTar'!K9,'Prop2019-20JSTar'!K9) -> 0 | L9: =SUM('Prop2019-20DistTar'!L9,'Prop2019-20TransTar'!L9,'Prop2019-20JSTar'!L9) -> 0 | M9: =SUM('Prop2019-20DistTar'!M9,'Prop2019-20TransTar'!M9,'Prop2019-20JSTar'!M9) -> 0 | Z9: 50.537 | AA9: 0 | AB9: 6.772 | AC9: 8.082 | AD9: 0 | AE9: 0 | AF9: 0 | AG9: 0 | AH9: 0 | AI9: 0 | AW9: -0.03063102281 | AX9: 0 | AY9: -0.03440637921 | AZ9: -0.02313783717 | BA9: 0 | BB9: 0 | BC9: 0 | BD9: 0 | BE9: 0 | BF9: 0 | BG9: 0 | BH9: 0 | BI9: 0 | BJ9: 0 | BK9: 0 | BL9: 0 | BM9: 0 | BN9: 0 | BO9: 0 | BP9: 0 | BQ9: 0 | BR9: =IF(MAX(ABS(AW9:BQ9))>$BR$4,"EXPLAIN","") -> 
C10: ='Prop2019-20DistTar'!B10 -> Residential with Heat Pump Network | D10: =SUM('Prop2019-20DistTar'!D10,'Prop2019-20TransTar'!D10,'Prop2019-20JSTar'!D10) -> 93.061 | E10: =SUM('Prop2019-20DistTar'!E10,'Prop2019-20TransTar'!E10,'Prop2019-20JSTar'!E10) -> 0 | F10: =SUM('Prop2019-20DistTar'!F10,'Prop2019-20TransTar'!F10,'Prop2019-20JSTar'!F10) -> 4.997 | G10: =SUM('Prop2019-20DistTar'!G10,'Prop2019-20TransTar'!G10,'Prop2019-20JSTar'!G10) -> 7.894 | H10: =SUM('Prop2019-20DistTar'!H10,'Prop2019-20TransTar'!H10,'Prop2019-20JSTar'!H10) -> 0 | I10: =SUM('Prop2019-20DistTar'!I10,'Prop2019-20TransTar'!I10,'Prop2019-20JSTar'!I10) -> 0 | J10: =SUM('Prop2019-20DistTar'!J10,'Prop2019-20TransTar'!J10,'Prop2019-20JSTar'!J10) -> 0 | K10: =SUM('Prop2019-20DistTar'!K10,'Prop2019-20TransTar'!K10,'Prop2019-20JSTar'!K10) -> 0 | L10: =SUM('Prop2019-20DistTar'!L10,'Prop2019-20TransTar'!L10,'Prop2019-20JSTar'!L10) -> 0 | M10: =SUM('Prop2019-20DistTar'!M10,'Prop2019-20TransTar'!M10,'Prop2019-20JSTar'!M10) -> 0 | Z10: 96.004 | AA10: 0 | AB10: 5.337 | AC10: 8.082 | AD10: 0 | AE10: 0 | AF10: 0 | AG10: 0 | AH10: 0 | AI10: 0 | AW10: -0.03065497271 | AX10: 0 | AY10: -0.06370620199 | AZ10: -0.02326156892 | BA10: 0 | BB10: 0 | BC10: 0 | BD10: 0 | BE10: 0 | BF10: 0 | BG10: 0 | BH10: 0 | BI10: 0 | BJ10: 0 | BK10: 0 | BL10: 0 | BM10: 0 | BN10: 0 | BO10: 0 | BP10: 0 | BQ10: 0 | BR10: =IF(MAX(ABS(AW10:BQ10))>$BR$4,"EXPLAIN","") -> 
C11: ='Prop2019-20DistTar'!B11 -> Off-Peak (1) Night Network | D11: =SUM('Prop2019-20DistTar'!D11,'Prop2019-20TransTar'!D11,'Prop2019-20JSTar'!D11) -> 0 | E11: =SUM('Prop2019-20DistTar'!E11,'Prop2019-20TransTar'!E11,'Prop2019-20JSTar'!E11) -> 0 | F11: =SUM('Prop2019-20DistTar'!F11,'Prop2019-20TransTar'!F11,'Prop2019-20JSTar'!F11) -> 0 | G11: =SUM('Prop2019-20DistTar'!G11,'Prop2019-20TransTar'!G11,'Prop2019-20JSTar'!G11) -> 0 | H11: =SUM('Prop2019-20DistTar'!H11,'Prop2019-20TransTar'!H11,'Prop2019-20JSTar'!H11) -> 0 | I11: =SUM('Prop2019-20DistTar'!I11,'Prop2019-20TransTar'!I11,'Prop2019-20JSTar'!I11) -> 0 | J11: =SUM('Prop2019-20DistTar'!J11,'Prop2019-20TransTar'!J11,'Prop2019-20JSTar'!J11) -> 2.17 | K11: =SUM('Prop2019-20DistTar'!K11,'Prop2019-20TransTar'!K11,'Prop2019-20JSTar'!K11) -> 0 | L11: =SUM('Prop2019-20DistTar'!L11,'Prop2019-20TransTar'!L11,'Prop2019-20JSTar'!L11) -> 0 | M11: =SUM('Prop2019-20DistTar'!M11,'Prop2019-20TransTar'!M11,'Prop2019-20JSTar'!M11) -> 0 | Z11: 0 | AA11: 0 | AB11: 0 | AC11: 0 | AD11: 0 | AE11: 0 | AF11: 2.483 | AG11: 0 | AH11: 0 | AI11: 0 | AW11: 0 | AX11: 0 | AY11: 0 | AZ11: 0 | BA11: 0 | BB11: 0 | BC11: -0.1260571889 | BD11: 0 | BE11: 0 | BF11: 0 | BG11: 0 | BH11: 0 | BI11: 0 | BJ11: 0 | BK11: 0 | BL11: 0 | BM11: 0 | BN11: 0 | BO11: 0 | BP11: 0 | BQ11: 0 | BR11: =IF(MAX(ABS(AW11:BQ11))>$BR$4,"EXPLAIN","") -> EXPLAIN
C12: ='Prop2019-20DistTar'!B12 -> Off-Peak (3) Day & Night Network | D12: =SUM('Prop2019-20DistTar'!D12,'Prop2019-20TransTar'!D12,'Prop2019-20JSTar'!D12) -> 0 | E12: =SUM('Prop2019-20DistTar'!E12,'Prop2019-20TransTar'!E12,'Prop2019-20JSTar'!E12) -> 0 | F12: =SUM('Prop2019-20DistTar'!F12,'Prop2019-20TransTar'!F12,'Prop2019-20JSTar'!F12) -> 0 | G12: =SUM('Prop2019-20DistTar'!G12,'Prop2019-20TransTar'!G12,'Prop2019-20JSTar'!G12) -> 0 | H12: =SUM('Prop2019-20DistTar'!H12,'Prop2019-20TransTar'!H12,'Prop2019-20JSTar'!H12) -> 0 | I12: =SUM('Prop2019-20DistTar'!I12,'Prop2019-20TransTar'!I12,'Prop2019-20JSTar'!I12) -> 0 | J12: =SUM('Prop2019-20DistTar'!J12,'Prop2019-20TransTar'!J12,'Prop2019-20JSTar'!J12) -> 3.336 | K12: =SUM('Prop2019-20DistTar'!K12,'Prop2019-20TransTar'!K12,'Prop2019-20JSTar'!K12) -> 0 | L12: =SUM('Prop2019-20DistTar'!L12,'Prop2019-20TransTar'!L12,'Prop2019-20JSTar'!L12) -> 0 | M12: =SUM('Prop2019-20DistTar'!M12,'Prop2019-20TransTar'!M12,'Prop2019-20JSTar'!M12) -> 0 | Z12: 0 | AA12: 0 | AB12: 0 | AC12: 0 | AD12: 0 | AE12: 0 | AF12: 3.807 | AG12: 0 | AH12: 0 | AI12: 0 | AW12: 0 | AX12: 0 | AY12: 0 | AZ12: 0 | BA12: 0 | BB12: 0 | BC12: -0.1237194641 | BD12: 0 | BE12: 0 | BF12: 0 | BG12: 0 | BH12: 0 | BI12: 0 | BJ12: 0 | BK12: 0 | BL12: 0 | BM12: 0 | BN12: 0 | BO12: 0 | BP12: 0 | BQ12: 0 | BR12: =IF(MAX(ABS(AW12:BQ12))>$BR$4,"EXPLAIN","") -> EXPLAIN
C13: ='Prop2019-20DistTar'!B13 -> Residential Demand Network | D13: =SUM('Prop2019-20DistTar'!D13,'Prop2019-20TransTar'!D13,'Prop2019-20JSTar'!D13) -> 27.104 | E13: =SUM('Prop2019-20DistTar'!E13,'Prop2019-20TransTar'!E13,'Prop2019-20JSTar'!E13) -> 3.155 | F13: =SUM('Prop2019-20DistTar'!F13,'Prop2019-20TransTar'!F13,'Prop2019-20JSTar'!F13) -> 0 | G13: =SUM('Prop2019-20DistTar'!G13,'Prop2019-20TransTar'!G13,'Prop2019-20JSTar'!G13) -> 0 | H13: =SUM('Prop2019-20DistTar'!H13,'Prop2019-20TransTar'!H13,'Prop2019-20JSTar'!H13) -> 0 | I13: =SUM('Prop2019-20DistTar'!I13,'Prop2019-20TransTar'!I13,'Prop2019-20JSTar'!I13) -> 0 | J13: =SUM('Prop2019-20DistTar'!J13,'Prop2019-20TransTar'!J13,'Prop2019-20JSTar'!J13) -> 0 | K13: =SUM('Prop2019-20DistTar'!K13,'Prop2019-20TransTar'!K13,'Prop2019-20JSTar'!K13) -> 15.287 | L13: =SUM('Prop2019-20DistTar'!L13,'Prop2019-20TransTar'!L13,'Prop2019-20JSTar'!L13) -> 0 | M13: =SUM('Prop2019-20DistTar'!M13,'Prop2019-20TransTar'!M13,'Prop2019-20JSTar'!M13) -> 0 | Z13: 27.961 | AA13: 2.886 | AB13: 0 | AC13: 0 | AD13: 0 | AE13: 0 | AF13: 0 | AG13: 14.983 | AH13: 0 | AI13: 0 | AW13: -0.0306498337 | AX13: 0.09320859321 | AY13: 0 | AZ13: 0 | BA13: 0 | BB13: 0 | BC13: 0 | BD13: 0.02028966162 | BE13: 0 | BF13: 0 | BG13: 0 | BH13: 0 | BI13: 0 | BJ13: 0 | BK13: 0 | BL13: 0 | BM13: 0 | BN13: 0 | BO13: 0 | BP13: 0 | BQ13: 0 | BR13: =IF(MAX(ABS(AW13:BQ13))>$BR$4,"EXPLAIN","") -> 
Z14: 0 | AA14: 0 | AB14: 0 | AC14: 0 | AD14: 0 | AE14: 0 | AF14: 0 | AG14: 0 | AH14: 0 | AI14: 0
C15: ='Prop2019-20DistTar'!B15 -> General Network | D15: =SUM('Prop2019-20DistTar'!D15,'Prop2019-20TransTar'!D15,'Prop2019-20JSTar'!D15) -> 49.569 | E15: =SUM('Prop2019-20DistTar'!E15,'Prop2019-20TransTar'!E15,'Prop2019-20JSTar'!E15) -> 0 | F15: =SUM('Prop2019-20DistTar'!F15,'Prop2019-20TransTar'!F15,'Prop2019-20JSTar'!F15) -> 12.039 | G15: =SUM('Prop2019-20DistTar'!G15,'Prop2019-20TransTar'!G15,'Prop2019-20JSTar'!G15) -> 15.639 | H15: =SUM('Prop2019-20DistTar'!H15,'Prop2019-20TransTar'!H15,'Prop2019-20JSTar'!H15) -> 0 | I15: =SUM('Prop2019-20DistTar'!I15,'Prop2019-20TransTar'!I15,'Prop2019-20JSTar'!I15) -> 0 | J15: =SUM('Prop2019-20DistTar'!J15,'Prop2019-20TransTar'!J15,'Prop2019-20JSTar'!J15) -> 0 | K15: =SUM('Prop2019-20DistTar'!K15,'Prop2019-20TransTar'!K15,'Prop2019-20JSTar'!K15) -> 0 | L15: =SUM('Prop2019-20DistTar'!L15,'Prop2019-20TransTar'!L15,'Prop2019-20JSTar'!L15) -> 0 | M15: =SUM('Prop2019-20DistTar'!M15,'Prop2019-20TransTar'!M15,'Prop2019-20JSTar'!M15) -> 0 | Z15: 51.136 | AA15: 0 | AB15: 11.93 | AC15: 15.497 | AD15: 0 | AE15: 0 | AF15: 0 | AG15: 0 | AH15: 0 | AI15: 0 | AW15: -0.03064377347 | AX15: 0 | AY15: 0.009136630344 | AZ15: 0.009163063819 | BA15: 0 | BB15: 0 | BC15: 0 | BD15: 0 | BE15: 0 | BF15: 0 | BG15: 0 | BH15: 0 | BI15: 0 | BJ15: 0 | BK15: 0 | BL15: 0 | BM15: 0 | BN15: 0 | BO15: 0 | BP15: 0 | BQ15: 0 | BR15: =IF(MAX(ABS(AW15:BQ15))>$BR$4,"EXPLAIN","") -> 
C16: ='Prop2019-20DistTar'!B16 -> General TOU Network | D16: =SUM('Prop2019-20DistTar'!D16,'Prop2019-20TransTar'!D16,'Prop2019-20JSTar'!D16) -> 49.569 | E16: =SUM('Prop2019-20DistTar'!E16,'Prop2019-20TransTar'!E16,'Prop2019-20JSTar'!E16) -> 0 | F16: =SUM('Prop2019-20DistTar'!F16,'Prop2019-20TransTar'!F16,'Prop2019-20JSTar'!F16) -> 0 | G16: =SUM('Prop2019-20DistTar'!G16,'Prop2019-20TransTar'!G16,'Prop2019-20JSTar'!G16) -> 0 | H16: =SUM('Prop2019-20DistTar'!H16,'Prop2019-20TransTar'!H16,'Prop2019-20JSTar'!H16) -> 18.975 | I16: =SUM('Prop2019-20DistTar'!I16,'Prop2019-20TransTar'!I16,'Prop2019-20JSTar'!I16) -> 8.603 | J16: =SUM('Prop2019-20DistTar'!J16,'Prop2019-20TransTar'!J16,'Prop2019-20JSTar'!J16) -> 3.89 | K16: =SUM('Prop2019-20DistTar'!K16,'Prop2019-20TransTar'!K16,'Prop2019-20JSTar'!K16) -> 0 | L16: =SUM('Prop2019-20DistTar'!L16,'Prop2019-20TransTar'!L16,'Prop2019-20JSTar'!L16) -> 0 | M16: =SUM('Prop2019-20DistTar'!M16,'Prop2019-20TransTar'!M16,'Prop2019-20JSTar'!M16) -> 0 | Z16: 51.136 | AA16: 0 | AB16: 0 | AC16: 0 | AD16: 18.977 | AE16: 8.734 | AF16: 3.949 | AG16: 0 | AH16: 0 | AI16: 0 | AW16: -0.03064377347 | AX16: 0 | AY16: 0 | AZ16: 0 | BA16: -0.0001053907362 | BB16: -0.01499885505 | BC16: -0.01494049126 | BD16: 0 | BE16: 0 | BF16: 0 | BG16: 0 | BH16: 0 | BI16: 0 | BJ16: 0 | BK16: 0 | BL16: 0 | BM16: 0 | BN16: 0 | BO16: 0 | BP16: 0 | BQ16: 0 | BR16: =IF(MAX(ABS(AW16:BQ16))>$BR$4,"EXPLAIN","") -> 
C17: ='Prop2019-20DistTar'!B17 -> LV TOU kVA Demand Network | D17: =SUM('Prop2019-20DistTar'!D17,'Prop2019-20TransTar'!D17,'Prop2019-20JSTar'!D17) -> 55.695 | E17: =SUM('Prop2019-20DistTar'!E17,'Prop2019-20TransTar'!E17,'Prop2019-20JSTar'!E17) -> 0 | F17: =SUM('Prop2019-20DistTar'!F17,'Prop2019-20TransTar'!F17,'Prop2019-20JSTar'!F17) -> 0 | G17: =SUM('Prop2019-20DistTar'!G17,'Prop2019-20TransTar'!G17,'Prop2019-20JSTar'!G17) -> 0 | H17: =SUM('Prop2019-20DistTar'!H17,'Prop2019-20TransTar'!H17,'Prop2019-20JSTar'!H17) -> 7.164 | I17: =SUM('Prop2019-20DistTar'!I17,'Prop2019-20TransTar'!I17,'Prop2019-20JSTar'!I17) -> 3.954 | J17: =SUM('Prop2019-20DistTar'!J17,'Prop2019-20TransTar'!J17,'Prop2019-20JSTar'!J17) -> 2.152 | K17: =SUM('Prop2019-20DistTar'!K17,'Prop2019-20TransTar'!K17,'Prop2019-20JSTar'!K17) -> 0 | L17: =SUM('Prop2019-20DistTar'!L17,'Prop2019-20TransTar'!L17,'Prop2019-20JSTar'!L17) -> 45.046 | M17: =SUM('Prop2019-20DistTar'!M17,'Prop2019-20TransTar'!M17,'Prop2019-20JSTar'!M17) -> 0 | Z17: 57.456 | AA17: 0 | AB17: 0 | AC17: 0 | AD17: 7.942 | AE17: 4.385 | AF17: 2.387 | AG17: 0 | AH17: 42.882 | AI17: 0 | AW17: -0.03064954052 | AX17: 0 | AY17: 0 | AZ17: 0 | BA17: -0.09796021153 | BB17: -0.09828962372 | BC17: -0.09844993716 | BD17: =IFERROR(K17/AG17-1,0) -> 0 | BE17: 0.05046406418 | BF17: 0 | BG17: 0 | BH17: 0 | BI17: 0 | BJ17: 0 | BK17: 0 | BL17: 0 | BM17: 0 | BN17: 0 | BO17: 0 | BP17: 0 | BQ17: 0 | BR17: =IF(MAX(ABS(AW17:BQ17))>$BR$4,"EXPLAIN","") -> 
C18: ='Prop2019-20DistTar'!B18 -> LV TOU Capacity Network | D18: =SUM('Prop2019-20DistTar'!D18,'Prop2019-20TransTar'!D18,'Prop2019-20JSTar'!D18) -> 55.695 | E18: =SUM('Prop2019-20DistTar'!E18,'Prop2019-20TransTar'!E18,'Prop2019-20JSTar'!E18) -> 0 | F18: =SUM('Prop2019-20DistTar'!F18,'Prop2019-20TransTar'!F18,'Prop2019-20JSTar'!F18) -> 0 | G18: =SUM('Prop2019-20DistTar'!G18,'Prop2019-20TransTar'!G18,'Prop2019-20JSTar'!G18) -> 0 | H18: =SUM('Prop2019-20DistTar'!H18,'Prop2019-20TransTar'!H18,'Prop2019-20JSTar'!H18) -> 7.163 | I18: =SUM('Prop2019-20DistTar'!I18,'Prop2019-20TransTar'!I18,'Prop2019-20JSTar'!I18) -> 3.954 | J18: =SUM('Prop2019-20DistTar'!J18,'Prop2019-20TransTar'!J18,'Prop2019-20JSTar'!J18) -> 2.153 | K18: =SUM('Prop2019-20DistTar'!K18,'Prop2019-20TransTar'!K18,'Prop2019-20JSTar'!K18) -> 0 | L18: =SUM('Prop2019-20DistTar'!L18,'Prop2019-20TransTar'!L18,'Prop2019-20JSTar'!L18) -> 20.844 | M18: =SUM('Prop2019-20DistTar'!M18,'Prop2019-20TransTar'!M18,'Prop2019-20JSTar'!M18) -> 20.844 | Z18: 57.456 | AA18: 0 | AB18: 0 | AC18: 0 | AD18: 7.942 | AE18: 4.385 | AF18: 2.387 | AG18: 0 | AH18: 20.082 | AI18: 20.082 | AW18: -0.03064954052 | AX18: 0 | AY18: 0 | AZ18: 0 | BA18: -0.0980861244 | BB18: -0.09828962372 | BC18: -0.09803100126 | BD18: 0 | BE18: 0.03794442785 | BF18: 0.03794442785 | BG18: 0 | BH18: 0 | BI18: 0 | BJ18: 0 | BK18: 0 | BL18: 0 | BM18: 0 | BN18: 0 | BO18: 0 | BP18: 0 | BQ18: 0 | BR18: =IF(MAX(ABS(AW18:BQ18))>$BR$4,"EXPLAIN","") -> 
C19: ='Prop2019-20DistTar'!B19 -> LV Demand Network | D19: =SUM('Prop2019-20DistTar'!D19,'Prop2019-20TransTar'!D19,'Prop2019-20JSTar'!D19) -> 49.569 | E19: =SUM('Prop2019-20DistTar'!E19,'Prop2019-20TransTar'!E19,'Prop2019-20JSTar'!E19) -> 4.682 | F19: =SUM('Prop2019-20DistTar'!F19,'Prop2019-20TransTar'!F19,'Prop2019-20JSTar'!F19) -> 0 | G19: =SUM('Prop2019-20DistTar'!G19,'Prop2019-20TransTar'!G19,'Prop2019-20JSTar'!G19) -> 0 | H19: =SUM('Prop2019-20DistTar'!H19,'Prop2019-20TransTar'!H19,'Prop2019-20JSTar'!H19) -> 0 | I19: =SUM('Prop2019-20DistTar'!I19,'Prop2019-20TransTar'!I19,'Prop2019-20JSTar'!I19) -> 0 | J19: =SUM('Prop2019-20DistTar'!J19,'Prop2019-20TransTar'!J19,'Prop2019-20JSTar'!J19) -> 0 | K19: =SUM('Prop2019-20DistTar'!K19,'Prop2019-20TransTar'!K19,'Prop2019-20JSTar'!K19) -> 44.776 | L19: =SUM('Prop2019-20DistTar'!L19,'Prop2019-20TransTar'!L19,'Prop2019-20JSTar'!L19) -> 0 | M19: =SUM('Prop2019-20DistTar'!M19,'Prop2019-20TransTar'!M19,'Prop2019-20JSTar'!M19) -> 0 | Z19: 51.136 | AA19: 5.109 | AB19: 0 | AC19: 0 | AD19: 0 | AE19: 0 | AF19: 0 | AG19: 42.547 | AH19: 0 | AI19: 0 | AW19: -0.03064377347 | AX19: -0.08357799961 | AY19: 0 | AZ19: 0 | BA19: 0 | BB19: 0 | BC19: 0 | BD19: 0.05238912262 | BE19: 0 | BF19: 0 | BG19: 0 | BH19: 0 | BI19: 0 | BJ19: 0 | BK19: 0 | BL19: 0 | BM19: 0 | BN19: 0 | BO19: 0 | BP19: 0 | BQ19: 0 | BR19: =IF(MAX(ABS(AW19:BQ19))>$BR$4,"EXPLAIN","") -> 
C20: ='Prop2019-20DistTar'!B20 -> Small Unmetered Loads Network | D20: =SUM('Prop2019-20DistTar'!D20,'Prop2019-20TransTar'!D20,'Prop2019-20JSTar'!D20) -> 40.307 | E20: =SUM('Prop2019-20DistTar'!E20,'Prop2019-20TransTar'!E20,'Prop2019-20JSTar'!E20) -> 12.247 | F20: =SUM('Prop2019-20DistTar'!F20,'Prop2019-20TransTar'!F20,'Prop2019-20JSTar'!F20) -> 0 | G20: =SUM('Prop2019-20DistTar'!G20,'Prop2019-20TransTar'!G20,'Prop2019-20JSTar'!G20) -> 0 | H20: =SUM('Prop2019-20DistTar'!H20,'Prop2019-20TransTar'!H20,'Prop2019-20JSTar'!H20) -> 0 | I20: =SUM('Prop2019-20DistTar'!I20,'Prop2019-20TransTar'!I20,'Prop2019-20JSTar'!I20) -> 0 | J20: =SUM('Prop2019-20DistTar'!J20,'Prop2019-20TransTar'!J20,'Prop2019-20JSTar'!J20) -> 0 | K20: =SUM('Prop2019-20DistTar'!K20,'Prop2019-20TransTar'!K20,'Prop2019-20JSTar'!K20) -> 0 | L20: =SUM('Prop2019-20DistTar'!L20,'Prop2019-20TransTar'!L20,'Prop2019-20JSTar'!L20) -> 0 | M20: =SUM('Prop2019-20DistTar'!M20,'Prop2019-20TransTar'!M20,'Prop2019-20JSTar'!M20) -> 0 | Z20: 41.581 | AA20: 12.085 | AB20: 0 | AC20: 0 | AD20: 0 | AE20: 0 | AF20: 0 | AG20: 0 | AH20: 0 | AI20: 0 | AW20: -0.03063899377 | AX20: 0.01340504758 | AY20: 0 | AZ20: 0 | BA20: 0 | BB20: 0 | BC20: 0 | BD20: 0 | BE20: 0 | BF20: 0 | BG20: 0 | BH20: 0 | BI20: 0 | BJ20: 0 | BK20: 0 | BL20: 0 | BM20: 0 | BN20: 0 | BO20: 0 | BP20: 0 | BQ20: 0 | BR20: =IF(MAX(ABS(AW20:BQ20))>$BR$4,"EXPLAIN","") -> 
C21: ='Prop2019-20DistTar'!B21 -> Streetlighting Network | D21: =SUM('Prop2019-20DistTar'!D21,'Prop2019-20TransTar'!D21,'Prop2019-20JSTar'!D21) -> 49.874 | E21: =SUM('Prop2019-20DistTar'!E21,'Prop2019-20TransTar'!E21,'Prop2019-20JSTar'!E21) -> 8.361 | F21: =SUM('Prop2019-20DistTar'!F21,'Prop2019-20TransTar'!F21,'Prop2019-20JSTar'!F21) -> 0 | G21: =SUM('Prop2019-20DistTar'!G21,'Prop2019-20TransTar'!G21,'Prop2019-20JSTar'!G21) -> 0 | H21: =SUM('Prop2019-20DistTar'!H21,'Prop2019-20TransTar'!H21,'Prop2019-20JSTar'!H21) -> 0 | I21: =SUM('Prop2019-20DistTar'!I21,'Prop2019-20TransTar'!I21,'Prop2019-20JSTar'!I21) -> 0 | J21: =SUM('Prop2019-20DistTar'!J21,'Prop2019-20TransTar'!J21,'Prop2019-20JSTar'!J21) -> 0 | K21: =SUM('Prop2019-20DistTar'!K21,'Prop2019-20TransTar'!K21,'Prop2019-20JSTar'!K21) -> 0 | L21: =SUM('Prop2019-20DistTar'!L21,'Prop2019-20TransTar'!L21,'Prop2019-20JSTar'!L21) -> 0 | M21: =SUM('Prop2019-20DistTar'!M21,'Prop2019-20TransTar'!M21,'Prop2019-20JSTar'!M21) -> 0 | Z21: 51.451 | AA21: 8.588 | AB21: 0 | AC21: 0 | AD21: 0 | AE21: 0 | AF21: 0 | AG21: 0 | AH21: 0 | AI21: 0 | AW21: -0.03065052186 | AX21: -0.02643223102 | AY21: 0 | AZ21: 0 | BA21: 0 | BB21: 0 | BC21: 0 | BD21: 0 | BE21: 0 | BF21: 0 | BG21: 0 | BH21: 0 | BI21: 0 | BJ21: 0 | BK21: 0 | BL21: =IFERROR(S21/AO21-1,0) -> 0 | BM21: 0 | BN21: 0 | BO21: 0 | BP21: 0 | BQ21: 0 | BR21: =IF(MAX(ABS(AW21:BQ21))>$BR$4,"EXPLAIN","") -> 
Z22: 0 | AA22: 0 | AB22: 0 | AC22: 0 | AD22: 0 | AE22: 0 | AF22: 0 | AG22: 0 | AH22: 0 | AI22: 0
C23: ='Prop2019-20DistTar'!B23 -> HV TOU Demand Network | D23: =SUM('Prop2019-20DistTar'!D23,'Prop2019-20TransTar'!D23,'Prop2019-20JSTar'!D23) -> 2035.7 | E23: =SUM('Prop2019-20DistTar'!E23,'Prop2019-20TransTar'!E23,'Prop2019-20JSTar'!E23) -> 0 | F23: =SUM('Prop2019-20DistTar'!F23,'Prop2019-20TransTar'!F23,'Prop2019-20JSTar'!F23) -> 0 | G23: =SUM('Prop2019-20DistTar'!G23,'Prop2019-20TransTar'!G23,'Prop2019-20JSTar'!G23) -> 0 | H23: =SUM('Prop2019-20DistTar'!H23,'Prop2019-20TransTar'!H23,'Prop2019-20JSTar'!H23) -> 5.718 | I23: =SUM('Prop2019-20DistTar'!I23,'Prop2019-20TransTar'!I23,'Prop2019-20JSTar'!I23) -> 3.248 | J23: =SUM('Prop2019-20DistTar'!J23,'Prop2019-20TransTar'!J23,'Prop2019-20JSTar'!J23) -> 1.891 | K23: =SUM('Prop2019-20DistTar'!K23,'Prop2019-20TransTar'!K23,'Prop2019-20JSTar'!K23) -> 0 | L23: =SUM('Prop2019-20DistTar'!L23,'Prop2019-20TransTar'!L23,'Prop2019-20JSTar'!L23) -> 15.49 | M23: =SUM('Prop2019-20DistTar'!M23,'Prop2019-20TransTar'!M23,'Prop2019-20JSTar'!M23) -> 15.49 | Z23: 2100 | AA23: 0 | AB23: 0 | AC23: 0 | AD23: 6.379 | AE23: 3.624 | AF23: 2.11 | AG23: 0 | AH23: 15.071 | AI23: 15.071 | AW23: -0.03061904762 | AX23: 0 | AY23: 0 | AZ23: 0 | BA23: -0.1036212573 | BB23: -0.1037527594 | BC23: -0.1037914692 | BD23: 0 | BE23: 0.02780173844 | BF23: 0.02780173844 | BG23: =IFERROR(N23/AJ23-1,0) -> 0 | BH23: 0 | BI23: 0 | BJ23: 0 | BK23: 0 | BL23: 0 | BM23: 0 | BN23: 0 | BO23: 0 | BP23: 0 | BQ23: 0 | BR23: =IF(MAX(ABS(AW23:BQ23))>$BR$4,"EXPLAIN","") -> EXPLAIN
C24: ='Prop2019-20DistTar'!B24 -> HV TOU Demand Network – Customer LV | D24: =SUM('Prop2019-20DistTar'!D24,'Prop2019-20TransTar'!D24,'Prop2019-20JSTar'!D24) -> 2035.7 | E24: =SUM('Prop2019-20DistTar'!E24,'Prop2019-20TransTar'!E24,'Prop2019-20JSTar'!E24) -> 0 | F24: =SUM('Prop2019-20DistTar'!F24,'Prop2019-20TransTar'!F24,'Prop2019-20JSTar'!F24) -> 0 | G24: =SUM('Prop2019-20DistTar'!G24,'Prop2019-20TransTar'!G24,'Prop2019-20JSTar'!G24) -> 0 | H24: =SUM('Prop2019-20DistTar'!H24,'Prop2019-20TransTar'!H24,'Prop2019-20JSTar'!H24) -> 5.125 | I24: =SUM('Prop2019-20DistTar'!I24,'Prop2019-20TransTar'!I24,'Prop2019-20JSTar'!I24) -> 3.032 | J24: =SUM('Prop2019-20DistTar'!J24,'Prop2019-20TransTar'!J24,'Prop2019-20JSTar'!J24) -> 1.825 | K24: =SUM('Prop2019-20DistTar'!K24,'Prop2019-20TransTar'!K24,'Prop2019-20JSTar'!K24) -> 0 | L24: =SUM('Prop2019-20DistTar'!L24,'Prop2019-20TransTar'!L24,'Prop2019-20JSTar'!L24) -> 15.49 | M24: =SUM('Prop2019-20DistTar'!M24,'Prop2019-20TransTar'!M24,'Prop2019-20JSTar'!M24) -> 15.49 | Z24: 2100 | AA24: 0 | AB24: 0 | AC24: 0 | AD24: 5.83 | AE24: 3.449 | AF24: 2.076 | AG24: 0 | AH24: 15.071 | AI24: 15.071 | AW24: -0.03061904762 | AX24: 0 | AY24: 0 | AZ24: 0 | BA24: -0.1209262436 | BB24: -0.12090461 | BC24: -0.1209055877 | BD24: 0 | BE24: 0.02780173844 | BF24: 0.02780173844 | BG24: 0 | BH24: 0 | BI24: 0 | BJ24: 0 | BK24: 0 | BL24: 0 | BM24: 0 | BN24: 0 | BO24: 0 | BP24: 0 | BQ24: 0 | BR24: =IF(MAX(ABS(AW24:BQ24))>$BR$4,"EXPLAIN","") -> EXPLAIN
C25: ='Prop2019-20DistTar'!B25 -> HV TOU Demand Network – Customer HV and LV | D25: =SUM('Prop2019-20DistTar'!D25,'Prop2019-20TransTar'!D25,'Prop2019-20JSTar'!D25) -> 2035.7 | E25: =SUM('Prop2019-20DistTar'!E25,'Prop2019-20TransTar'!E25,'Prop2019-20JSTar'!E25) -> 0 | F25: =SUM('Prop2019-20DistTar'!F25,'Prop2019-20TransTar'!F25,'Prop2019-20JSTar'!F25) -> 0 | G25: =SUM('Prop2019-20DistTar'!G25,'Prop2019-20TransTar'!G25,'Prop2019-20JSTar'!G25) -> 0 | H25: =SUM('Prop2019-20DistTar'!H25,'Prop2019-20TransTar'!H25,'Prop2019-20JSTar'!H25) -> 5.125 | I25: =SUM('Prop2019-20DistTar'!I25,'Prop2019-20TransTar'!I25,'Prop2019-20JSTar'!I25) -> 3.031 | J25: =SUM('Prop2019-20DistTar'!J25,'Prop2019-20TransTar'!J25,'Prop2019-20JSTar'!J25) -> 1.825 | K25: =SUM('Prop2019-20DistTar'!K25,'Prop2019-20TransTar'!K25,'Prop2019-20JSTar'!K25) -> 0 | L25: =SUM('Prop2019-20DistTar'!L25,'Prop2019-20TransTar'!L25,'Prop2019-20JSTar'!L25) -> 13.922 | M25: =SUM('Prop2019-20DistTar'!M25,'Prop2019-20TransTar'!M25,'Prop2019-20JSTar'!M25) -> 13.922 | Z25: 2100 | AA25: 0 | AB25: 0 | AC25: 0 | AD25: 5.829 | AE25: 3.449 | AF25: 2.076 | AG25: 0 | AH25: 13.673 | AI25: 13.673 | AW25: -0.03061904762 | AX25: 0 | AY25: 0 | AZ25: 0 | BA25: -0.1207754332 | BB25: -0.1211945491 | BC25: -0.1209055877 | BD25: 0 | BE25: 0.01821107292 | BF25: 0.01821107292 | BG25: 0 | BH25: 0 | BI25: 0 | BJ25: 0 | BK25: 0 | BL25: 0 | BM25: 0 | BN25: 0 | BO25: 0 | BP25: 0 | BQ25: 0 | BR25: =IF(MAX(ABS(AW25:BQ25))>$BR$4,"EXPLAIN","") -> EXPLAIN

Sheet Indicative prices for 20-21
B1: ="Tariff Approval - "&'Model inputs'!C3 -> Tariff Approval - Evoenergy
B3: =D4 -> TSS indicative tariffs for 2020/21
D4: TSS indicative tariffs for 2020/21
B5: TSS name | C5: Proposed tariff | D5: =Prop2019TSSComp!D5 -> PropTar Fixed | E5: =Prop2019TSSComp!E5 -> PropTar Anytime | F5: =Prop2019TSSComp!F5 -> PropTar Block: Step 1 | G5: =Prop2019TSSComp!G5 -> PropTar Block: Step 2 | H5: =Prop2019TSSComp!H5 -> PropTar TOU: Peak | I5: =Prop2019TSSComp!I5 -> PropTar TOU: Shoulder | J5: =Prop2019TSSComp!J5 -> PropTar TOU: Off-peak | K5: =Prop2019TSSComp!K5 -> PropTar Dem kW | L5: =Prop2019TSSComp!L5 -> PropTar Dem kVA: peak | M5: =Prop2019TSSComp!M5 -> PropTar Capacity kVA: anytime
C7: =Prop2019TSSComp!C7 -> Residential Basic Network | D7: 27.928 | E7: 7.895 | F7: 0 | G7: 0 | H7: 0 | I7: 0 | J7: 0 | K7: 0 | L7: 0 | M7: 0
C8: =Prop2019TSSComp!C8 -> Residential TOU Network | D8: 27.928 | E8: 0 | F8: 0 | G8: 0 | H8: 14.121 | I8: 6.43 | J8: 3.151 | K8: 0 | L8: 0 | M8: 0
C9: =Prop2019TSSComp!C9 -> Residential 5000 Network | D9: 50.477 | E9: 0 | F9: 6.517 | G9: 7.895 | H9: 0 | I9: 0 | J9: 0 | K9: 0 | L9: 0 | M9: 0
C10: =Prop2019TSSComp!C10 -> Residential with Heat Pump Network | D10: 95.889 | E10: 0 | F10: 4.962 | G10: 7.895 | H10: 0 | I10: 0 | J10: 0 | K10: 0 | L10: 0 | M10: 0
C11: =Prop2019TSSComp!C11 -> Off-Peak (1) Night Network | D11: 0 | E11: 0 | F11: 0 | G11: 0 | H11: 0 | I11: 0 | J11: 2.173 | K11: 0 | L11: 0 | M11: 0
C12: =Prop2019TSSComp!C12 -> Off-Peak (3) Day & Night Network | D12: 0 | E12: 0 | F12: 0 | G12: 0 | H12: 0 | I12: 0 | J12: 3.342 | K12: 0 | L12: 0 | M12: 0
C13: =Prop2019TSSComp!C13 -> Residential Demand Network | D13: 27.928 | E13: 3.144 | F13: 0 | G13: 0 | H13: 0 | I13: 0 | J13: 0 | K13: 15.25 | L13: 0 | M13: 0
D14: 0 | E14: 0 | F14: 0 | G14: 0 | H14: 0 | I14: 0 | J14: 0 | K14: 0 | L14: 0 | M14: 0
C15: =Prop2019TSSComp!C15 -> General Network | D15: 51.075 | E15: 0 | F15: 12.046 | G15: 15.648 | H15: 0 | I15: 0 | J15: 0 | K15: 0 | L15: 0 | M15: 0
C16: =Prop2019TSSComp!C16 -> General TOU Network | D16: 51.075 | E16: 0 | F16: 0 | G16: 0 | H16: 19.027 | I16: 8.622 | J16: 3.898 | K16: 0 | L16: 0 | M16: 0
C17: =Prop2019TSSComp!C17 -> LV TOU kVA Demand Network | D17: 57.388 | E17: 0 | F17: 0 | G17: 0 | H17: 7.185 | I17: 3.967 | J17: 2.159 | K17: 0 | L17: 45.223 | M17: 0
C18: =Prop2019TSSComp!C18 -> LV TOU Capacity Network | D18: 57.388 | E18: 0 | F18: 0 | G18: 0 | H18: 7.185 | I18: 3.966 | J18: 2.159 | K18: 0 | L18: 20.944 | M18: 20.944
C19: =Prop2019TSSComp!C19 -> LV Demand Network | D19: 51.075 | E19: 4.693 | F19: 0 | G19: 0 | H19: 0 | I19: 0 | J19: 0 | K19: 44.932 | L19: 0 | M19: 0
C20: =Prop2019TSSComp!C20 -> Small Unmetered Loads Network | D20: 41.531 | E20: 12.282 | F20: 0 | G20: 0 | H20: 0 | I20: 0 | J20: 0 | K20: 0 | L20: 0 | M20: 0
C21: =Prop2019TSSComp!C21 -> Streetlighting Network | D21: 51.39 | E21: 8.393 | F21: 0 | G21: 0 | H21: 0 | I21: 0 | J21: 0 | K21: 0 | L21: 0 | M21: 0
D22: 0 | E22: 0 | F22: 0 | G22: 0 | H22: 0 | I22: 0 | J22: 0 | K22: 0 | L22: 0 | M22: 0
C23: =Prop2019TSSComp!C23 -> HV TOU Demand Network | D23: 2097.5 | E23: 0 | F23: 0 | G23: 0 | H23: 5.725 | I23: 3.252 | J23: 1.894 | K23: 0 | L23: 15.535 | M23: 15.535
C24: =Prop2019TSSComp!C24 -> HV TOU Demand Network – Customer LV | D24: 2097.5 | E24: 0 | F24: 0 | G24: 0 | H24: 5.135 | I24: 3.038 | J24: 1.828 | K24: 0 | L24: 15.535 | M24: 15.535
C25: =Prop2019TSSComp!C25 -> HV TOU Demand Network – Customer HV and LV | D25: 2097.5 | E25: 0 | F25: 0 | G25: 0 | H25: 5.135 | I25: 3.038 | J25: 1.828 | K25: 0 | L25: 13.942 | M25: 13.942
